BIOGUIDE_ID,OFFICE,QUARTER,CATEGORY,DATE,PAYEE,START DATE,END DATE,PURPOSE,AMOUNT,YEAR,TRANSCODE,TRANSCODELONG,RECORDID,RECIP (orig.)
,OFFICE OF THE SPEAKER,2015Q3,PERSONNEL BENEFITS,07-16,HON JOHN A BOEHNER,07/03/15,08/02/15,OFFICIAL EXPENSES FOR LEADERS,"2,083.33",2015,AP,Accounts payable,00803642,HON JOHN A BOEHNER
,OFFICE OF THE SPEAKER,2015Q3,PERSONNEL BENEFITS,08-14,HON JOHN A BOEHNER,08/03/15,09/02/15,OFFICIAL EXPENSES FOR LEADERS,"2,083.33",2015,AP,Accounts payable,00809004,HON JOHN A BOEHNER
,OFFICE OF THE SPEAKER,2015Q3,PERSONNEL BENEFITS,09-16,HON JOHN A BOEHNER,09/03/15,10/02/15,OFFICIAL EXPENSES FOR LEADERS,"2,083.33",2015,AP,Accounts payable,00812726,HON JOHN A BOEHNER
,OFFICE OF THE SPEAKER,2015Q3,PERSONNEL COMPENSATION,"","ANDREWS,THOMAS S",07/01/15,09/30/15,SPECIAL ASST TO THE SPEAKER,"15,833.33",2015,"","","","ANDREWS,THOMAS S"
,OFFICE OF THE SPEAKER,2015Q3,PERSONNEL COMPENSATION,"","BAILEY,BRADLEY",07/01/15,09/30/15,ASSIST TO SPEAKER FOR POLICY,"30,000.00",2015,"","","","BAILEY,BRADLEY"
,OFFICE OF THE SPEAKER,2015Q3,PERSONNEL COMPENSATION,"","BECKER,ALEXANDER M",07/01/15,09/30/15,FLOOR ASSISTANT,"12,083.33",2015,"","","","BECKER,ALEXANDER M"
,OFFICE OF THE SPEAKER,2015Q3,PERSONNEL COMPENSATION,"","BENJAMIN, WILLIAM C",07/01/15,09/30/15,DIR OF INFORMATION TECHNOLOGY,"24,500.01",2015,"","","","BENJAMIN, WILLIAM C"
,OFFICE OF THE SPEAKER,2015Q3,PERSONNEL COMPENSATION,"","BLAKE,KRISTENE",07/01/15,09/30/15,DIRECTOR OF SCHDLNG/EXEC ASST,"30,000.00",2015,"","","","BLAKE,KRISTENE"
,OFFICE OF THE SPEAKER,2015Q3,PERSONNEL COMPENSATION,"","BORDEN III, R C",07/01/15,09/30/15,SHARED EMPLOYEE,"41,750.01",2015,"","","","BORDEN III, R C"
,OFFICE OF THE SPEAKER,2015Q3,PERSONNEL COMPENSATION,"","BOYD,KATHRYN E",07/01/15,09/30/15,ASST COMMUNICATIONS DIRECTOR,"24,999.99",2015,"","","","BOYD,KATHRYN E"
,OFFICE OF THE SPEAKER,2015Q3,PERSONNEL COMPENSATION,"","BROWN,MARYAM S",07/01/15,09/30/15,ASST TO SPEAKER FOR POLICY,"42,000.00",2015,"","","","BROWN,MARYAM S"
,OFFICE OF THE SPEAKER,2015Q3,PERSONNEL COMPENSATION,"","COYLE,SARAH M",09/11/15,09/30/15,FLOOR ASSISTANT,"2,166.67",2015,"","","","COYLE,SARAH M"
,OFFICE OF THE SPEAKER,2015Q3,PERSONNEL COMPENSATION,"","CRAVEN, KELLY F",07/01/15,09/30/15,DIRECTOR OF HOUSE OPERATIONS,"43,125.00",2015,"","","","CRAVEN, KELLY F"
,OFFICE OF THE SPEAKER,2015Q3,PERSONNEL COMPENSATION,"","EASBY-SMITH,ANNE S",07/01/15,09/30/15,SPECIAL EVENTS ASSOCIATE,"14,250.01",2015,"","","","EASBY-SMITH,ANNE S"
,OFFICE OF THE SPEAKER,2015Q3,PERSONNEL COMPENSATION,"","ECKARD,NASTASHA",07/01/15,09/30/15,ASSIST TO SPEAKER FOR POLICY,"24,624.99",2015,"","","","ECKARD,NASTASHA"
,OFFICE OF THE SPEAKER,2015Q3,PERSONNEL COMPENSATION,"","EDATTEL,PAUL",09/02/15,09/30/15,ASST TO SPEAKER FOR POLICY,"12,486.11",2015,"","","","EDATTEL,PAUL"
,OFFICE OF THE SPEAKER,2015Q3,PERSONNEL COMPENSATION,"","EICHHORN, JARED D",07/01/15,07/31/15,FLOOR ASSISTANT,"5,000.00",2015,"","","","EICHHORN, JARED D"
,OFFICE OF THE SPEAKER,2015Q3,PERSONNEL COMPENSATION,"","EICHHORN, JARED D",08/01/15,09/30/15,CLOAKROOM DIRECTOR,"15,000.00",2015,"","","","EICHHORN, JARED D"
,OFFICE OF THE SPEAKER,2015Q3,PERSONNEL COMPENSATION,"","FRANKS,JESSICA L",07/01/15,09/30/15,STAFF ASSISTANT,"8,750.01",2015,"","","","FRANKS,JESSICA L"
,OFFICE OF THE SPEAKER,2015Q3,PERSONNEL COMPENSATION,"","FRANKS,JESSICA L",06/01/15,07/31/15,STAFF ASSISTANT (OVERTIME),851.85,2015,"","","","FRANKS,JESSICA L"
,OFFICE OF THE SPEAKER,2015Q3,PERSONNEL COMPENSATION,"","FRITZ,CORY M",07/01/15,09/30/15,PRESS SECRETARY,"30,000.00",2015,"","","","FRITZ,CORY M"
,OFFICE OF THE SPEAKER,2015Q3,PERSONNEL COMPENSATION,"","GILLESPIE,MAURA M",07/01/15,09/30/15,PRESS ADVISOR,"16,250.01",2015,"","","","GILLESPIE,MAURA M"
,OFFICE OF THE SPEAKER,2015Q3,PERSONNEL COMPENSATION,"","GOLDOUST,CARAH S",07/01/15,09/30/15,STAFF ASSISTANT,"8,750.01",2015,"","","","GOLDOUST,CARAH S"
,OFFICE OF THE SPEAKER,2015Q3,PERSONNEL COMPENSATION,"","GOLDOUST,CARAH S",06/01/15,07/31/15,STAFF ASSISTANT (OVERTIME),454.32,2015,"","","","GOLDOUST,CARAH S"
,OFFICE OF THE SPEAKER,2015Q3,PERSONNEL COMPENSATION,"","GREEN, JO-MARIE S",07/01/15,09/30/15,GEN COUNSEL/CHIEF OF LEG OPS,"43,125.00",2015,"","","","GREEN, JO-MARIE S"
,OFFICE OF THE SPEAKER,2015Q3,PERSONNEL COMPENSATION,"","GREENE,WILLIAM P",07/01/15,09/30/15,DIRECTOR-OUTREACH,"36,249.99",2015,"","","","GREENE,WILLIAM P"
,OFFICE OF THE SPEAKER,2015Q3,PERSONNEL COMPENSATION,"","GRIEVE,ALEXANDER G",07/01/15,09/30/15,STAFF ASSISTANT,"8,750.01",2015,"","","","GRIEVE,ALEXANDER G"
,OFFICE OF THE SPEAKER,2015Q3,PERSONNEL COMPENSATION,"","GRIEVE,ALEXANDER G",06/01/15,07/31/15,STAFF ASSISTANT (OVERTIME),"1,142.11",2015,"","","","GRIEVE,ALEXANDER G"
,OFFICE OF THE SPEAKER,2015Q3,PERSONNEL COMPENSATION,"","HALEY, KATHERINE C",07/01/15,09/30/15,ASST TO SPEAKER FOR POLICY,"27,500.01",2015,"","","","HALEY, KATHERINE C"
,OFFICE OF THE SPEAKER,2015Q3,PERSONNEL COMPENSATION,"","HARROUN, TIMOTHY J",07/01/15,07/31/15,MANAGER REPUBLICAN CLOAKROOM,"11,095.83",2015,"","","","HARROUN, TIMOTHY J"
,OFFICE OF THE SPEAKER,2015Q3,PERSONNEL COMPENSATION,"","HERRLE, CYNTHIA A",07/01/15,09/30/15,ASST TO THE SPEAKER FOR POLICY,"42,000.00",2015,"","","","HERRLE, CYNTHIA A"
,OFFICE OF THE SPEAKER,2015Q3,PERSONNEL COMPENSATION,"","HILL,ELIZABETH C",07/01/15,08/27/15,SHARED EMPLOYEE,100.00,2015,"","","","HILL,ELIZABETH C"
,OFFICE OF THE SPEAKER,2015Q3,PERSONNEL COMPENSATION,"","HUSTON,JOHNATHON B",07/01/15,09/30/15,SHARED EMPLOYEE,"8,250.00",2015,"","","","HUSTON,JOHNATHON B"
,OFFICE OF THE SPEAKER,2015Q3,PERSONNEL COMPENSATION,"","IVANCIC,CHARLOTTE S",07/01/15,09/01/15,ASSIST TO SPEAKER FOR POLICY,"28,466.67",2015,"","","","IVANCIC,CHARLOTTE S"
,OFFICE OF THE SPEAKER,2015Q3,PERSONNEL COMPENSATION,"","KEARNEY,EMILY M",09/01/15,09/30/15,STAFF ASSISTANT,"2,916.67",2015,"","","","KEARNEY,EMILY M"
,OFFICE OF THE SPEAKER,2015Q3,PERSONNEL COMPENSATION,"","KITTLE,ALLIE M",07/01/15,09/30/15,SHARED EMPLOYEE,"6,125.01",2015,"","","","KITTLE,ALLIE M"
,OFFICE OF THE SPEAKER,2015Q3,PERSONNEL COMPENSATION,"","KOLEGO, TREVOR W",07/01/15,09/30/15,DIR OF MEMBER SERVICES,"42,000.00",2015,"","","","KOLEGO, TREVOR W"
,OFFICE OF THE SPEAKER,2015Q3,PERSONNEL COMPENSATION,"","LAMPERT,JUSTIN",07/01/15,09/30/15,RESEARCH ASSISTANT,"11,250.00",2015,"","","","LAMPERT,JUSTIN"
,OFFICE OF THE SPEAKER,2015Q3,PERSONNEL COMPENSATION,"","LEOPOLD,PATRICK R",07/01/15,09/30/15,SHARED EMPLOYEE,"24,999.99",2015,"","","","LEOPOLD,PATRICK R"
,OFFICE OF THE SPEAKER,2015Q3,PERSONNEL COMPENSATION,"","LOHMEYER,SONJA M",07/01/15,09/30/15,DIRECTOR OF PUBLIC LIAISON,"37,500.00",2015,"","","","LOHMEYER,SONJA M"
,OFFICE OF THE SPEAKER,2015Q3,PERSONNEL COMPENSATION,"","LOZUPONE, AMY S",07/01/15,09/30/15,DIRECTOR OF ADMIN OPERATIONS,"43,125.00",2015,"","","","LOZUPONE, AMY S"
,OFFICE OF THE SPEAKER,2015Q3,PERSONNEL COMPENSATION,"","MACDONALD, BRIAN C",07/01/15,09/30/15,SHARED EMPLOYEE,"24,999.99",2015,"","","","MACDONALD, BRIAN C"
,OFFICE OF THE SPEAKER,2015Q3,PERSONNEL COMPENSATION,"","MARROLETTI,CHRISTOPHER V",07/01/15,09/30/15,STAFF ASSISTANT,"8,750.01",2015,"","","","MARROLETTI,CHRISTOPHER V"
,OFFICE OF THE SPEAKER,2015Q3,PERSONNEL COMPENSATION,"","MARROLETTI,CHRISTOPHER V",06/01/15,07/31/15,STAFF ASSISTANT (OVERTIME),808.04,2015,"","","","MARROLETTI,CHRISTOPHER V"
,OFFICE OF THE SPEAKER,2015Q3,PERSONNEL COMPENSATION,"","MILAM, LAURA M",07/01/15,09/30/15,DEPUTY SCHEDULER,"15,833.33",2015,"","","","MILAM, LAURA M"
,OFFICE OF THE SPEAKER,2015Q3,PERSONNEL COMPENSATION,"","MINKLER,ANN W",07/01/15,09/30/15,FLOOR ASSISTANT,"13,750.01",2015,"","","","MINKLER,ANN W"
,OFFICE OF THE SPEAKER,2015Q3,PERSONNEL COMPENSATION,"","MOORE,DYLAN M",07/01/15,09/30/15,STAFF ASSISTANT,"8,750.01",2015,"","","","MOORE,DYLAN M"
,OFFICE OF THE SPEAKER,2015Q3,PERSONNEL COMPENSATION,"","MOORE,DYLAN M",06/01/15,07/31/15,STAFF ASSISTANT (OVERTIME),896.02,2015,"","","","MOORE,DYLAN M"
,OFFICE OF THE SPEAKER,2015Q3,PERSONNEL COMPENSATION,"","PALISI,ANNIE",07/01/15,09/30/15,DEPUTY DIRECTOR OF MEMBER SVCS,"38,750.01",2015,"","","","PALISI,ANNIE"
,OFFICE OF THE SPEAKER,2015Q3,PERSONNEL COMPENSATION,"","RATCLIFFE,RAMSEY E",07/01/15,07/31/15,SPECIAL EVENTS ASSOCIATE,"4,166.67",2015,"","","","RATCLIFFE,RAMSEY E"
,OFFICE OF THE SPEAKER,2015Q3,PERSONNEL COMPENSATION,"","RATCLIFFE,RAMSEY E",07/01/15,07/31/15,SPECIAL EVENTS ASSOCIATE (OTHER COMPENSATION),"3,194.44",2015,"","","","RATCLIFFE,RAMSEY E"
,OFFICE OF THE SPEAKER,2015Q3,PERSONNEL COMPENSATION,"","REED, HEATHER E",07/01/15,09/30/15,DEPUTY PRESS SECRETARY,"16,250.01",2015,"","","","REED, HEATHER E"
,OFFICE OF THE SPEAKER,2015Q3,PERSONNEL COMPENSATION,"","RENZ, BRANDON",07/01/15,09/30/15,SHARED EMPLOYEE,"24,999.99",2015,"","","","RENZ, BRANDON"
,OFFICE OF THE SPEAKER,2015Q3,PERSONNEL COMPENSATION,"","RICCI,MICHAEL",07/01/15,09/30/15,DEPUTY COMMUNICATIONS DIRECTOR,"38,750.01",2015,"","","","RICCI,MICHAEL"
,OFFICE OF THE SPEAKER,2015Q3,PERSONNEL COMPENSATION,"","ROBINSON,GREGORY J",07/01/15,09/30/15,ASSOCIATE COUNSEL,"13,666.66",2015,"","","","ROBINSON,GREGORY J"
,OFFICE OF THE SPEAKER,2015Q3,PERSONNEL COMPENSATION,"","SAGER,MICHAEL J",07/01/15,09/30/15,SYSTEMS ADMINISTRATOR,"21,249.99",2015,"","","","SAGER,MICHAEL J"
,OFFICE OF THE SPEAKER,2015Q3,PERSONNEL COMPENSATION,"","SCHILLINGER,EMILY L",07/11/15,09/30/15,PRESS SECRETARY,"34,444.45",2015,"","","","SCHILLINGER,EMILY L"
,OFFICE OF THE SPEAKER,2015Q3,PERSONNEL COMPENSATION,"","SMITH, CALEB J",07/01/15,09/30/15,DIGITAL COMMUNICATIONS DIRECTO,"24,999.99",2015,"","","","SMITH, CALEB J"
,OFFICE OF THE SPEAKER,2015Q3,PERSONNEL COMPENSATION,"","SMITH, KEVIN",07/01/15,09/30/15,DIRECTOR OF COMMUNICATIONS,"43,125.00",2015,"","","","SMITH, KEVIN"
,OFFICE OF THE SPEAKER,2015Q3,PERSONNEL COMPENSATION,"","SOMMERS, MICHAEL J",07/01/15,09/30/15,CHIEF OF STAFF,"43,125.00",2015,"","","","SOMMERS, MICHAEL J"
,OFFICE OF THE SPEAKER,2015Q3,PERSONNEL COMPENSATION,"","STEWART, DAVID B",07/01/15,09/30/15,POLICY DIRECTOR (STAT),"43,125.00",2015,"","","","STEWART, DAVID B"
,OFFICE OF THE SPEAKER,2015Q3,PERSONNEL COMPENSATION,"","STEWART, JENNIFER M",07/01/15,09/30/15,ASST TO SPEAKER FOR POLICY,"30,000.00",2015,"","","","STEWART, JENNIFER M"
,OFFICE OF THE SPEAKER,2015Q3,PERSONNEL COMPENSATION,"","STRUNK, LYDIA",07/01/15,09/30/15,DEPUTY FLOOR DIRECTOR,"26,249.99",2015,"","","","STRUNK, LYDIA"
,OFFICE OF THE SPEAKER,2015Q3,PERSONNEL COMPENSATION,"","SWINEHART,SARAH V",07/01/15,09/30/15,DIRECTOR OF MEDIA AFFAIRS,"23,750.01",2015,"","","","SWINEHART,SARAH V"
,OFFICE OF THE SPEAKER,2015Q3,PERSONNEL COMPENSATION,"","TALLENT,REBECCA A",07/01/15,09/30/15,ASST TO SPEAKER FOR POLICY,"42,000.00",2015,"","","","TALLENT,REBECCA A"
,OFFICE OF THE SPEAKER,2015Q3,PERSONNEL COMPENSATION,"","THORSEN, ANNE B",07/01/15,09/30/15,FLOOR DIRECTOR,"43,125.00",2015,"","","","THORSEN, ANNE B"
,OFFICE OF THE SPEAKER,2015Q3,PERSONNEL COMPENSATION,"","WHITE, JERRY L",07/01/15,09/30/15,SHARED EMPLOYEE,"20,000.01",2015,"","","","WHITE, JERRY L"
,OFFICE OF THE SPEAKER,2015Q3,PERSONNEL COMPENSATION,"","WOLKING,MATTHEW D",07/01/15,09/30/15,COMMUNICATIONS ADVISOR,"24,375.00",2015,"","","","WOLKING,MATTHEW D"
,OFFICE OF THE SPEAKER,2015Q3,PERSONNEL COMPENSATION,"","ZENTMEYER,APRIL E",07/01/15,09/30/15,PROTOCOL & SPECIAL PROJECTS AD,"23,750.01",2015,"","","","ZENTMEYER,APRIL E"
,OFFICE OF THE SPEAKER,2015Q3,PERSONNEL COMPENSATION,"","ZULKOSKY,ERIC T",07/01/15,09/30/15,SHARED EMPLOYEE,"24,999.99",2015,"","","","ZULKOSKY,ERIC T"
,OFFICE OF THE SPEAKER,2015Q3,TRAVEL,07-13,"HALEY, KATHERINE C",10/07/14,06/23/15,TAXI/PARKING/TOLLS,242.75,2015,AP,Accounts payable,E0299227,"HALEY, KATHERINE C"
,OFFICE OF THE SPEAKER,2015Q3,TRAVEL,08-28,"SMITH, KEVIN",02/12/15,06/08/15,TAXI/PARKING/TOLLS,100.00,2015,AP,Accounts payable,E0314237,"SMITH, KEVIN"
,OFFICE OF THE SPEAKER,2015Q3,TRAVEL,08-31,"SMITH, KEVIN",06/06/15,06/07/15,TRAVEL SUBSISTENCE,620.70,2015,AP,Accounts payable,E0314236,"SMITH, KEVIN"
,OFFICE OF THE SPEAKER,2015Q3,"RENT, COMMUNICATION, UTILITIES",07-17,"LOZUPONE, AMY S",07/10/15,07/10/15,POSTAGE / COURIER / BOX RENTAL,6.35,2015,AP,Accounts payable,E0301157,"LOZUPONE, AMY S"
,OFFICE OF THE SPEAKER,2015Q3,PRINTING AND REPRODUCTION,07-02,GO BIG MEDIA INC,06/23/15,06/23/15,PRINTING & REPRODUCTION,"-4,000.00",2015,AP,Accounts payable,E0293728,GO BIG MEDIA INC
,OFFICE OF THE SPEAKER,2015Q3,PRINTING AND REPRODUCTION,07-16,GO BIG MEDIA INC,06/23/15,06/23/15,PRINTING & REPRODUCTION,"4,000.00",2015,AP,Accounts payable,00803630,GO BIG MEDIA INC
,OFFICE OF THE SPEAKER,2015Q3,PRINTING AND REPRODUCTION,07-28,"",07/01/15,07/31/15,PHOTOGRAPHIC (TRANSFER),410.50,2015,GL,General ledger,PIX0050920,""
,OFFICE OF THE SPEAKER,2015Q3,PRINTING AND REPRODUCTION,08-26,"",08/01/15,08/31/15,PHOTOGRAPHIC (TRANSFER),39.10,2015,GL,General ledger,PIX0051673,""
,OFFICE OF THE SPEAKER,2015Q3,PRINTING AND REPRODUCTION,09-14,ACCURATE WORD LLC,09/09/15,09/09/15,PRINTING & REPRODUCTION,29.95,2015,AP,Accounts payable,E0319637,ACCURATE WORD LLC
,OFFICE OF THE SPEAKER,2015Q3,PRINTING AND REPRODUCTION,09-23,"",09/01/15,09/30/15,PHOTOGRAPHIC (TRANSFER),79.10,2015,GL,General ledger,PIX0052399,""
,OFFICE OF THE SPEAKER,2015Q3,OTHER SERVICES,07-20,CITI PCARD-CAPTL VISITOR CTR,05/29/15,06/28/15,REPRESENTATIONAL EXPENSES,104.95,2015,AP,Accounts payable,00806198,CITI PCARD-CAPTL VISITOR CTR
,OFFICE OF THE SPEAKER,2015Q3,SUPPLIES AND MATERIALS,07-13,COCA-COLA REFRESHMENTS USA INC,05/05/15,06/16/15,FOOD & BEVERAGE,928.80,2015,AP,Accounts payable,E0299226,COCA-COLA REFRESHMENTS USA INC
,OFFICE OF THE SPEAKER,2015Q3,SUPPLIES AND MATERIALS,07-13,"WHITE, JERRY L",07/08/15,07/08/15,FOOD & BEVERAGE,157.53,2015,AP,Accounts payable,E0299228,"WHITE, JERRY L"
,OFFICE OF THE SPEAKER,2015Q3,SUPPLIES AND MATERIALS,07-13,FIRST CHOICE COFFEE SERVICES,06/03/15,06/25/15,FOOD & BEVERAGE,"3,748.69",2015,AP,Accounts payable,E0299282,FIRST CHOICE COFFEE SERVICES
,OFFICE OF THE SPEAKER,2015Q3,SUPPLIES AND MATERIALS,07-17,COCA-COLA REFRESHMENTS USA INC,07/14/15,07/14/15,FOOD & BEVERAGE,452.64,2015,AP,Accounts payable,E0301146,COCA-COLA REFRESHMENTS USA INC
,OFFICE OF THE SPEAKER,2015Q3,SUPPLIES AND MATERIALS,07-17,DESIGN CUISINE,07/04/15,07/04/15,FOOD & BEVERAGE,"20,736.76",2015,AP,Accounts payable,E0301153,DESIGN CUISINE
,OFFICE OF THE SPEAKER,2015Q3,SUPPLIES AND MATERIALS,07-17,AMARYLLIS INC,07/04/15,07/04/15,HABITATION EXPENSE,"3,425.00",2015,AP,Accounts payable,E0301154,AMARYLLIS INC
,OFFICE OF THE SPEAKER,2015Q3,SUPPLIES AND MATERIALS,07-17,"ZENTMEYER, APRIL E",07/08/15,07/08/15,HABITATION EXPENSE,138.12,2015,AP,Accounts payable,E0301170,"ZENTMEYER, APRIL E"
,OFFICE OF THE SPEAKER,2015Q3,SUPPLIES AND MATERIALS,07-20,CITI PCARD-AMAZON.COM,05/29/15,06/28/15,PUBLICATIONS/REFERENCE MAT'L,81.84,2015,AP,Accounts payable,00806198,CITI PCARD-AMAZON.COM
,OFFICE OF THE SPEAKER,2015Q3,SUPPLIES AND MATERIALS,07-20,CITI PCARD-CAFE RIO MEXICAN GRILL,05/29/15,06/28/15,FOOD & BEVERAGE,388.86,2015,AP,Accounts payable,00806198,CITI PCARD-CAFE RIO MEXICAN GRILL
,OFFICE OF THE SPEAKER,2015Q3,SUPPLIES AND MATERIALS,07-20,CITI PCARD-CAPITOL HOST (RIDGEWEL,05/29/15,06/28/15,FOOD & BEVERAGE,105.00,2015,AP,Accounts payable,00806198,CITI PCARD-CAPITOL HOST (RIDGEWEL
,OFFICE OF THE SPEAKER,2015Q3,SUPPLIES AND MATERIALS,07-20,CITI PCARD-CHICKEN OUT AND MORE C,05/29/15,06/28/15,FOOD & BEVERAGE,565.95,2015,AP,Accounts payable,00806198,CITI PCARD-CHICKEN OUT AND MORE C
,OFFICE OF THE SPEAKER,2015Q3,SUPPLIES AND MATERIALS,07-20,CITI PCARD-CORNER BAKERY,05/29/15,06/28/15,FOOD & BEVERAGE,795.50,2015,AP,Accounts payable,00806198,CITI PCARD-CORNER BAKERY
,OFFICE OF THE SPEAKER,2015Q3,SUPPLIES AND MATERIALS,07-20,CITI PCARD-DOMINO'S,05/29/15,06/28/15,FOOD & BEVERAGE,"1,180.50",2015,AP,Accounts payable,00806198,CITI PCARD-DOMINO'S
,OFFICE OF THE SPEAKER,2015Q3,SUPPLIES AND MATERIALS,07-20,CITI PCARD-IMDB,05/29/15,06/28/15,PUBLICATIONS/REFERENCE MAT'L,19.99,2015,AP,Accounts payable,00806198,CITI PCARD-IMDB
,OFFICE OF THE SPEAKER,2015Q3,SUPPLIES AND MATERIALS,07-20,CITI PCARD-MATCHBOX CAPITOL HILL,05/29/15,06/28/15,FOOD & BEVERAGE,640.50,2015,AP,Accounts payable,00806198,CITI PCARD-MATCHBOX CAPITOL HILL
,OFFICE OF THE SPEAKER,2015Q3,SUPPLIES AND MATERIALS,07-20,CITI PCARD-POTBELLY,05/29/15,06/28/15,FOOD & BEVERAGE,210.50,2015,AP,Accounts payable,00806198,CITI PCARD-POTBELLY
,OFFICE OF THE SPEAKER,2015Q3,SUPPLIES AND MATERIALS,07-20,CITI PCARD-SURFSIDE,05/29/15,06/28/15,FOOD & BEVERAGE,884.33,2015,AP,Accounts payable,00806198,CITI PCARD-SURFSIDE
,OFFICE OF THE SPEAKER,2015Q3,SUPPLIES AND MATERIALS,07-20,CITI PCARD-TAYLOR GOURMET,05/29/15,06/28/15,FOOD & BEVERAGE,602.06,2015,AP,Accounts payable,00806198,CITI PCARD-TAYLOR GOURMET
,OFFICE OF THE SPEAKER,2015Q3,SUPPLIES AND MATERIALS,07-20,CITI PCARD-TORTILLA COAST,05/29/15,06/28/15,FOOD & BEVERAGE,120.00,2015,AP,Accounts payable,00806198,CITI PCARD-TORTILLA COAST
,OFFICE OF THE SPEAKER,2015Q3,SUPPLIES AND MATERIALS,07-20,CITI PCARD-WHO REPRESENTS.COM,05/29/15,06/28/15,PUBLICATIONS/REFERENCE MAT'L,26.97,2015,AP,Accounts payable,00806198,CITI PCARD-WHO REPRESENTS.COM
,OFFICE OF THE SPEAKER,2015Q3,SUPPLIES AND MATERIALS,07-20,CITI PCARD-WHOLEFDS PST,05/29/15,06/28/15,FOOD & BEVERAGE,405.37,2015,AP,Accounts payable,00806198,CITI PCARD-WHOLEFDS PST
,OFFICE OF THE SPEAKER,2015Q3,SUPPLIES AND MATERIALS,08-11,FIRST CHOICE COFFEE SERVICES,07/06/15,07/30/15,FOOD & BEVERAGE,"3,360.84",2015,AP,Accounts payable,E0307950,FIRST CHOICE COFFEE SERVICES
,OFFICE OF THE SPEAKER,2015Q3,SUPPLIES AND MATERIALS,08-19,CITI PCARD-CAPITOL HOST (RIDGEWEL,06/29/15,07/28/15,FOOD & BEVERAGE,105.00,2015,AP,Accounts payable,00811597,CITI PCARD-CAPITOL HOST (RIDGEWEL
,OFFICE OF THE SPEAKER,2015Q3,SUPPLIES AND MATERIALS,08-19,CITI PCARD-CHICKEN OUT AND MORE C,06/29/15,07/28/15,FOOD & BEVERAGE,435.95,2015,AP,Accounts payable,00811597,CITI PCARD-CHICKEN OUT AND MORE C
,OFFICE OF THE SPEAKER,2015Q3,SUPPLIES AND MATERIALS,08-19,CITI PCARD-CORNER BAKERY,06/29/15,07/28/15,FOOD & BEVERAGE,"1,517.50",2015,AP,Accounts payable,00811597,CITI PCARD-CORNER BAKERY
,OFFICE OF THE SPEAKER,2015Q3,SUPPLIES AND MATERIALS,08-19,CITI PCARD-CVS/PHARMACY,06/29/15,07/28/15,FOOD & BEVERAGE,32.95,2015,AP,Accounts payable,00811597,CITI PCARD-CVS/PHARMACY
,OFFICE OF THE SPEAKER,2015Q3,SUPPLIES AND MATERIALS,08-19,CITI PCARD-IMDB,06/29/15,07/28/15,PUBLICATIONS/REFERENCE MAT'L,19.99,2015,AP,Accounts payable,00811597,CITI PCARD-IMDB
,OFFICE OF THE SPEAKER,2015Q3,SUPPLIES AND MATERIALS,08-19,CITI PCARD-MCM GROUP,06/29/15,07/28/15,HABITATION EXPENSE,234.60,2015,AP,Accounts payable,00811597,CITI PCARD-MCM GROUP
,OFFICE OF THE SPEAKER,2015Q3,SUPPLIES AND MATERIALS,08-19,CITI PCARD-POTBELLY,06/29/15,07/28/15,FOOD & BEVERAGE,386.50,2015,AP,Accounts payable,00811597,CITI PCARD-POTBELLY
,OFFICE OF THE SPEAKER,2015Q3,SUPPLIES AND MATERIALS,08-19,CITI PCARD-ROSA MEXICANO - DC,06/29/15,07/28/15,FOOD & BEVERAGE,874.40,2015,AP,Accounts payable,00811597,CITI PCARD-ROSA MEXICANO - DC
,OFFICE OF THE SPEAKER,2015Q3,SUPPLIES AND MATERIALS,08-19,CITI PCARD-SOMETHING SWEET,06/29/15,07/28/15,FOOD & BEVERAGE,776.98,2015,AP,Accounts payable,00811597,CITI PCARD-SOMETHING SWEET
,OFFICE OF THE SPEAKER,2015Q3,SUPPLIES AND MATERIALS,08-19,CITI PCARD-SQ THE SWEET LOBBY,06/29/15,07/28/15,FOOD & BEVERAGE,70.45,2015,AP,Accounts payable,00811597,CITI PCARD-SQ THE SWEET LOBBY
,OFFICE OF THE SPEAKER,2015Q3,SUPPLIES AND MATERIALS,08-19,CITI PCARD-WHO REPRESENTS.COM,06/29/15,07/28/15,PUBLICATIONS/REFERENCE MAT'L,26.97,2015,AP,Accounts payable,00811597,CITI PCARD-WHO REPRESENTS.COM
,OFFICE OF THE SPEAKER,2015Q3,SUPPLIES AND MATERIALS,08-19,CITI PCARD-WHOLEFDS PST,06/29/15,07/28/15,FOOD & BEVERAGE,298.94,2015,AP,Accounts payable,00811597,CITI PCARD-WHOLEFDS PST
,OFFICE OF THE SPEAKER,2015Q3,SUPPLIES AND MATERIALS,09-15,COCA-COLA REFRESHMENTS USA INC,09/11/15,09/11/15,FOOD & BEVERAGE,780.00,2015,AP,Accounts payable,E0319634,COCA-COLA REFRESHMENTS USA INC
,OFFICE OF THE SPEAKER,2015Q3,SUPPLIES AND MATERIALS,09-18,CITI PCARD-BAYOU BAKERY - ON THE,07/29/15,08/28/15,FOOD & BEVERAGE,43.73,2015,AP,Accounts payable,00816865,CITI PCARD-BAYOU BAKERY - ON THE
,OFFICE OF THE SPEAKER,2015Q3,SUPPLIES AND MATERIALS,09-18,CITI PCARD-BJ WHOLESALE,07/29/15,08/28/15,FOOD & BEVERAGE,35.84,2015,AP,Accounts payable,00816865,CITI PCARD-BJ WHOLESALE
,OFFICE OF THE SPEAKER,2015Q3,SUPPLIES AND MATERIALS,09-18,CITI PCARD-CAFE RIO MEXICAN GRILL,07/29/15,08/28/15,FOOD & BEVERAGE,543.72,2015,AP,Accounts payable,00816865,CITI PCARD-CAFE RIO MEXICAN GRILL
,OFFICE OF THE SPEAKER,2015Q3,SUPPLIES AND MATERIALS,09-18,CITI PCARD-CAPITOL HOST (RIDGEWEL,07/29/15,08/28/15,FOOD & BEVERAGE,210.00,2015,AP,Accounts payable,00816865,CITI PCARD-CAPITOL HOST (RIDGEWEL
,OFFICE OF THE SPEAKER,2015Q3,SUPPLIES AND MATERIALS,09-18,CITI PCARD-IMDB,07/29/15,08/28/15,PUBLICATIONS/REFERENCE MAT'L,19.99,2015,AP,Accounts payable,00816865,CITI PCARD-IMDB
,OFFICE OF THE SPEAKER,2015Q3,SUPPLIES AND MATERIALS,09-18,CITI PCARD-MARSHALLS,07/29/15,08/28/15,HABITATION EXPENSE,23.31,2015,AP,Accounts payable,00816865,CITI PCARD-MARSHALLS
,OFFICE OF THE SPEAKER,2015Q3,SUPPLIES AND MATERIALS,09-18,CITI PCARD-PACER,07/29/15,08/28/15,PUBLICATIONS/REFERENCE MAT'L,95.80,2015,AP,Accounts payable,00816865,CITI PCARD-PACER
,OFFICE OF THE SPEAKER,2015Q3,SUPPLIES AND MATERIALS,09-18,CITI PCARD-SHOPPERS FOOD / PHAR,07/29/15,08/28/15,FOOD & BEVERAGE,74.85,2015,AP,Accounts payable,00816865,CITI PCARD-SHOPPERS FOOD / PHAR
,OFFICE OF THE SPEAKER,2015Q3,SUPPLIES AND MATERIALS,09-18,CITI PCARD-TAYLOR GOURMET,07/29/15,08/28/15,FOOD & BEVERAGE,415.02,2015,AP,Accounts payable,00816865,CITI PCARD-TAYLOR GOURMET
,OFFICE OF THE SPEAKER,2015Q3,SUPPLIES AND MATERIALS,09-18,CITI PCARD-WHO REPRESENTS.COM,07/29/15,08/28/15,PUBLICATIONS/REFERENCE MAT'L,26.97,2015,AP,Accounts payable,00816865,CITI PCARD-WHO REPRESENTS.COM
,OFFICE OF THE MAJORITY LEADER,2015Q3,PERSONNEL COMPENSATION,"","BERRY,TIMOTHY J",07/01/15,09/30/15,CHIEF OF STAFF,"43,125.00",2015,"","","","BERRY,TIMOTHY J"
,OFFICE OF THE MAJORITY LEADER,2015Q3,PERSONNEL COMPENSATION,"","BIEN,CHRISTOPHER A",07/01/15,09/30/15,STAFF ASSISTANT,"7,500.00",2015,"","","","BIEN,CHRISTOPHER A"
,OFFICE OF THE MAJORITY LEADER,2015Q3,PERSONNEL COMPENSATION,"","BORDEN III, R C",07/01/15,09/30/15,DIRECTOR OF OVERSIGHT,750.00,2015,"","","","BORDEN III, R C"
,OFFICE OF THE MAJORITY LEADER,2015Q3,PERSONNEL COMPENSATION,"","BUCHANAN,NATALIE L",07/01/15,09/30/15,DIR OF MEMBER SERVICES,"26,250.00",2015,"","","","BUCHANAN,NATALIE L"
,OFFICE OF THE MAJORITY LEADER,2015Q3,PERSONNEL COMPENSATION,"","BURR,DANIELLE M",07/01/15,09/30/15,DIRECTOR OF EXTERNAL AFFAIRS,"37,500.00",2015,"","","","BURR,DANIELLE M"
,OFFICE OF THE MAJORITY LEADER,2015Q3,PERSONNEL COMPENSATION,"","CAREY,BRITTANY M",07/01/15,09/30/15,EXTERN AFFAIR ASST/ASST TO COS,"12,750.00",2015,"","","","CAREY,BRITTANY M"
,OFFICE OF THE MAJORITY LEADER,2015Q3,PERSONNEL COMPENSATION,"","DIXON, KELLY A",07/01/15,09/30/15,DIR OF LEGISLATIVE OPERATIONS,"28,000.00",2015,"","","","DIXON, KELLY A"
,OFFICE OF THE MAJORITY LEADER,2015Q3,PERSONNEL COMPENSATION,"","DRESSLER,JEFFREY A",07/01/15,09/30/15,SENIOR POLICY ADVISOR,"25,500.00",2015,"","","","DRESSLER,JEFFREY A"
,OFFICE OF THE MAJORITY LEADER,2015Q3,PERSONNEL COMPENSATION,"","GLANCEY,TESSICA M",07/01/15,09/30/15,DIGITAL COORDINATOR,"12,750.00",2015,"","","","GLANCEY,TESSICA M"
,OFFICE OF THE MAJORITY LEADER,2015Q3,PERSONNEL COMPENSATION,"","GOURDIKIAN,ALEXANDRA G",07/01/15,09/30/15,STAFF ASSISTANT,"7,500.00",2015,"","","","GOURDIKIAN,ALEXANDRA G"
,OFFICE OF THE MAJORITY LEADER,2015Q3,PERSONNEL COMPENSATION,"","HENEHAN, EMILY A",07/01/15,09/30/15,SENIOR POLICY ADVISOR,"22,500.00",2015,"","","","HENEHAN, EMILY A"
,OFFICE OF THE MAJORITY LEADER,2015Q3,PERSONNEL COMPENSATION,"","HOWARD,BENJAMIN R",07/01/15,09/30/15,DIRECTOR OF FLOOR OPERATIONS,"21,000.00",2015,"","","","HOWARD,BENJAMIN R"
,OFFICE OF THE MAJORITY LEADER,2015Q3,PERSONNEL COMPENSATION,"","KARR,ELIZABETH B",07/01/15,09/30/15,DEPUTY CHIEF OF STAFF FOR POLI,"42,750.00",2015,"","","","KARR,ELIZABETH B"
,OFFICE OF THE MAJORITY LEADER,2015Q3,PERSONNEL COMPENSATION,"","KLUTTZ,LAWSON T",07/01/15,09/30/15,SPECIAL ASSISTANT,"9,000.00",2015,"","","","KLUTTZ,LAWSON T"
,OFFICE OF THE MAJORITY LEADER,2015Q3,PERSONNEL COMPENSATION,"","LEGANSKI,JOHN G",07/01/15,09/30/15,SHARED EMPLOYEE,"10,000.00",2015,"","","","LEGANSKI,JOHN G"
,OFFICE OF THE MAJORITY LEADER,2015Q3,PERSONNEL COMPENSATION,"","LIRA,MATHEW L",07/01/15,09/30/15,SENIOR ADVISOR,"27,000.00",2015,"","","","LIRA,MATHEW L"
,OFFICE OF THE MAJORITY LEADER,2015Q3,PERSONNEL COMPENSATION,"","LONG,MICHAEL P",07/01/15,09/30/15,COMMUNICATIONS DIRECTOR,"26,250.00",2015,"","","","LONG,MICHAEL P"
,OFFICE OF THE MAJORITY LEADER,2015Q3,PERSONNEL COMPENSATION,"","MAHAN,ROGER A",07/01/15,09/30/15,POLICY ADVISOR,"32,250.00",2015,"","","","MAHAN,ROGER A"
,OFFICE OF THE MAJORITY LEADER,2015Q3,PERSONNEL COMPENSATION,"","MCCLELLAND, WESLEY R",07/01/15,08/06/15,SENIOR POLICY ADVISOR,"9,000.00",2015,"","","","MCCLELLAND, WESLEY R"
,OFFICE OF THE MAJORITY LEADER,2015Q3,PERSONNEL COMPENSATION,"","MCCLELLAND, WESLEY R",08/01/15,08/06/15,SENIOR POLICY ADVISOR (OTHER COMPENSATION),"2,250.00",2015,"","","","MCCLELLAND, WESLEY R"
,OFFICE OF THE MAJORITY LEADER,2015Q3,PERSONNEL COMPENSATION,"","MIN, JAMES B",07/01/15,09/30/15,DEPUTY CHIEF OF STAFF/COUNSEL,"19,500.00",2015,"","","","MIN, JAMES B"
,OFFICE OF THE MAJORITY LEADER,2015Q3,PERSONNEL COMPENSATION,"","SPARKS, MATTHEW E",07/01/15,09/30/15,PRESS SECRETARY,"13,500.00",2015,"","","","SPARKS, MATTHEW E"
,OFFICE OF THE MAJORITY LEADER,2015Q3,PERSONNEL COMPENSATION,"","STIPICEVIC, JOHN A",07/01/15,09/30/15,DEP COS FOR FLOOR AND MEM SERV,"40,500.00",2015,"","","","STIPICEVIC, JOHN A"
,OFFICE OF THE MAJORITY LEADER,2015Q3,PERSONNEL COMPENSATION,"","STIPICEVIC, KRISTIN",07/01/15,09/30/15,EXECUTIVE ASSISTANT,"19,500.00",2015,"","","","STIPICEVIC, KRISTIN"
,OFFICE OF THE MAJORITY LEADER,2015Q3,PERSONNEL COMPENSATION,"","TORRES,ALEC C",07/01/15,09/30/15,COMM AIDE AND SPEECHWRITER,"11,250.00",2015,"","","","TORRES,ALEC C"
,OFFICE OF THE MAJORITY LEADER,2015Q3,TRAVEL,09-17,"DRESSLER, JEFFREY A",09/15/15,09/15/15,TAXI/PARKING/TOLLS,24.00,2015,AP,Accounts payable,E0320927,"DRESSLER, JEFFREY A"
,OFFICE OF THE MAJORITY LEADER,2015Q3,"RENT, COMMUNICATION, UTILITIES",07-07,FEDERAL EXPRESS CORPORATION,06/27/15,07/03/15,POSTAGE / COURIER / BOX RENTAL,8.79,2015,AP,Accounts payable,00801577,FEDERAL EXPRESS CORPORATION
,OFFICE OF THE MAJORITY LEADER,2015Q3,"RENT, COMMUNICATION, UTILITIES",07-20,CITI PCARD-USPS,05/29/15,06/28/15,POSTAGE / COURIER / BOX RENTAL,109.46,2015,AP,Accounts payable,00806198,CITI PCARD-USPS
,OFFICE OF THE MAJORITY LEADER,2015Q3,"RENT, COMMUNICATION, UTILITIES",07-28,FEDERAL EXPRESS CORPORATION,07/11/15,07/17/15,POSTAGE / COURIER / BOX RENTAL,199.09,2015,AP,Accounts payable,00806565,FEDERAL EXPRESS CORPORATION
,OFFICE OF THE MAJORITY LEADER,2015Q3,"RENT, COMMUNICATION, UTILITIES",08-14,FEDERAL EXPRESS CORPORATION,08/01/15,08/07/15,POSTAGE / COURIER / BOX RENTAL,16.16,2015,AP,Accounts payable,00807306,FEDERAL EXPRESS CORPORATION
,OFFICE OF THE MAJORITY LEADER,2015Q3,"RENT, COMMUNICATION, UTILITIES",08-19,FEDERAL EXPRESS CORPORATION,08/08/15,08/14/15,POSTAGE / COURIER / BOX RENTAL,10.15,2015,AP,Accounts payable,00811619,FEDERAL EXPRESS CORPORATION
,OFFICE OF THE MAJORITY LEADER,2015Q3,"RENT, COMMUNICATION, UTILITIES",08-24,FEDERAL EXPRESS CORPORATION,08/15/15,08/21/15,POSTAGE / COURIER / BOX RENTAL,15.70,2015,AP,Accounts payable,00811750,FEDERAL EXPRESS CORPORATION
,OFFICE OF THE MAJORITY LEADER,2015Q3,"RENT, COMMUNICATION, UTILITIES",09-18,CITI PCARD-USPS,07/29/15,08/28/15,POSTAGE / COURIER / BOX RENTAL,98.00,2015,AP,Accounts payable,00816865,CITI PCARD-USPS
,OFFICE OF THE MAJORITY LEADER,2015Q3,"RENT, COMMUNICATION, UTILITIES",09-21,FEDERAL EXPRESS CORPORATION,08/29/15,09/04/15,POSTAGE / COURIER / BOX RENTAL,12.43,2015,AP,Accounts payable,00816952,FEDERAL EXPRESS CORPORATION
,OFFICE OF THE MAJORITY LEADER,2015Q3,"RENT, COMMUNICATION, UTILITIES",09-30,FEDERAL EXPRESS CORPORATION,09/19/15,09/25/15,POSTAGE / COURIER / BOX RENTAL,25.97,2015,AP,Accounts payable,00817346,FEDERAL EXPRESS CORPORATION
,OFFICE OF THE MAJORITY LEADER,2015Q3,PRINTING AND REPRODUCTION,08-26,"",08/01/15,08/31/15,PHOTOGRAPHIC (TRANSFER),12.80,2015,GL,General ledger,PIX0051673,""
,OFFICE OF THE MAJORITY LEADER,2015Q3,OTHER SERVICES,09-23,OUTLAW MEDIA LLC,09/01/15,09/30/15,"WEB DEV HST,EMAIL & RLTD SERV","2,250.00",2015,AP,Accounts payable,E0319699,OUTLAW MEDIA LLC
,OFFICE OF THE MAJORITY LEADER,2015Q3,SUPPLIES AND MATERIALS,07-09,DEER PARK WATER,05/27/15,06/26/15,WATER,335.50,2015,AP,Accounts payable,E0298173,DEER PARK WATER
,OFFICE OF THE MAJORITY LEADER,2015Q3,SUPPLIES AND MATERIALS,07-20,CITI PCARD-CAPITOL HOST (RIDGEWEL,05/29/15,06/28/15,FOOD & BEVERAGE,"1,318.34",2015,AP,Accounts payable,00806198,CITI PCARD-CAPITOL HOST (RIDGEWEL
,OFFICE OF THE MAJORITY LEADER,2015Q3,SUPPLIES AND MATERIALS,07-20,CITI PCARD-CORNER BAKERY,05/29/15,06/28/15,FOOD & BEVERAGE,891.00,2015,AP,Accounts payable,00806198,CITI PCARD-CORNER BAKERY
,OFFICE OF THE MAJORITY LEADER,2015Q3,SUPPLIES AND MATERIALS,07-20,CITI PCARD-D J WALL-ST-JOURNAL,05/29/15,06/28/15,PUBLICATIONS/REFERENCE MAT'L,26.43,2015,AP,Accounts payable,00806198,CITI PCARD-D J WALL-ST-JOURNAL
,OFFICE OF THE MAJORITY LEADER,2015Q3,SUPPLIES AND MATERIALS,07-20,CITI PCARD-FIRST CHOICE - JOE RAG,05/29/15,06/28/15,FOOD & BEVERAGE,898.22,2015,AP,Accounts payable,00806198,CITI PCARD-FIRST CHOICE - JOE RAG
,OFFICE OF THE MAJORITY LEADER,2015Q3,SUPPLIES AND MATERIALS,07-20,CITI PCARD-LA TIMES SUBSCRIPTION,05/29/15,06/28/15,PUBLICATIONS/REFERENCE MAT'L,15.96,2015,AP,Accounts payable,00806198,CITI PCARD-LA TIMES SUBSCRIPTION
,OFFICE OF THE MAJORITY LEADER,2015Q3,SUPPLIES AND MATERIALS,07-20,CITI PCARD-NEW YORK TIMES DIGITAL,05/29/15,06/28/15,PUBLICATIONS/REFERENCE MAT'L,37.01,2015,AP,Accounts payable,00806198,CITI PCARD-NEW YORK TIMES DIGITAL
,OFFICE OF THE MAJORITY LEADER,2015Q3,SUPPLIES AND MATERIALS,07-20,CITI PCARD-SAFEWAY STORE,05/29/15,06/28/15,FOOD & BEVERAGE,4.10,2015,AP,Accounts payable,00806198,CITI PCARD-SAFEWAY STORE
,OFFICE OF THE MAJORITY LEADER,2015Q3,SUPPLIES AND MATERIALS,08-03,"MIN, JAMES B",07/24/15,07/24/15,FOOD & BEVERAGE,29.53,2015,AP,Accounts payable,E0305957,"MIN, JAMES B"
,OFFICE OF THE MAJORITY LEADER,2015Q3,SUPPLIES AND MATERIALS,08-03,"MIN, JAMES B",07/01/15,07/01/15,FOOD & BEVERAGE,426.71,2015,AP,Accounts payable,E0305974,"MIN, JAMES B"
,OFFICE OF THE MAJORITY LEADER,2015Q3,SUPPLIES AND MATERIALS,08-12,DEER PARK,06/30/15,06/30/15,WATER,204.69,2015,AP,Accounts payable,00806946,DEER PARK
,OFFICE OF THE MAJORITY LEADER,2015Q3,SUPPLIES AND MATERIALS,08-19,CITI PCARD-CAPITOL HOST (RIDGEWEL,06/29/15,07/28/15,FOOD & BEVERAGE,"1,337.24",2015,AP,Accounts payable,00811597,CITI PCARD-CAPITOL HOST (RIDGEWEL
,OFFICE OF THE MAJORITY LEADER,2015Q3,SUPPLIES AND MATERIALS,08-19,CITI PCARD-CORNER BAKERY,06/29/15,07/28/15,FOOD & BEVERAGE,"1,188.00",2015,AP,Accounts payable,00811597,CITI PCARD-CORNER BAKERY
,OFFICE OF THE MAJORITY LEADER,2015Q3,SUPPLIES AND MATERIALS,08-19,CITI PCARD-D J WALL-ST-JOURNAL,06/29/15,07/28/15,PUBLICATIONS/REFERENCE MAT'L,26.43,2015,AP,Accounts payable,00811597,CITI PCARD-D J WALL-ST-JOURNAL
,OFFICE OF THE MAJORITY LEADER,2015Q3,SUPPLIES AND MATERIALS,08-19,CITI PCARD-FIRST CHOICE - JOE RAG,06/29/15,07/28/15,FOOD & BEVERAGE,616.41,2015,AP,Accounts payable,00811597,CITI PCARD-FIRST CHOICE - JOE RAG
,OFFICE OF THE MAJORITY LEADER,2015Q3,SUPPLIES AND MATERIALS,08-19,CITI PCARD-HARRIS TEETER,06/29/15,07/28/15,FOOD & BEVERAGE,3.99,2015,AP,Accounts payable,00811597,CITI PCARD-HARRIS TEETER
,OFFICE OF THE MAJORITY LEADER,2015Q3,SUPPLIES AND MATERIALS,08-19,CITI PCARD-LA TIMES SUBSCRIPTION,06/29/15,07/28/15,PUBLICATIONS/REFERENCE MAT'L,31.92,2015,AP,Accounts payable,00811597,CITI PCARD-LA TIMES SUBSCRIPTION
,OFFICE OF THE MAJORITY LEADER,2015Q3,SUPPLIES AND MATERIALS,08-19,CITI PCARD-NEW YORK TIMES DIGITAL,06/29/15,07/28/15,PUBLICATIONS/REFERENCE MAT'L,37.01,2015,AP,Accounts payable,00811597,CITI PCARD-NEW YORK TIMES DIGITAL
,OFFICE OF THE MAJORITY LEADER,2015Q3,SUPPLIES AND MATERIALS,08-19,CITI PCARD-PANIC.COM CODA,06/29/15,07/28/15,SOFTWARE LESS THAN $500,99.00,2015,AP,Accounts payable,00811597,CITI PCARD-PANIC.COM CODA
,OFFICE OF THE MAJORITY LEADER,2015Q3,SUPPLIES AND MATERIALS,08-19,CITI PCARD-PANIC.COM TRANSMIT,06/29/15,07/28/15,SOFTWARE LESS THAN $500,34.00,2015,AP,Accounts payable,00811597,CITI PCARD-PANIC.COM TRANSMIT
,OFFICE OF THE MAJORITY LEADER,2015Q3,SUPPLIES AND MATERIALS,08-28,DEER PARK WATER,06/27/15,07/26/15,WATER,432.29,2015,AP,Accounts payable,E0313432,DEER PARK WATER
,OFFICE OF THE MAJORITY LEADER,2015Q3,SUPPLIES AND MATERIALS,09-01,DEER PARK,07/31/15,07/31/15,WATER,226.70,2015,AP,Accounts payable,00811969,DEER PARK
,OFFICE OF THE MAJORITY LEADER,2015Q3,SUPPLIES AND MATERIALS,09-15,READYREFRESH BY NESTLE,07/27/15,08/26/15,WATER,320.23,2015,AP,Accounts payable,E0319639,READYREFRESH BY NESTLE
,OFFICE OF THE MAJORITY LEADER,2015Q3,SUPPLIES AND MATERIALS,09-18,CITI PCARD-CAPITOL HOST (RIDGEWEL,07/29/15,08/28/15,FOOD & BEVERAGE,681.44,2015,AP,Accounts payable,00816865,CITI PCARD-CAPITOL HOST (RIDGEWEL
,OFFICE OF THE MAJORITY LEADER,2015Q3,SUPPLIES AND MATERIALS,09-18,CITI PCARD-D J WALL-ST-JOURNAL,07/29/15,08/28/15,PUBLICATIONS/REFERENCE MAT'L,26.43,2015,AP,Accounts payable,00816865,CITI PCARD-D J WALL-ST-JOURNAL
,OFFICE OF THE MAJORITY LEADER,2015Q3,SUPPLIES AND MATERIALS,09-18,CITI PCARD-FIRST CHOICE - JOE RAG,07/29/15,08/28/15,FOOD & BEVERAGE,245.88,2015,AP,Accounts payable,00816865,CITI PCARD-FIRST CHOICE - JOE RAG
,OFFICE OF THE MAJORITY LEADER,2015Q3,SUPPLIES AND MATERIALS,09-18,CITI PCARD-LA TIMES SUBSCRIPTION,07/29/15,08/28/15,PUBLICATIONS/REFERENCE MAT'L,15.96,2015,AP,Accounts payable,00816865,CITI PCARD-LA TIMES SUBSCRIPTION
,OFFICE OF THE MAJORITY LEADER,2015Q3,SUPPLIES AND MATERIALS,09-18,CITI PCARD-NEW YORK TIMES DIGITAL,07/29/15,08/28/15,PUBLICATIONS/REFERENCE MAT'L,37.01,2015,AP,Accounts payable,00816865,CITI PCARD-NEW YORK TIMES DIGITAL
,OFFICE OF THE MAJORITY LEADER,2015Q3,SUPPLIES AND MATERIALS,09-24,DEER PARK,08/31/15,08/31/15,WATER,136.75,2015,AP,Accounts payable,00817062,DEER PARK
,OFFICE OF THE MAJORITY LEADER,2015Q3,SUPPLIES AND MATERIALS,08-04,CITIBANK,03/29/14,04/28/14,FOOD & BEVERAGE,-5.02,2014,AR,Accounts receivable,AC-11076,CITIBANK
,OFFICE OF THE MINORITY LEADER,2015Q3,PERSONNEL COMPENSATION,"","ADRIANCE,EDWIN A",07/01/15,08/31/15,PRESS ASSISTANT,"8,416.66",2015,"","","","ADRIANCE,EDWIN A"
,OFFICE OF THE MINORITY LEADER,2015Q3,PERSONNEL COMPENSATION,"","ADRIANCE,EDWIN A",09/01/15,09/30/15,PRESS ADVISOR,"4,208.33",2015,"","","","ADRIANCE,EDWIN A"
,OFFICE OF THE MINORITY LEADER,2015Q3,PERSONNEL COMPENSATION,"","ADRIANCE,EDWIN A",06/01/15,06/30/15,PRESS ASSISTANT (OVERTIME),"1,198.90",2015,"","","","ADRIANCE,EDWIN A"
,OFFICE OF THE MINORITY LEADER,2015Q3,PERSONNEL COMPENSATION,"","AGUILAR,JORGE A",07/01/15,09/30/15,DEPUTY PRESS SECRETARY,"18,750.00",2015,"","","","AGUILAR,JORGE A"
,OFFICE OF THE MINORITY LEADER,2015Q3,PERSONNEL COMPENSATION,"","BERRET,EMILY C",07/01/15,09/30/15,SPECIAL ASST TO THE LEADER,"15,791.67",2015,"","","","BERRET,EMILY C"
,OFFICE OF THE MINORITY LEADER,2015Q3,PERSONNEL COMPENSATION,"","BLOOM, MICHAEL T",07/01/15,07/31/15,DEPUTY POLICY DIRECTOR,"8,333.33",2015,"","","","BLOOM, MICHAEL T"
,OFFICE OF THE MINORITY LEADER,2015Q3,PERSONNEL COMPENSATION,"","BLOOM, MICHAEL T",08/01/15,09/30/15,SENIOR ADVISOR,"16,666.66",2015,"","","","BLOOM, MICHAEL T"
,OFFICE OF THE MINORITY LEADER,2015Q3,PERSONNEL COMPENSATION,"","CAPRON, MARGARET W",07/01/15,09/30/15,SENIOR ADV POLICY & COMM,"33,174.24",2015,"","","","CAPRON, MARGARET W"
,OFFICE OF THE MINORITY LEADER,2015Q3,PERSONNEL COMPENSATION,"","CAYEA,DEVAN W",07/01/15,09/30/15,DEPUTY ASSIST SCHEDULER,"12,624.99",2015,"","","","CAYEA,DEVAN W"
,OFFICE OF THE MINORITY LEADER,2015Q3,PERSONNEL COMPENSATION,"","CHERRY,STEPHANIE",07/01/15,09/30/15,PRESS ADVISOR,"17,962.26",2015,"","","","CHERRY,STEPHANIE"
,OFFICE OF THE MINORITY LEADER,2015Q3,PERSONNEL COMPENSATION,"","CONNELLY,HENRY V",07/01/15,09/30/15,DIRECTOR OF SPEECHWRITING,"20,000.01",2015,"","","","CONNELLY,HENRY V"
,OFFICE OF THE MINORITY LEADER,2015Q3,PERSONNEL COMPENSATION,"","DAY,TAMIKA K",07/01/15,09/30/15,SR STAFF ASST SYS ADMIN,"12,500.01",2015,"","","","DAY,TAMIKA K"
,OFFICE OF THE MINORITY LEADER,2015Q3,PERSONNEL COMPENSATION,"","DEGRAFF, KENNETH B",07/01/15,09/30/15,SENIOR POLICY ADVISOR,"28,749.99",2015,"","","","DEGRAFF, KENNETH B"
,OFFICE OF THE MINORITY LEADER,2015Q3,PERSONNEL COMPENSATION,"","DEVLIN, PATRICK J",07/01/15,09/30/15,COMMUNICATIONS DIRECTOR,"31,250.01",2015,"","","","DEVLIN, PATRICK J"
,OFFICE OF THE MINORITY LEADER,2015Q3,PERSONNEL COMPENSATION,"","DEWHIRST, DIANE",07/01/15,09/30/15,DEPUTY CHIEF OF STAFF,"43,125.00",2015,"","","","DEWHIRST, DIANE"
,OFFICE OF THE MINORITY LEADER,2015Q3,PERSONNEL COMPENSATION,"","DOHERTY,SINEAD G",07/01/15,09/30/15,ADVANCE DEPUTY,"16,250.01",2015,"","","","DOHERTY,SINEAD G"
,OFFICE OF THE MINORITY LEADER,2015Q3,PERSONNEL COMPENSATION,"","EDMONSON, ROBERT D",07/01/15,09/30/15,CHIEF OF STAFF,"17,499.99",2015,"","","","EDMONSON, ROBERT D"
,OFFICE OF THE MINORITY LEADER,2015Q3,PERSONNEL COMPENSATION,"","ELLISON,MATTHEW B",07/01/15,09/30/15,LEGISLATIVE ASSISTANT,"7,500.00",2015,"","","","ELLISON,MATTHEW B"
,OFFICE OF THE MINORITY LEADER,2015Q3,PERSONNEL COMPENSATION,"","ELSHAMI, NADEAM",07/01/15,09/30/15,CHIEF OF STAFF,"43,125.00",2015,"","","","ELSHAMI, NADEAM"
,OFFICE OF THE MINORITY LEADER,2015Q3,PERSONNEL COMPENSATION,"","FISCHER JR, ROBERT V",07/01/15,09/30/15,ASST FLOOR CHIEF,"43,125.00",2015,"","","","FISCHER JR, ROBERT V"
,OFFICE OF THE MINORITY LEADER,2015Q3,PERSONNEL COMPENSATION,"","GEORGE,EVANGELINE M",07/01/15,09/30/15,DEPUTY COMM DIR/PRESS SEC,"31,250.01",2015,"","","","GEORGE,EVANGELINE M"
,OFFICE OF THE MINORITY LEADER,2015Q3,PERSONNEL COMPENSATION,"","GREENER, APRIL L",07/01/15,09/30/15,RESEARCH DIRECTOR,"26,250.00",2015,"","","","GREENER, APRIL L"
,OFFICE OF THE MINORITY LEADER,2015Q3,PERSONNEL COMPENSATION,"","GRIFFIN,TAYLOR T",07/01/15,09/30/15,PRESS ASSISTANT,"8,750.01",2015,"","","","GRIFFIN,TAYLOR T"
,OFFICE OF THE MINORITY LEADER,2015Q3,PERSONNEL COMPENSATION,"","GRIFFIN,TAYLOR T",06/01/15,08/31/15,PRESS ASSISTANT (OVERTIME),"3,623.76",2015,"","","","GRIFFIN,TAYLOR T"
,OFFICE OF THE MINORITY LEADER,2015Q3,PERSONNEL COMPENSATION,"","HAMMILL, ANDREW T",07/01/15,08/31/15,COMM DIR/SENIOR ADVISOR,"28,750.00",2015,"","","","HAMMILL, ANDREW T"
,OFFICE OF THE MINORITY LEADER,2015Q3,PERSONNEL COMPENSATION,"","HAMMILL, ANDREW T",09/01/15,09/30/15,DEPUTY CHIEF OF STAFF,"14,375.00",2015,"","","","HAMMILL, ANDREW T"
,OFFICE OF THE MINORITY LEADER,2015Q3,PERSONNEL COMPENSATION,"","HARTZ, JERRY",07/01/15,09/11/15,DIRECTOR OF FLOOR OPERATIONS,"34,020.83",2015,"","","","HARTZ, JERRY"
,OFFICE OF THE MINORITY LEADER,2015Q3,PERSONNEL COMPENSATION,"","HARTZ, JERRY",09/01/15,09/11/15,DIRECTOR OF FLOOR OPERATIONS (OTHER COMPENSATION),"9,104.17",2015,"","","","HARTZ, JERRY"
,OFFICE OF THE MINORITY LEADER,2015Q3,PERSONNEL COMPENSATION,"","HAYNES JR, WILFRED J",07/01/15,09/30/15,IT DIRECTOR,"24,530.49",2015,"","","","HAYNES JR, WILFRED J"
,OFFICE OF THE MINORITY LEADER,2015Q3,PERSONNEL COMPENSATION,"","KAPLAN,EMMA L",07/01/15,09/30/15,MEMBER SERVICES ASSOCIATE,"12,624.99",2015,"","","","KAPLAN,EMMA L"
,OFFICE OF THE MINORITY LEADER,2015Q3,PERSONNEL COMPENSATION,"","KEATING,ROSE M",07/01/15,09/30/15,ASST FLOOR MANAGER,"31,250.01",2015,"","","","KEATING,ROSE M"
,OFFICE OF THE MINORITY LEADER,2015Q3,PERSONNEL COMPENSATION,"","KEITA,KAMILAH Z",07/01/15,09/30/15,DEPUTY INFOMATION TECH. DIRECT,"22,283.01",2015,"","","","KEITA,KAMILAH Z"
,OFFICE OF THE MINORITY LEADER,2015Q3,PERSONNEL COMPENSATION,"","KUNDANIS, GEORGE",07/01/15,09/30/15,DEPUTY CHIEF OF STAFF,"43,125.00",2015,"","","","KUNDANIS, GEORGE"
,OFFICE OF THE MINORITY LEADER,2015Q3,PERSONNEL COMPENSATION,"","LEE,SERYEUNG",08/11/15,09/30/15,PRESS ASSISTANT,"4,166.67",2015,"","","","LEE,SERYEUNG"
,OFFICE OF THE MINORITY LEADER,2015Q3,PERSONNEL COMPENSATION,"","LEE,SERYEUNG",08/11/15,08/31/15,PRESS ASSISTANT (OVERTIME),292.06,2015,"","","","LEE,SERYEUNG"
,OFFICE OF THE MINORITY LEADER,2015Q3,PERSONNEL COMPENSATION,"","LIZARRAGA, JAIME E",07/01/15,09/30/15,SR ADV & DIR OF MEMBER SVC,"39,905.49",2015,"","","","LIZARRAGA, JAIME E"
,OFFICE OF THE MINORITY LEADER,2015Q3,PERSONNEL COMPENSATION,"","LONG,MICHAEL G",07/01/15,09/30/15,SENIOR ADVISOR,"24,999.99",2015,"","","","LONG,MICHAEL G"
,OFFICE OF THE MINORITY LEADER,2015Q3,PERSONNEL COMPENSATION,"","MANGRUM, PEARL J",07/01/15,09/30/15,FINANCIAL ADMINISTRATOR,"19,875.00",2015,"","","","MANGRUM, PEARL J"
,OFFICE OF THE MINORITY LEADER,2015Q3,PERSONNEL COMPENSATION,"","MCCLELLAND,ETHAN L",07/01/15,09/30/15,DEP DIR OF MEMBER SERVICES,"15,000.00",2015,"","","","MCCLELLAND,ETHAN L"
,OFFICE OF THE MINORITY LEADER,2015Q3,PERSONNEL COMPENSATION,"","MELTZER,RICHARD",07/01/15,09/30/15,POLICY DIRECTOR,"43,125.00",2015,"","","","MELTZER,RICHARD"
,OFFICE OF THE MINORITY LEADER,2015Q3,PERSONNEL COMPENSATION,"","MONGE,KATHERINE S",07/01/15,09/30/15,TAX POLICY ADVISOR,"34,666.67",2015,"","","","MONGE,KATHERINE S"
,OFFICE OF THE MINORITY LEADER,2015Q3,PERSONNEL COMPENSATION,"","NAVARRO,AMY K",07/01/15,09/30/15,ASST TO THE EXECUTIVE OFFICE,"8,250.00",2015,"","","","NAVARRO,AMY K"
,OFFICE OF THE MINORITY LEADER,2015Q3,PERSONNEL COMPENSATION,"","NAVARRO,AMY K",06/01/15,08/31/15,ASST TO THE EXECUTIVE OFFICE (OVERTIME),"3,159.15",2015,"","","","NAVARRO,AMY K"
,OFFICE OF THE MINORITY LEADER,2015Q3,PERSONNEL COMPENSATION,"","O'DONNELL,ROBERT",07/01/15,07/10/15,"CO-DIR, DEM POL & COMM CMTE","3,194.44",2015,"","","","O'DONNELL,ROBERT"
,OFFICE OF THE MINORITY LEADER,2015Q3,PERSONNEL COMPENSATION,"","PALMER,ASHLI S",07/01/15,09/30/15,POLICY DIRECTOR,"32,499.99",2015,"","","","PALMER,ASHLI S"
,OFFICE OF THE MINORITY LEADER,2015Q3,PERSONNEL COMPENSATION,"","PARKER, WYNDEE R",07/01/15,09/30/15,SENIOR POLICY ADVISOR,"43,125.00",2015,"","","","PARKER, WYNDEE R"
,OFFICE OF THE MINORITY LEADER,2015Q3,PERSONNEL COMPENSATION,"","PFEIFFER,AMY M",07/01/15,09/30/15,SENIOR ADVISOR,"24,999.99",2015,"","","","PFEIFFER,AMY M"
,OFFICE OF THE MINORITY LEADER,2015Q3,PERSONNEL COMPENSATION,"","POWELL,LATRICE S",07/01/15,09/30/15,ASSISTANT CLOAKROOM MANAGER,"27,500.01",2015,"","","","POWELL,LATRICE S"
,OFFICE OF THE MINORITY LEADER,2015Q3,PERSONNEL COMPENSATION,"","PRICE, REVA B",07/01/15,09/30/15,OUTREACH DIRECTOR & ADVISOR,"31,924.26",2015,"","","","PRICE, REVA B"
,OFFICE OF THE MINORITY LEADER,2015Q3,PERSONNEL COMPENSATION,"","PRIMUS, WENDELL E",07/01/15,09/30/15,SENIOR POLICY ADVISOR,"43,125.00",2015,"","","","PRIMUS, WENDELL E"
,OFFICE OF THE MINORITY LEADER,2015Q3,PERSONNEL COMPENSATION,"","RICCIO,ANDREA M",07/01/15,09/30/15,DEP DIR DEM POL & COMM CMTE,"23,750.01",2015,"","","","RICCIO,ANDREA M"
,OFFICE OF THE MINORITY LEADER,2015Q3,PERSONNEL COMPENSATION,"","ROBINSON,MALAIKA",07/01/15,09/30/15,DEP DIR OF SPEECHWRITING,"16,250.01",2015,"","","","ROBINSON,MALAIKA"
,OFFICE OF THE MINORITY LEADER,2015Q3,PERSONNEL COMPENSATION,"","ROCHELLE,COURTNEY E",07/01/15,09/30/15,DISTRICT SCHEDULER/EXEC ASSIST,"5,000.01",2015,"","","","ROCHELLE,COURTNEY E"
,OFFICE OF THE MINORITY LEADER,2015Q3,PERSONNEL COMPENSATION,"","SKILES,KATHLEEN J",07/01/15,09/30/15,DIGITAL DIR.& SENIOR ADVISOR,"28,749.99",2015,"","","","SKILES,KATHLEEN J"
,OFFICE OF THE MINORITY LEADER,2015Q3,PERSONNEL COMPENSATION,"","SLATER,SAMANTHA A",07/01/15,09/30/15,EXEC DIR DEM POLICY COMM CMTE,"28,749.99",2015,"","","","SLATER,SAMANTHA A"
,OFFICE OF THE MINORITY LEADER,2015Q3,PERSONNEL COMPENSATION,"","SMITH,KELSEY L",07/01/15,09/30/15,DIR. OF SCHEDULING & ADVANCE,"22,500.00",2015,"","","","SMITH,KELSEY L"
,OFFICE OF THE MINORITY LEADER,2015Q3,PERSONNEL COMPENSATION,"","SURGEON,BINA G",07/01/15,09/30/15,SPECIAL ASST TO THE LEADER,"25,500.00",2015,"","","","SURGEON,BINA G"
,OFFICE OF THE MINORITY LEADER,2015Q3,PERSONNEL COMPENSATION,"","TECKLENBURG, MICHAEL H",07/01/15,09/30/15,COUNSEL,"32,499.99",2015,"","","","TECKLENBURG, MICHAEL H"
,OFFICE OF THE MINORITY LEADER,2015Q3,PERSONNEL COMPENSATION,"","WATKINS, YELBERTON R",07/01/15,09/30/15,CHIEF OF STAFF,"41,250.00",2015,"","","","WATKINS, YELBERTON R"
,OFFICE OF THE MINORITY LEADER,2015Q3,PERSONNEL COMPENSATION,"","WEST,JULIUS L",07/01/15,09/30/15,"ADVISER,MEMBER SERVICES","16,333.34",2015,"","","","WEST,JULIUS L"
,OFFICE OF THE MINORITY LEADER,2015Q3,PERSONNEL COMPENSATION,"","WOLTERS, KATE",07/01/15,07/31/15,PERSONAL ASSISTANT,"11,548.83",2015,"","","","WOLTERS, KATE"
,OFFICE OF THE MINORITY LEADER,2015Q3,PERSONNEL COMPENSATION,"","WOLTERS, KATE",08/01/15,09/30/15,DIRECTOR OF PROTOCOL,"23,514.33",2015,"","","","WOLTERS, KATE"
,OFFICE OF THE MINORITY LEADER,2015Q3,TRAVEL,07-07,CITIBANK GOV CARD SERVICE,06/04/15,06/13/15,TRAVEL SUBSISTENCE,"1,470.63",2015,AP,Accounts payable,E0296269,CITIBANK GOV CARD SERVICE
,OFFICE OF THE MINORITY LEADER,2015Q3,TRAVEL,07-07,"WOLTERS, KATE",06/18/15,06/18/15,TAXI/PARKING/TOLLS,13.88,2015,AP,Accounts payable,E0296274,"WOLTERS, KATE"
,OFFICE OF THE MINORITY LEADER,2015Q3,TRAVEL,07-07,"WOLTERS, KATE",06/23/15,06/28/15,TRAVEL SUBSISTENCE,"2,754.50",2015,AP,Accounts payable,E0296274,"WOLTERS, KATE"
,OFFICE OF THE MINORITY LEADER,2015Q3,TRAVEL,07-13,CITIBANK GOV CARD SERVICE,05/26/15,05/29/15,TRAVEL SUBSISTENCE,"1,443.24",2015,AP,Accounts payable,E0299495,CITIBANK GOV CARD SERVICE
,OFFICE OF THE MINORITY LEADER,2015Q3,TRAVEL,07-13,"MONGE, KATHERINE S",06/05/15,06/05/15,TAXI/PARKING/TOLLS,16.00,2015,AP,Accounts payable,E0299503,"MONGE, KATHERINE S"
,OFFICE OF THE MINORITY LEADER,2015Q3,TRAVEL,07-13,"MONGE, KATHERINE S",06/10/15,06/10/15,TAXI/PARKING/TOLLS,21.00,2015,AP,Accounts payable,E0299503,"MONGE, KATHERINE S"
,OFFICE OF THE MINORITY LEADER,2015Q3,TRAVEL,07-13,"PARKER, WYNDEE R",04/20/15,05/09/15,TRAVEL SUBSISTENCE,470.68,2015,AP,Accounts payable,E0299504,"PARKER, WYNDEE R"
,OFFICE OF THE MINORITY LEADER,2015Q3,TRAVEL,07-13,"PARKER, WYNDEE R",06/25/15,06/27/15,TRAVEL SUBSISTENCE,"1,348.03",2015,AP,Accounts payable,E0299504,"PARKER, WYNDEE R"
,OFFICE OF THE MINORITY LEADER,2015Q3,TRAVEL,07-13,CITIBANK GOV CARD SERVICE,06/09/15,06/28/15,COMMERCIAL TRANSPORTATION,"1,520.62",2015,AP,Accounts payable,E0299506,CITIBANK GOV CARD SERVICE
,OFFICE OF THE MINORITY LEADER,2015Q3,TRAVEL,07-20,"DOHERTY, SINEAD G",06/17/15,06/17/15,TAXI/PARKING/TOLLS,11.71,2015,AP,Accounts payable,E0301459,"DOHERTY, SINEAD G"
,OFFICE OF THE MINORITY LEADER,2015Q3,TRAVEL,07-20,CITIBANK GOV CARD SERVICE,05/27/15,05/27/15,MEALS,14.12,2015,AP,Accounts payable,E0301461,CITIBANK GOV CARD SERVICE
,OFFICE OF THE MINORITY LEADER,2015Q3,TRAVEL,07-28,"SKILES, KATHLEEN J",07/22/15,07/22/15,TAXI/PARKING/TOLLS,25.96,2015,AP,Accounts payable,E0304200,"SKILES, KATHLEEN J"
,OFFICE OF THE MINORITY LEADER,2015Q3,TRAVEL,08-11,"MCCLELLAND, ETHAN L",07/28/15,07/28/15,TAXI/PARKING/TOLLS,15.22,2015,AP,Accounts payable,E0308683,"MCCLELLAND, ETHAN L"
,OFFICE OF THE MINORITY LEADER,2015Q3,TRAVEL,08-11,"BERRET, EMILY C",07/07/15,07/07/15,TAXI/PARKING/TOLLS,10.96,2015,AP,Accounts payable,E0308684,"BERRET, EMILY C"
,OFFICE OF THE MINORITY LEADER,2015Q3,TRAVEL,08-11,"SMITH, KELSEY L",07/28/15,07/28/15,TAXI/PARKING/TOLLS,14.33,2015,AP,Accounts payable,E0308685,"SMITH, KELSEY L"
,OFFICE OF THE MINORITY LEADER,2015Q3,TRAVEL,08-11,"SMITH, KELSEY L",06/12/15,07/10/15,TRAVEL SUBSISTENCE,197.74,2015,AP,Accounts payable,E0308685,"SMITH, KELSEY L"
,OFFICE OF THE MINORITY LEADER,2015Q3,TRAVEL,08-11,CITIBANK GOV CARD SERVICE,07/06/15,07/17/15,COMMERCIAL TRANSPORTATION,854.90,2015,AP,Accounts payable,E0308688,CITIBANK GOV CARD SERVICE
,OFFICE OF THE MINORITY LEADER,2015Q3,TRAVEL,08-11,CITIBANK GOV CARD SERVICE,07/15/15,07/17/15,TRAVEL SUBSISTENCE,"1,719.08",2015,AP,Accounts payable,E0308689,CITIBANK GOV CARD SERVICE
,OFFICE OF THE MINORITY LEADER,2015Q3,TRAVEL,08-11,CITIBANK GOV CARD SERVICE,07/02/15,07/07/15,TRAVEL SUBSISTENCE,37.31,2015,AP,Accounts payable,E0308690,CITIBANK GOV CARD SERVICE
,OFFICE OF THE MINORITY LEADER,2015Q3,TRAVEL,08-11,CITIBANK GOV CARD SERVICE,07/06/15,07/11/15,TRAVEL SUBSISTENCE,"1,797.87",2015,AP,Accounts payable,E0308691,CITIBANK GOV CARD SERVICE
,OFFICE OF THE MINORITY LEADER,2015Q3,TRAVEL,08-11,"DOHERTY, SINEAD G",07/15/15,07/18/15,TRAVEL SUBSISTENCE,147.86,2015,AP,Accounts payable,E0308850,"DOHERTY, SINEAD G"
,OFFICE OF THE MINORITY LEADER,2015Q3,TRAVEL,08-11,"ROCHELLE,COURTNEY",07/16/15,07/29/15,TRAVEL SUBSISTENCE,117.26,2015,AP,Accounts payable,E0308852,"ROCHELLE,COURTNEY"
,OFFICE OF THE MINORITY LEADER,2015Q3,TRAVEL,08-12,"WOLTERS, KATE",07/09/15,07/09/15,TAXI/PARKING/TOLLS,14.65,2015,AP,Accounts payable,E0308686,"WOLTERS, KATE"
,OFFICE OF THE MINORITY LEADER,2015Q3,TRAVEL,08-18,CITIBANK GOV CARD SERVICE,07/11/15,07/11/15,TRAVEL SUBSISTENCE,69.42,2015,AP,Accounts payable,E0310985,CITIBANK GOV CARD SERVICE
,OFFICE OF THE MINORITY LEADER,2015Q3,TRAVEL,08-24,"ROCHELLE,COURTNEY",08/11/15,08/12/15,TRAVEL SUBSISTENCE,73.58,2015,AP,Accounts payable,E0311770,"ROCHELLE,COURTNEY"
,OFFICE OF THE MINORITY LEADER,2015Q3,TRAVEL,09-14,"AGUILAR, JORGE A",08/29/15,08/29/15,TAXI/PARKING/TOLLS,9.75,2015,AP,Accounts payable,E0319311,"AGUILAR, JORGE A"
,OFFICE OF THE MINORITY LEADER,2015Q3,TRAVEL,09-14,"AGUILAR, JORGE A",08/27/15,08/30/15,TRAVEL SUBSISTENCE,193.93,2015,AP,Accounts payable,E0319311,"AGUILAR, JORGE A"
,OFFICE OF THE MINORITY LEADER,2015Q3,TRAVEL,09-14,"SMITH, KELSEY L",08/17/15,08/29/15,TRAVEL SUBSISTENCE,233.37,2015,AP,Accounts payable,E0319312,"SMITH, KELSEY L"
,OFFICE OF THE MINORITY LEADER,2015Q3,TRAVEL,09-14,CITIBANK GOV CARD SERVICE,08/11/15,08/27/15,TRAVEL SUBSISTENCE,"4,764.08",2015,AP,Accounts payable,E0319313,CITIBANK GOV CARD SERVICE
,OFFICE OF THE MINORITY LEADER,2015Q3,TRAVEL,09-14,"BERRET, EMILY C",08/28/15,08/30/15,TRAVEL SUBSISTENCE,48.25,2015,AP,Accounts payable,E0319314,"BERRET, EMILY C"
,OFFICE OF THE MINORITY LEADER,2015Q3,TRAVEL,09-14,CITIBANK GOV CARD SERVICE,08/11/15,08/28/15,TRAVEL SUBSISTENCE,"3,761.96",2015,AP,Accounts payable,E0319500,CITIBANK GOV CARD SERVICE
,OFFICE OF THE MINORITY LEADER,2015Q3,TRAVEL,09-21,CITIBANK GOV CARD SERVICE,08/11/15,08/12/15,TRAVEL SUBSISTENCE,512.57,2015,AP,Accounts payable,E0321922,CITIBANK GOV CARD SERVICE
,OFFICE OF THE MINORITY LEADER,2015Q3,TRAVEL,09-21,CITIBANK GOV CARD SERVICE,07/15/15,07/18/15,TRAVEL SUBSISTENCE,"1,654.09",2015,AP,Accounts payable,E0321923,CITIBANK GOV CARD SERVICE
,OFFICE OF THE MINORITY LEADER,2015Q3,"RENT, COMMUNICATION, UTILITIES",07-13,FEDEX,06/23/15,06/26/15,POSTAGE / COURIER / BOX RENTAL,171.02,2015,AP,Accounts payable,E0299491,FEDEX
,OFFICE OF THE MINORITY LEADER,2015Q3,"RENT, COMMUNICATION, UTILITIES",07-13,FEDEX,06/23/15,06/26/15,POSTAGE / COURIER / BOX RENTAL,48.61,2015,AP,Accounts payable,E0299492,FEDEX
,OFFICE OF THE MINORITY LEADER,2015Q3,"RENT, COMMUNICATION, UTILITIES",07-20,CITI PCARD-TIV TIVO SERVICE,05/29/15,06/28/15,RECORDING (OUTSIDE),48.42,2015,AP,Accounts payable,00806198,CITI PCARD-TIV TIVO SERVICE
,OFFICE OF THE MINORITY LEADER,2015Q3,"RENT, COMMUNICATION, UTILITIES",07-28,FEDEX,07/10/15,07/10/15,POSTAGE / COURIER / BOX RENTAL,3.99,2015,AP,Accounts payable,E0304190,FEDEX
,OFFICE OF THE MINORITY LEADER,2015Q3,"RENT, COMMUNICATION, UTILITIES",07-28,FEDEX,07/10/15,07/10/15,POSTAGE / COURIER / BOX RENTAL,122.00,2015,AP,Accounts payable,E0304191,FEDEX
,OFFICE OF THE MINORITY LEADER,2015Q3,"RENT, COMMUNICATION, UTILITIES",08-11,FEDEX,07/21/15,07/21/15,POSTAGE / COURIER / BOX RENTAL,3.68,2015,AP,Accounts payable,E0308682,FEDEX
,OFFICE OF THE MINORITY LEADER,2015Q3,"RENT, COMMUNICATION, UTILITIES",08-19,CITI PCARD-TIV TIVO SERVICE,06/29/15,07/28/15,UTILITIES,48.42,2015,AP,Accounts payable,00811597,CITI PCARD-TIV TIVO SERVICE
,OFFICE OF THE MINORITY LEADER,2015Q3,"RENT, COMMUNICATION, UTILITIES",08-27,FEDERAL EXPRESS CORP,07/10/15,07/10/15,POSTAGE / COURIER / BOX RENTAL,-75.69,2015,AR,Accounts receivable,AC-11175,FEDERAL EXPRESS CORP
,OFFICE OF THE MINORITY LEADER,2015Q3,"RENT, COMMUNICATION, UTILITIES",09-02,FEDEX,08/13/15,08/13/15,POSTAGE / COURIER / BOX RENTAL,54.23,2015,AP,Accounts payable,E0315160,FEDEX
,OFFICE OF THE MINORITY LEADER,2015Q3,"RENT, COMMUNICATION, UTILITIES",09-14,FEDEX,08/19/15,08/21/15,POSTAGE / COURIER / BOX RENTAL,119.01,2015,AP,Accounts payable,E0319308,FEDEX
,OFFICE OF THE MINORITY LEADER,2015Q3,"RENT, COMMUNICATION, UTILITIES",09-14,FEDEX,08/21/15,08/21/15,POSTAGE / COURIER / BOX RENTAL,21.14,2015,AP,Accounts payable,E0319309,FEDEX
,OFFICE OF THE MINORITY LEADER,2015Q3,"RENT, COMMUNICATION, UTILITIES",09-18,CITI PCARD-TIV TIVO SERVICE,07/29/15,08/28/15,RECORDING (OUTSIDE),48.42,2015,AP,Accounts payable,00816865,CITI PCARD-TIV TIVO SERVICE
,OFFICE OF THE MINORITY LEADER,2015Q3,PRINTING AND REPRODUCTION,07-28,"",07/01/15,07/31/15,PHOTOGRAPHIC (TRANSFER),329.10,2015,GL,General ledger,PIX0050920,""
,OFFICE OF THE MINORITY LEADER,2015Q3,PRINTING AND REPRODUCTION,08-26,"",08/01/15,08/31/15,PHOTOGRAPHIC (TRANSFER),146.00,2015,GL,General ledger,PIX0051673,""
,OFFICE OF THE MINORITY LEADER,2015Q3,PRINTING AND REPRODUCTION,09-23,"",09/01/15,09/30/15,PHOTOGRAPHIC (TRANSFER),175.50,2015,GL,General ledger,PIX0052399,""
,OFFICE OF THE MINORITY LEADER,2015Q3,OTHER SERVICES,07-20,NEAL R GROSS & COMPANY INC,06/02/15,06/02/15,STENOGRAPHIC REPORTING,"1,500.00",2015,AP,Accounts payable,E0301450,NEAL R GROSS & COMPANY INC
,OFFICE OF THE MINORITY LEADER,2015Q3,OTHER SERVICES,07-31,BERNARD RAIMO,07/01/15,07/31/15,CONSULTANT CONTRACT SERVICE,"7,628.00",2015,AP,Accounts payable,E0305647,BERNARD RAIMO
,OFFICE OF THE MINORITY LEADER,2015Q3,OTHER SERVICES,09-02,BERNARD RAIMO,08/01/15,08/31/15,CONSULTANT CONTRACT SERVICE,"7,628.00",2015,AP,Accounts payable,E0315168,BERNARD RAIMO
,OFFICE OF THE MINORITY LEADER,2015Q3,SUPPLIES AND MATERIALS,07-07,CAPITOL HOST,06/17/15,06/17/15,FOOD & BEVERAGE,33.00,2015,AP,Accounts payable,E0296272,CAPITOL HOST
,OFFICE OF THE MINORITY LEADER,2015Q3,SUPPLIES AND MATERIALS,07-07,"WOLTERS, KATE",06/18/15,06/18/15,FOOD & BEVERAGE,12.72,2015,AP,Accounts payable,E0296274,"WOLTERS, KATE"
,OFFICE OF THE MINORITY LEADER,2015Q3,SUPPLIES AND MATERIALS,07-07,"WOLTERS, KATE",06/18/15,06/18/15,PUBLICATIONS/REFERENCE MAT'L,7.00,2015,AP,Accounts payable,E0296274,"WOLTERS, KATE"
,OFFICE OF THE MINORITY LEADER,2015Q3,SUPPLIES AND MATERIALS,07-13,TOULIES EN FLEUR,06/01/15,06/23/15,HABITATION EXPENSE,"1,000.00",2015,AP,Accounts payable,E0299493,TOULIES EN FLEUR
,OFFICE OF THE MINORITY LEADER,2015Q3,SUPPLIES AND MATERIALS,07-13,CAPITOL HOST,06/24/15,06/24/15,FOOD & BEVERAGE,33.00,2015,AP,Accounts payable,E0299498,CAPITOL HOST
,OFFICE OF THE MINORITY LEADER,2015Q3,SUPPLIES AND MATERIALS,07-20,CITI PCARD-CARMINE S,05/29/15,06/28/15,FOOD & BEVERAGE,346.93,2015,AP,Accounts payable,00806198,CITI PCARD-CARMINE S
,OFFICE OF THE MINORITY LEADER,2015Q3,SUPPLIES AND MATERIALS,07-20,CITI PCARD-CVS/PHARMACY,05/29/15,06/28/15,FOOD & BEVERAGE,18.74,2015,AP,Accounts payable,00806198,CITI PCARD-CVS/PHARMACY
,OFFICE OF THE MINORITY LEADER,2015Q3,SUPPLIES AND MATERIALS,07-20,CITI PCARD-DUNKIN,05/29/15,06/28/15,FOOD & BEVERAGE,84.79,2015,AP,Accounts payable,00806198,CITI PCARD-DUNKIN
,OFFICE OF THE MINORITY LEADER,2015Q3,SUPPLIES AND MATERIALS,07-20,CITI PCARD-FIREHOOK - CAPITOL HIL,05/29/15,06/28/15,FOOD & BEVERAGE,72.56,2015,AP,Accounts payable,00806198,CITI PCARD-FIREHOOK - CAPITOL HIL
,OFFICE OF THE MINORITY LEADER,2015Q3,SUPPLIES AND MATERIALS,07-20,CITI PCARD-HUNAN DYNASTY,05/29/15,06/28/15,FOOD & BEVERAGE,151.15,2015,AP,Accounts payable,00806198,CITI PCARD-HUNAN DYNASTY
,OFFICE OF THE MINORITY LEADER,2015Q3,SUPPLIES AND MATERIALS,07-20,CITI PCARD-RA CAPITAL M,05/29/15,06/28/15,FOOD & BEVERAGE,29.22,2015,AP,Accounts payable,00806198,CITI PCARD-RA CAPITAL M
,OFFICE OF THE MINORITY LEADER,2015Q3,SUPPLIES AND MATERIALS,07-20,CITI PCARD-TARGET,05/29/15,06/28/15,FOOD & BEVERAGE,528.32,2015,AP,Accounts payable,00806198,CITI PCARD-TARGET
,OFFICE OF THE MINORITY LEADER,2015Q3,SUPPLIES AND MATERIALS,07-20,CITI PCARD-WHOLEFDS GWU,05/29/15,06/28/15,FOOD & BEVERAGE,153.97,2015,AP,Accounts payable,00806198,CITI PCARD-WHOLEFDS GWU
,OFFICE OF THE MINORITY LEADER,2015Q3,SUPPLIES AND MATERIALS,07-20,CAPITOL HOST,07/08/15,07/08/15,FOOD & BEVERAGE,33.00,2015,AP,Accounts payable,E0301499,CAPITOL HOST
,OFFICE OF THE MINORITY LEADER,2015Q3,SUPPLIES AND MATERIALS,07-28,OCCASIONS CATERERS,07/15/15,07/15/15,FOOD & BEVERAGE,668.10,2015,AP,Accounts payable,E0304188,OCCASIONS CATERERS
,OFFICE OF THE MINORITY LEADER,2015Q3,SUPPLIES AND MATERIALS,07-28,CAPITOL HOST,07/15/15,07/15/15,FOOD & BEVERAGE,66.00,2015,AP,Accounts payable,E0304189,CAPITOL HOST
,OFFICE OF THE MINORITY LEADER,2015Q3,SUPPLIES AND MATERIALS,07-28,CRYSTAL SPRINGS,07/01/15,07/31/15,FOOD & BEVERAGE,82.08,2015,AP,Accounts payable,E0304198,CRYSTAL SPRINGS
,OFFICE OF THE MINORITY LEADER,2015Q3,SUPPLIES AND MATERIALS,07-28,CAPITOL HOST,07/15/15,07/15/15,FOOD & BEVERAGE,33.00,2015,AP,Accounts payable,E0304288,CAPITOL HOST
,OFFICE OF THE MINORITY LEADER,2015Q3,SUPPLIES AND MATERIALS,07-31,TOULIES EN FLEUR,07/07/15,07/27/15,HABITATION EXPENSE,"1,300.00",2015,AP,Accounts payable,E0305648,TOULIES EN FLEUR
,OFFICE OF THE MINORITY LEADER,2015Q3,SUPPLIES AND MATERIALS,08-11,"HAMMILL, ANDREW T",08/02/15,08/02/15,PUBLICATIONS/REFERENCE MAT'L,63.54,2015,AP,Accounts payable,E0308687,"HAMMILL, ANDREW T"
,OFFICE OF THE MINORITY LEADER,2015Q3,SUPPLIES AND MATERIALS,08-11,CAPITOL HOST,07/23/15,07/23/15,FOOD & BEVERAGE,99.00,2015,AP,Accounts payable,E0308859,CAPITOL HOST
,OFFICE OF THE MINORITY LEADER,2015Q3,SUPPLIES AND MATERIALS,08-11,CAPITOL HOST,07/22/15,07/22/15,FOOD & BEVERAGE,49.50,2015,AP,Accounts payable,E0308860,CAPITOL HOST
,OFFICE OF THE MINORITY LEADER,2015Q3,SUPPLIES AND MATERIALS,08-12,"WOLTERS, KATE",07/09/15,07/09/15,FOOD & BEVERAGE,5.75,2015,AP,Accounts payable,E0308686,"WOLTERS, KATE"
,OFFICE OF THE MINORITY LEADER,2015Q3,SUPPLIES AND MATERIALS,08-12,"WOLTERS, KATE",07/09/15,07/09/15,PUBLICATIONS/REFERENCE MAT'L,7.98,2015,AP,Accounts payable,E0308686,"WOLTERS, KATE"
,OFFICE OF THE MINORITY LEADER,2015Q3,SUPPLIES AND MATERIALS,08-12,CAPITOL HOST,07/29/15,07/29/15,FOOD & BEVERAGE,99.00,2015,AP,Accounts payable,E0308858,CAPITOL HOST
,OFFICE OF THE MINORITY LEADER,2015Q3,SUPPLIES AND MATERIALS,08-19,CITI PCARD-DUNKIN #351849 Q,06/29/15,07/28/15,FOOD & BEVERAGE,117.08,2015,AP,Accounts payable,00811597,CITI PCARD-DUNKIN #351849 Q
,OFFICE OF THE MINORITY LEADER,2015Q3,SUPPLIES AND MATERIALS,08-19,CITI PCARD-HARRIS TEETER,06/29/15,07/28/15,FOOD & BEVERAGE,75.79,2015,AP,Accounts payable,00811597,CITI PCARD-HARRIS TEETER
,OFFICE OF THE MINORITY LEADER,2015Q3,SUPPLIES AND MATERIALS,08-19,CITI PCARD-RA CAPITAL M,06/29/15,07/28/15,FOOD & BEVERAGE,53.61,2015,AP,Accounts payable,00811597,CITI PCARD-RA CAPITAL M
,OFFICE OF THE MINORITY LEADER,2015Q3,SUPPLIES AND MATERIALS,08-19,CITI PCARD-STAPLES,06/29/15,07/28/15,OFFICE SUPPLIES (OUTSIDE),560.30,2015,AP,Accounts payable,00811597,CITI PCARD-STAPLES
,OFFICE OF THE MINORITY LEADER,2015Q3,SUPPLIES AND MATERIALS,08-19,CITI PCARD-TARGET,06/29/15,07/28/15,FOOD & BEVERAGE,920.01,2015,AP,Accounts payable,00811597,CITI PCARD-TARGET
,OFFICE OF THE MINORITY LEADER,2015Q3,SUPPLIES AND MATERIALS,08-19,CITI PCARD-US CAPITOL HISTORICAL,06/29/15,07/28/15,OFFICE SUPPLIES (OUTSIDE),"2,215.46",2015,AP,Accounts payable,00811597,CITI PCARD-US CAPITOL HISTORICAL
,OFFICE OF THE MINORITY LEADER,2015Q3,SUPPLIES AND MATERIALS,08-19,CITI PCARD-WHOLEFDS GWU,06/29/15,07/28/15,FOOD & BEVERAGE,139.52,2015,AP,Accounts payable,00811597,CITI PCARD-WHOLEFDS GWU
,OFFICE OF THE MINORITY LEADER,2015Q3,SUPPLIES AND MATERIALS,08-19,CITI PCARD-WHOLEFDS PST,06/29/15,07/28/15,FOOD & BEVERAGE,209.91,2015,AP,Accounts payable,00811597,CITI PCARD-WHOLEFDS PST
,OFFICE OF THE MINORITY LEADER,2015Q3,SUPPLIES AND MATERIALS,08-19,CAPITOL HOST,07/22/15,07/22/15,FOOD & BEVERAGE,33.00,2015,AP,Accounts payable,E0310983,CAPITOL HOST
,OFFICE OF THE MINORITY LEADER,2015Q3,SUPPLIES AND MATERIALS,09-01,OCCASIONS CATERERS,07/22/15,07/22/15,FOOD & BEVERAGE,"12,555.00",2015,AP,Accounts payable,E0315164,OCCASIONS CATERERS
,OFFICE OF THE MINORITY LEADER,2015Q3,SUPPLIES AND MATERIALS,09-02,SOUTHWEST DISTRIBUTION INC,10/01/15,12/31/15,PUBLICATIONS/REFERENCE MAT'L,"3,684.50",2015,AP,Accounts payable,E0315161,SOUTHWEST DISTRIBUTION INC
,OFFICE OF THE MINORITY LEADER,2015Q3,SUPPLIES AND MATERIALS,09-02,BLOOMBERG LP,09/01/15,08/31/16,PUBLICATIONS/REFERENCE MAT'L,"5,940.00",2015,AP,Accounts payable,E0315162,BLOOMBERG LP
,OFFICE OF THE MINORITY LEADER,2015Q3,SUPPLIES AND MATERIALS,09-02,CRYSTAL SPRINGS,07/28/15,07/28/15,WATER,39.95,2015,AP,Accounts payable,E0315165,CRYSTAL SPRINGS
,OFFICE OF THE MINORITY LEADER,2015Q3,SUPPLIES AND MATERIALS,09-18,CITI PCARD-HARRIS TEETER,07/29/15,08/28/15,FOOD & BEVERAGE,23.15,2015,AP,Accounts payable,00816865,CITI PCARD-HARRIS TEETER
,OFFICE OF THE MINORITY LEADER,2015Q3,SUPPLIES AND MATERIALS,09-18,CITI PCARD-WHOLEFDS GWU,07/29/15,08/28/15,FOOD & BEVERAGE,155.56,2015,AP,Accounts payable,00816865,CITI PCARD-WHOLEFDS GWU
,OFFICE OF THE MINORITY LEADER,2015Q3,TRAVEL,07-14,"PARKER, WYNDEE R",01/08/14,12/18/14,TAXI/PARKING/TOLLS,74.00,2014,AP,Accounts payable,E0299490,"PARKER, WYNDEE R"
,OFFICE OF THE MINORITY LEADER,2015Q3,OTHER SERVICES,07-20,NEAL R GROSS & COMPANY INC,07/31/14,07/31/14,STENOGRAPHIC REPORTING,"1,500.00",2014,AP,Accounts payable,E0301458,NEAL R GROSS & COMPANY INC
,OFFICE OF THE MAJORITY WHIP,2015Q3,PERSONNEL COMPENSATION,"","ACORNLEY, MARK A",07/01/15,09/30/15,FINANCIAL ADMINISTRATOR,"3,750.00",2015,"","","","ACORNLEY, MARK A"
,OFFICE OF THE MAJORITY WHIP,2015Q3,PERSONNEL COMPENSATION,"","BECKER,MEGAN E",07/01/15,09/30/15,SCHEDULE COORDINATOR,"13,666.67",2015,"","","","BECKER,MEGAN E"
,OFFICE OF THE MAJORITY WHIP,2015Q3,PERSONNEL COMPENSATION,"","BLACK,WAELSTON T",07/01/15,09/30/15,SPECIAL ASSISTANT,"7,500.00",2015,"","","","BLACK,WAELSTON T"
,OFFICE OF THE MAJORITY WHIP,2015Q3,PERSONNEL COMPENSATION,"","BOND,CHRISTOPHER J",07/01/15,09/30/15,COMMUNICATIONS DIRECTOR,"28,250.01",2015,"","","","BOND,CHRISTOPHER J"
,OFFICE OF THE MAJORITY WHIP,2015Q3,PERSONNEL COMPENSATION,"","BRACE,CONNER W",07/01/15,09/30/15,STAFF ASSISTANT,"9,433.33",2015,"","","","BRACE,CONNER W"
,OFFICE OF THE MAJORITY WHIP,2015Q3,PERSONNEL COMPENSATION,"","BRAVO, MATTHEW",07/01/15,09/30/15,DEPUTY DIRECTOR OF FLOOR OPERA,"23,750.01",2015,"","","","BRAVO, MATTHEW"
,OFFICE OF THE MAJORITY WHIP,2015Q3,PERSONNEL COMPENSATION,"","CAVAZOS,ANDREW J",07/01/15,09/30/15,ASST TO THE CHIEF OF STAFF,"13,625.00",2015,"","","","CAVAZOS,ANDREW J"
,OFFICE OF THE MAJORITY WHIP,2015Q3,PERSONNEL COMPENSATION,"","DELUKE,BRENDEN J",07/01/15,08/31/15,SPECIAL ASSISTANT,"5,833.34",2015,"","","","DELUKE,BRENDEN J"
,OFFICE OF THE MAJORITY WHIP,2015Q3,PERSONNEL COMPENSATION,"","HAMILTON,PARKER",07/01/15,09/30/15,COS TO THE CHIEF DEP WHIP,"30,000.00",2015,"","","","HAMILTON,PARKER"
,OFFICE OF THE MAJORITY WHIP,2015Q3,PERSONNEL COMPENSATION,"","HODGSON,CHRISTOPHER M",07/01/15,09/30/15,FLOOR DIRECTOR,"16,250.01",2015,"","","","HODGSON,CHRISTOPHER M"
,OFFICE OF THE MAJORITY WHIP,2015Q3,PERSONNEL COMPENSATION,"","HORTON, BRETT H",07/01/15,09/30/15,DIR OF FL OPERATIONS & COUNSEL,"29,700.00",2015,"","","","HORTON, BRETT H"
,OFFICE OF THE MAJORITY WHIP,2015Q3,PERSONNEL COMPENSATION,"","HUDAK,KELLEY K",07/01/15,09/30/15,BUSINESS COALITIONS COORD,"23,138.88",2015,"","","","HUDAK,KELLEY K"
,OFFICE OF THE MAJORITY WHIP,2015Q3,PERSONNEL COMPENSATION,"","HUGHES,WILLIAM J",07/01/15,09/30/15,POLICY DIRECTOR,"41,000.01",2015,"","","","HUGHES,WILLIAM J"
,OFFICE OF THE MAJORITY WHIP,2015Q3,PERSONNEL COMPENSATION,"","JEWELL,MATTHEW L",09/01/15,09/30/15,STAFF ASSISTANT,"3,333.33",2015,"","","","JEWELL,MATTHEW L"
,OFFICE OF THE MAJORITY WHIP,2015Q3,PERSONNEL COMPENSATION,"","REISER,MARTIN G",07/01/15,09/30/15,LEGISLATIVE COUNSEL,"41,560.58",2015,"","","","REISER,MARTIN G"
,OFFICE OF THE MAJORITY WHIP,2015Q3,PERSONNEL COMPENSATION,"","REISING,JOHN B",07/01/15,09/30/15,DIRECTOR OF OPERATIONS,"22,500.01",2015,"","","","REISING,JOHN B"
,OFFICE OF THE MAJORITY WHIP,2015Q3,PERSONNEL COMPENSATION,"","RUCKERT,LYNNEL B",07/01/15,09/30/15,CHIEF OF STAFF,"42,825.00",2015,"","","","RUCKERT,LYNNEL B"
,OFFICE OF THE MAJORITY WHIP,2015Q3,PERSONNEL COMPENSATION,"","SADLOSKY,DANIEL J",07/01/15,09/30/15,POLICY ASSISTANT,"15,000.00",2015,"","","","SADLOSKY,DANIEL J"
,OFFICE OF THE MAJORITY WHIP,2015Q3,PERSONNEL COMPENSATION,"","TATUM,THOMAS J",07/01/15,09/30/15,DEPUTY COMMUNICATIONS DIRECTOR,"21,999.99",2015,"","","","TATUM,THOMAS J"
,OFFICE OF THE MAJORITY WHIP,2015Q3,PERSONNEL COMPENSATION,"","TRUEMAN,LAURA",07/01/15,09/30/15,SR. POL ADV & CONSER COAL CORD,"30,000.00",2015,"","","","TRUEMAN,LAURA"
,OFFICE OF THE MAJORITY WHIP,2015Q3,PERSONNEL COMPENSATION,"","WOODARD,JOHN S",07/01/15,09/30/15,STAFF ASSISTANT,"9,433.33",2015,"","","","WOODARD,JOHN S"
,OFFICE OF THE MAJORITY WHIP,2015Q3,PERSONNEL COMPENSATION,"","ZULKOSKY,ERIC T",07/01/15,09/30/15,DIR OF MEMBER SVS & POLICY ADV,"5,000.01",2015,"","","","ZULKOSKY,ERIC T"
,OFFICE OF THE MAJORITY WHIP,2015Q3,TRAVEL,07-15,CITIBANK GOV CARD SERVICE,06/06/15,06/08/15,TRAVEL SUBSISTENCE,474.00,2015,AP,Accounts payable,E0299984,CITIBANK GOV CARD SERVICE
,OFFICE OF THE MAJORITY WHIP,2015Q3,TRAVEL,07-22,"TRUEMAN, LAURA",06/24/15,07/08/15,TAXI/PARKING/TOLLS,35.70,2015,AP,Accounts payable,E0302521,"TRUEMAN, LAURA"
,OFFICE OF THE MAJORITY WHIP,2015Q3,TRAVEL,07-29,"REISING, JOHN BART",04/27/15,05/11/15,TAXI/PARKING/TOLLS,14.57,2015,AP,Accounts payable,E0304681,"REISING, JOHN BART"
,OFFICE OF THE MAJORITY WHIP,2015Q3,TRAVEL,08-07,"HORTON, BRETT H",06/17/15,07/21/15,TAXI/PARKING/TOLLS,176.00,2015,AP,Accounts payable,E0307367,"HORTON, BRETT H"
,OFFICE OF THE MAJORITY WHIP,2015Q3,TRAVEL,08-12,"TRUEMAN, LAURA",07/15/15,07/29/15,TAXI/PARKING/TOLLS,51.54,2015,AP,Accounts payable,E0309003,"TRUEMAN, LAURA"
,OFFICE OF THE MAJORITY WHIP,2015Q3,TRAVEL,09-04,"HUDAK, KELLEY K",05/18/15,08/05/15,TAXI/PARKING/TOLLS,40.29,2015,AP,Accounts payable,E0316344,"HUDAK, KELLEY K"
,OFFICE OF THE MAJORITY WHIP,2015Q3,TRAVEL,09-21,"TRUEMAN, LAURA",08/17/15,08/19/15,MEALS,419.79,2015,AP,Accounts payable,E0321611,"TRUEMAN, LAURA"
,OFFICE OF THE MAJORITY WHIP,2015Q3,TRAVEL,09-21,"TRUEMAN, LAURA",08/24/15,08/24/15,TAXI/PARKING/TOLLS,50.28,2015,AP,Accounts payable,E0321611,"TRUEMAN, LAURA"
,OFFICE OF THE MAJORITY WHIP,2015Q3,TRAVEL,09-21,"TRUEMAN, LAURA",08/16/15,08/20/15,TRAVEL SUBSISTENCE,50.00,2015,AP,Accounts payable,E0321611,"TRUEMAN, LAURA"
,OFFICE OF THE MAJORITY WHIP,2015Q3,TRAVEL,09-21,CITIBANK GOV CARD SERVICE,08/07/15,08/31/15,COMMERCIAL TRANSPORTATION,930.30,2015,AP,Accounts payable,E0321627,CITIBANK GOV CARD SERVICE
,OFFICE OF THE MAJORITY WHIP,2015Q3,TRAVEL,09-21,CITIBANK GOV CARD SERVICE,08/16/15,08/20/15,LODGING,581.44,2015,AP,Accounts payable,E0321627,CITIBANK GOV CARD SERVICE
,OFFICE OF THE MAJORITY WHIP,2015Q3,PRINTING AND REPRODUCTION,07-28,"",07/01/15,07/31/15,PHOTOGRAPHIC (TRANSFER),91.00,2015,GL,General ledger,PIX0050920,""
,OFFICE OF THE MAJORITY WHIP,2015Q3,PRINTING AND REPRODUCTION,07-29,SHARP BUSINESS SYSTEMS,04/01/15,07/10/15,PRINTING & REPRODUCTION,"1,271.76",2015,AP,Accounts payable,E0304675,SHARP BUSINESS SYSTEMS
,OFFICE OF THE MAJORITY WHIP,2015Q3,PRINTING AND REPRODUCTION,09-03,ACCURATE WORD LLC,09/01/15,09/01/15,PRINTING & REPRODUCTION,218.80,2015,AP,Accounts payable,E0316342,ACCURATE WORD LLC
,OFFICE OF THE MAJORITY WHIP,2015Q3,PRINTING AND REPRODUCTION,09-18,CITI PCARD-FEDEXOFFICE,07/29/15,08/28/15,PRINTING & REPRODUCTION,284.00,2015,AP,Accounts payable,00816865,CITI PCARD-FEDEXOFFICE
,OFFICE OF THE MAJORITY WHIP,2015Q3,PRINTING AND REPRODUCTION,09-23,"",09/01/15,09/30/15,PHOTOGRAPHIC (TRANSFER),96.00,2015,GL,General ledger,PIX0052399,""
,OFFICE OF THE MAJORITY WHIP,2015Q3,SUPPLIES AND MATERIALS,07-01,COMMUNITY COFFEE COMPANY LLC,06/15/15,06/15/15,FOOD & BEVERAGE,204.00,2015,AP,Accounts payable,E0295102,COMMUNITY COFFEE COMPANY LLC
,OFFICE OF THE MAJORITY WHIP,2015Q3,SUPPLIES AND MATERIALS,07-01,COMMUNITY COFFEE COMPANY LLC,06/17/15,06/17/15,OFFICE SUPPLIES (OUTSIDE),127.60,2015,AP,Accounts payable,E0295116,COMMUNITY COFFEE COMPANY LLC
,OFFICE OF THE MAJORITY WHIP,2015Q3,SUPPLIES AND MATERIALS,07-15,FIRST CHOICE COFFEE SERVICES,07/07/15,07/07/15,FOOD & BEVERAGE,284.60,2015,AP,Accounts payable,E0300026,FIRST CHOICE COFFEE SERVICES
,OFFICE OF THE MAJORITY WHIP,2015Q3,SUPPLIES AND MATERIALS,07-17,FIRST CHOICE COFFEE SERVICES,07/09/15,07/09/15,FOOD & BEVERAGE,337.19,2015,AP,Accounts payable,E0300943,FIRST CHOICE COFFEE SERVICES
,OFFICE OF THE MAJORITY WHIP,2015Q3,SUPPLIES AND MATERIALS,07-22,FIRST CHOICE COFFEE SERVICES,07/16/15,07/16/15,FOOD & BEVERAGE,456.00,2015,AP,Accounts payable,E0302512,FIRST CHOICE COFFEE SERVICES
,OFFICE OF THE MAJORITY WHIP,2015Q3,SUPPLIES AND MATERIALS,07-29,FIRST CHOICE COFFEE SERVICES,07/23/15,07/23/15,FOOD & BEVERAGE,412.70,2015,AP,Accounts payable,E0304726,FIRST CHOICE COFFEE SERVICES
,OFFICE OF THE MAJORITY WHIP,2015Q3,SUPPLIES AND MATERIALS,08-12,FIRST CHOICE COFFEE SERVICES,07/31/15,07/31/15,FOOD & BEVERAGE,25.90,2015,AP,Accounts payable,E0309012,FIRST CHOICE COFFEE SERVICES
,OFFICE OF THE MINORITY WHIP,2015Q3,PERSONNEL COMPENSATION,"","ABOUCHAR, KEITH S",07/01/15,09/30/15,SENIOR POLICY ADVISOR,"35,000.01",2015,"","","","ABOUCHAR, KEITH S"
,OFFICE OF THE MINORITY WHIP,2015Q3,PERSONNEL COMPENSATION,"","AVILES,DANIELLE R",07/01/15,09/30/15,FLOOR ASSISTANT,"15,416.67",2015,"","","","AVILES,DANIELLE R"
,OFFICE OF THE MINORITY WHIP,2015Q3,PERSONNEL COMPENSATION,"","COBIA, LINDSEY G",07/01/15,08/21/15,EXECUTIVE ASST OFFICE MANAGER,"7,250.00",2015,"","","","COBIA, LINDSEY G"
,OFFICE OF THE MINORITY WHIP,2015Q3,PERSONNEL COMPENSATION,"","COLLINS, MICHAEL E",07/01/15,09/30/15,CHIEF DEPUTY WHIP,"10,625.01",2015,"","","","COLLINS, MICHAEL E"
,OFFICE OF THE MINORITY WHIP,2015Q3,PERSONNEL COMPENSATION,"","CORTINA,JOSEPH B",07/01/15,09/30/15,STAFF ASSISTANT,"6,249.99",2015,"","","","CORTINA,JOSEPH B"
,OFFICE OF THE MINORITY WHIP,2015Q3,PERSONNEL COMPENSATION,"","CORTINA,JOSEPH B",06/01/15,07/31/15,STAFF ASSISTANT (OVERTIME),"2,397.81",2015,"","","","CORTINA,JOSEPH B"
,OFFICE OF THE MINORITY WHIP,2015Q3,PERSONNEL COMPENSATION,"","COVEY-BRANDT, ALEXIS",07/01/15,09/30/15,CHIEF OF STAFF,"43,125.00",2015,"","","","COVEY-BRANDT, ALEXIS"
,OFFICE OF THE MINORITY WHIP,2015Q3,PERSONNEL COMPENSATION,"","DWYER, STEPHEN",07/01/15,09/30/15,DIGITAL DIR & POLICY ADV,"16,416.67",2015,"","","","DWYER, STEPHEN"
,OFFICE OF THE MINORITY WHIP,2015Q3,PERSONNEL COMPENSATION,"","FRY,COURTNEY",07/01/15,09/30/15,DEP OUTREACH DIR & MEM SER ADV,"26,250.00",2015,"","","","FRY,COURTNEY"
,OFFICE OF THE MINORITY WHIP,2015Q3,PERSONNEL COMPENSATION,"","GOFF,SHUWANZA R",07/01/15,09/30/15,FLOOR DIRECTOR,"26,250.00",2015,"","","","GOFF,SHUWANZA R"
,OFFICE OF THE MINORITY WHIP,2015Q3,PERSONNEL COMPENSATION,"","GRANT,KATHRYN L",07/01/15,09/30/15,COMM DIR AND SR ADVISOR,"31,250.01",2015,"","","","GRANT,KATHRYN L"
,OFFICE OF THE MINORITY WHIP,2015Q3,PERSONNEL COMPENSATION,"","LEUSCHEN, JAMES P",07/01/15,09/30/15,SENIOR POLICY ADVISOR,"35,000.01",2015,"","","","LEUSCHEN, JAMES P"
,OFFICE OF THE MINORITY WHIP,2015Q3,PERSONNEL COMPENSATION,"","MACDONALD,CHARLENE",07/01/15,09/30/15,SENIOR POLICY ADVISOR,"30,000.00",2015,"","","","MACDONALD,CHARLENE"
,OFFICE OF THE MINORITY WHIP,2015Q3,PERSONNEL COMPENSATION,"","MAHR,THOMAS",07/01/15,09/30/15,POLICY DIRECTOR,"39,999.99",2015,"","","","MAHR,THOMAS"
,OFFICE OF THE MINORITY WHIP,2015Q3,PERSONNEL COMPENSATION,"","MARTINEZ, JAVIER D",07/01/15,09/30/15,DEP DIR OF MBR SERV & OUTR ADV,"18,750.00",2015,"","","","MARTINEZ, JAVIER D"
,OFFICE OF THE MINORITY WHIP,2015Q3,PERSONNEL COMPENSATION,"","MITTLER,MICHELLE",07/01/15,09/30/15,DIR OF SCHEDLNG & SPEC EVENTS,"18,333.33",2015,"","","","MITTLER,MICHELLE"
,OFFICE OF THE MINORITY WHIP,2015Q3,PERSONNEL COMPENSATION,"","REPKO,MARY F",07/01/15,09/30/15,SENIOR POLICY ADVISOR,"35,000.01",2015,"","","","REPKO,MARY F"
,OFFICE OF THE MINORITY WHIP,2015Q3,PERSONNEL COMPENSATION,"","ROMICK, BRIAN",07/01/15,09/30/15,WHIP DIR AND SENIOR ADVISOR,"42,500.01",2015,"","","","ROMICK, BRIAN"
,OFFICE OF THE MINORITY WHIP,2015Q3,PERSONNEL COMPENSATION,"","ROWE,DEBORAH M",07/01/15,07/31/15,STAFF ASSISTANT,"2,083.33",2015,"","","","ROWE,DEBORAH M"
,OFFICE OF THE MINORITY WHIP,2015Q3,PERSONNEL COMPENSATION,"","ROWE,DEBORAH M",08/01/15,09/30/15,EXECUTIVE ASSISTANT/OFC MGR,"5,333.34",2015,"","","","ROWE,DEBORAH M"
,OFFICE OF THE MINORITY WHIP,2015Q3,PERSONNEL COMPENSATION,"","ROWE,DEBORAH M",06/01/15,07/31/15,STAFF ASSISTANT (OVERTIME),"2,055.27",2015,"","","","ROWE,DEBORAH M"
,OFFICE OF THE MINORITY WHIP,2015Q3,PERSONNEL COMPENSATION,"","ROWE,DEBORAH M",08/01/15,08/31/15,EXECUTIVE ASSISTANT/OFC MGR (OVERTIME),"1,153.83",2015,"","","","ROWE,DEBORAH M"
,OFFICE OF THE MINORITY WHIP,2015Q3,PERSONNEL COMPENSATION,"","SAEZ,MARIEL S",07/01/15,09/30/15,PRESS SECRETARY,"17,250.00",2015,"","","","SAEZ,MARIEL S"
,OFFICE OF THE MINORITY WHIP,2015Q3,PERSONNEL COMPENSATION,"","SALAZAR, RAYMOND J",07/01/15,07/31/15,SPECIAL ASSISTANT,"3,750.00",2015,"","","","SALAZAR, RAYMOND J"
,OFFICE OF THE MINORITY WHIP,2015Q3,PERSONNEL COMPENSATION,"","SALAZAR, RAYMOND J",08/01/15,09/30/15,SPECIAL ASST AND PROJECT COORD,"8,406.66",2015,"","","","SALAZAR, RAYMOND J"
,OFFICE OF THE MINORITY WHIP,2015Q3,PERSONNEL COMPENSATION,"","SILVERBERG,DANIEL I",07/01/15,09/30/15,SENIOR POLICY ADVISOR,"17,750.01",2015,"","","","SILVERBERG,DANIEL I"
,OFFICE OF THE MINORITY WHIP,2015Q3,PERSONNEL COMPENSATION,"","VALES,TARA J",07/01/15,09/30/15,PRESS AND RESEARCH ASSISTANT,"10,036.67",2015,"","","","VALES,TARA J"
,OFFICE OF THE MINORITY WHIP,2015Q3,PERSONNEL COMPENSATION,"","VEAL,LATOYA S",07/01/15,09/30/15,MARYLAND PRESS SECRETARY,"12,249.99",2015,"","","","VEAL,LATOYA S"
,OFFICE OF THE MINORITY WHIP,2015Q3,PERSONNEL COMPENSATION,"","WEISSMANN, ADAM",07/01/15,09/30/15,SPEECHWRITER,"18,750.00",2015,"","","","WEISSMANN, ADAM"
,OFFICE OF THE MINORITY WHIP,2015Q3,TRAVEL,07-01,SLIVERBERG DANIEL L,05/05/15,05/05/15,TAXI/PARKING/TOLLS,16.96,2015,AP,Accounts payable,E0294777,SLIVERBERG DANIEL L
,OFFICE OF THE MINORITY WHIP,2015Q3,TRAVEL,07-01,SLIVERBERG DANIEL L,04/20/15,04/20/15,TAXI/PARKING/TOLLS,15.36,2015,AP,Accounts payable,E0294824,SLIVERBERG DANIEL L
,OFFICE OF THE MINORITY WHIP,2015Q3,TRAVEL,07-01,SLIVERBERG DANIEL L,05/05/15,05/05/15,TAXI/PARKING/TOLLS,15.55,2015,AP,Accounts payable,E0294828,SLIVERBERG DANIEL L
,OFFICE OF THE MINORITY WHIP,2015Q3,TRAVEL,07-01,SLIVERBERG DANIEL L,04/20/15,04/20/15,TAXI/PARKING/TOLLS,9.36,2015,AP,Accounts payable,E0294830,SLIVERBERG DANIEL L
,OFFICE OF THE MINORITY WHIP,2015Q3,TRAVEL,08-06,"COBIA, LINDSEY G",07/09/15,07/09/15,TAXI/PARKING/TOLLS,8.99,2015,AP,Accounts payable,E0307295,"COBIA, LINDSEY G"
,OFFICE OF THE MINORITY WHIP,2015Q3,TRAVEL,08-06,"ROWE, DEBORAH M",07/10/15,07/10/15,TAXI/PARKING/TOLLS,5.05,2015,AP,Accounts payable,E0307299,"ROWE, DEBORAH M"
,OFFICE OF THE MINORITY WHIP,2015Q3,TRAVEL,08-06,"ROWE, DEBORAH M",07/23/15,07/23/15,TAXI/PARKING/TOLLS,10.69,2015,AP,Accounts payable,E0307306,"ROWE, DEBORAH M"
,OFFICE OF THE MINORITY WHIP,2015Q3,TRAVEL,08-06,"FRY,COURTNEY",06/17/15,06/17/15,TAXI/PARKING/TOLLS,25.00,2015,AP,Accounts payable,E0307315,"FRY,COURTNEY"
,OFFICE OF THE MINORITY WHIP,2015Q3,TRAVEL,08-07,"ROWE, DEBORAH M",07/09/15,07/09/15,TAXI/PARKING/TOLLS,9.79,2015,AP,Accounts payable,E0307296,"ROWE, DEBORAH M"
,OFFICE OF THE MINORITY WHIP,2015Q3,TRAVEL,08-07,"ROWE, DEBORAH M",07/16/15,07/16/15,TAXI/PARKING/TOLLS,10.39,2015,AP,Accounts payable,E0307309,"ROWE, DEBORAH M"
,OFFICE OF THE MINORITY WHIP,2015Q3,TRAVEL,09-15,"AVILES,DANIELLE R",09/02/15,09/02/15,TAXI/PARKING/TOLLS,13.00,2015,AP,Accounts payable,E0319653,"AVILES,DANIELLE R"
,OFFICE OF THE MINORITY WHIP,2015Q3,TRAVEL,09-15,"ROWE, DEBORAH M",09/10/15,09/10/15,TAXI/PARKING/TOLLS,10.50,2015,AP,Accounts payable,E0319655,"ROWE, DEBORAH M"
,OFFICE OF THE MINORITY WHIP,2015Q3,TRAVEL,09-15,"AVILES,DANIELLE R",09/10/15,09/10/15,TAXI/PARKING/TOLLS,13.00,2015,AP,Accounts payable,E0319656,"AVILES,DANIELLE R"
,OFFICE OF THE MINORITY WHIP,2015Q3,TRAVEL,09-15,"FRY,COURTNEY",09/02/15,09/02/15,TAXI/PARKING/TOLLS,8.70,2015,AP,Accounts payable,E0319658,"FRY,COURTNEY"
,OFFICE OF THE MINORITY WHIP,2015Q3,TRAVEL,09-15,"CORTINA, JOSEPH B",09/08/15,09/08/15,TAXI/PARKING/TOLLS,18.29,2015,AP,Accounts payable,E0319660,"CORTINA, JOSEPH B"
,OFFICE OF THE MINORITY WHIP,2015Q3,TRAVEL,09-17,"FRY,COURTNEY",09/02/15,09/02/15,TAXI/PARKING/TOLLS,11.36,2015,AP,Accounts payable,E0319646,"FRY,COURTNEY"
,OFFICE OF THE MINORITY WHIP,2015Q3,"RENT, COMMUNICATION, UTILITIES",07-20,CITI PCARD-USPS,05/29/15,06/28/15,POSTAGE / COURIER / BOX RENTAL,5.75,2015,AP,Accounts payable,00806198,CITI PCARD-USPS
,OFFICE OF THE MINORITY WHIP,2015Q3,OTHER SERVICES,07-20,CITI PCARD-LUSTRE CLEANERS & FORM,05/29/15,06/28/15,LAUNDRY SERVICES,29.71,2015,AP,Accounts payable,00806198,CITI PCARD-LUSTRE CLEANERS & FORM
,OFFICE OF THE MINORITY WHIP,2015Q3,OTHER SERVICES,07-20,CITI PCARD-USPS,05/29/15,06/28/15,MISCELLANEOUS OTHER SERVICES,37.95,2015,AP,Accounts payable,00806198,CITI PCARD-USPS
,OFFICE OF THE MINORITY WHIP,2015Q3,OTHER SERVICES,08-10,JACKSON RIVER LLC,07/01/15,07/31/15,"WEB DEV HST,EMAIL & RLTD SERV","6,600.00",2015,AP,Accounts payable,E0308011,JACKSON RIVER LLC
,OFFICE OF THE MINORITY WHIP,2015Q3,OTHER SERVICES,09-02,JACKSON RIVER LLC,07/01/15,07/31/15,"WEB DEV HST,EMAIL & RLTD SERV","-6,600.00",2015,AP,Accounts payable,00812132,JACKSON RIVER LLC
,DEMOCRATIC CAUCUS,2015Q3,PERSONNEL COMPENSATION,"","ALVI,HINA R",07/01/15,09/30/15,SHARED EMPLOYEE,"7,500.00",2015,"","","","ALVI,HINA R"
,DEMOCRATIC CAUCUS,2015Q3,PERSONNEL COMPENSATION,"","ATTAPIT,SIRAT",07/01/15,09/30/15,SENIOR POLICY COUNSEL,"16,749.99",2015,"","","","ATTAPIT,SIRAT"
,DEMOCRATIC CAUCUS,2015Q3,PERSONNEL COMPENSATION,"","AVERY,SAMUEL R",07/01/15,09/30/15,PRESS ASSISTANT,"10,125.00",2015,"","","","AVERY,SAMUEL R"
,DEMOCRATIC CAUCUS,2015Q3,PERSONNEL COMPENSATION,"","BACKEMEYER,COURTNEY G",07/01/15,09/30/15,COMMUNICTNS DIR TO VICE CHRMN,"8,000.01",2015,"","","","BACKEMEYER,COURTNEY G"
,DEMOCRATIC CAUCUS,2015Q3,PERSONNEL COMPENSATION,"","CARRILLO,MANUEL J",07/01/15,09/30/15,OPERATIONS AND EVENTS COOR,"14,250.00",2015,"","","","CARRILLO,MANUEL J"
,DEMOCRATIC CAUCUS,2015Q3,PERSONNEL COMPENSATION,"","CASEY, KEVIN",07/01/15,09/30/15,POLICY DIRECTOR / VICE CHAIR,"21,750.00",2015,"","","","CASEY, KEVIN"
,DEMOCRATIC CAUCUS,2015Q3,PERSONNEL COMPENSATION,"","DAVALOS,LETICIA M",07/01/15,09/30/15,ADVISOR FOR MBR. SERVICES,"10,500.00",2015,"","","","DAVALOS,LETICIA M"
,DEMOCRATIC CAUCUS,2015Q3,PERSONNEL COMPENSATION,"","DELANEY, ERIC L",07/01/15,09/30/15,SR. ADVISOR FOR MBR SERV,"13,500.00",2015,"","","","DELANEY, ERIC L"
,DEMOCRATIC CAUCUS,2015Q3,PERSONNEL COMPENSATION,"","GOLDFARB,SARAH L",07/22/15,09/30/15,COMMUNICATIONS DIRECTOR,"16,966.12",2015,"","","","GOLDFARB,SARAH L"
,DEMOCRATIC CAUCUS,2015Q3,PERSONNEL COMPENSATION,"","HANDVERGER,MATTHEW E",07/01/15,09/30/15,NEW MEDIA PRESS SECRETARY,"10,749.99",2015,"","","","HANDVERGER,MATTHEW E"
,DEMOCRATIC CAUCUS,2015Q3,PERSONNEL COMPENSATION,"","KEATING, KATHERINE E",07/01/15,09/30/15,SHARED EMPLOYEE,"18,999.99",2015,"","","","KEATING, KATHERINE E"
,DEMOCRATIC CAUCUS,2015Q3,PERSONNEL COMPENSATION,"","MARGOWSKY,MIRANDA K",07/01/15,09/30/15,PRESS SECRETARY,"12,500.01",2015,"","","","MARGOWSKY,MIRANDA K"
,DEMOCRATIC CAUCUS,2015Q3,PERSONNEL COMPENSATION,"","MARTINEZ,GRISELLA M",07/01/15,09/30/15,POLICY DIRECTOR,"20,250.00",2015,"","","","MARTINEZ,GRISELLA M"
,DEMOCRATIC CAUCUS,2015Q3,PERSONNEL COMPENSATION,"","MCCLUSKIE,SEAN E",07/01/15,09/30/15,CHIEF OF STAFF,"42,825.00",2015,"","","","MCCLUSKIE,SEAN E"
,DEMOCRATIC CAUCUS,2015Q3,PERSONNEL COMPENSATION,"","NORIEGA,EMILY J",07/01/15,09/30/15,STAFF ASSISTANT,"6,999.99",2015,"","","","NORIEGA,EMILY J"
,DEMOCRATIC CAUCUS,2015Q3,PERSONNEL COMPENSATION,"","NORIEGA,EMILY J",06/01/15,08/31/15,STAFF ASSISTANT (OVERTIME),873.31,2015,"","","","NORIEGA,EMILY J"
,DEMOCRATIC CAUCUS,2015Q3,PERSONNEL COMPENSATION,"","PEREZ-SANCHEZ,NOEL",07/01/15,09/30/15,ADVISOR FOR MBR. SERVICES,"11,250.00",2015,"","","","PEREZ-SANCHEZ,NOEL"
,DEMOCRATIC CAUCUS,2015Q3,PERSONNEL COMPENSATION,"","RODRIGUEZ-CIAMPOLI,FABIOLA",07/01/15,09/30/15,EXECUTIVE DIRECTOR,"36,249.99",2015,"","","","RODRIGUEZ-CIAMPOLI,FABIOLA"
,DEMOCRATIC CAUCUS,2015Q3,PERSONNEL COMPENSATION,"","SACHSE,ANDREW M",07/01/15,09/30/15,STAFF ASSISTANT,"8,750.01",2015,"","","","SACHSE,ANDREW M"
,DEMOCRATIC CAUCUS,2015Q3,PERSONNEL COMPENSATION,"","SHARMA,MOH R",07/01/15,09/30/15,POLICY ADVISOR,"12,262.50",2015,"","","","SHARMA,MOH R"
,DEMOCRATIC CAUCUS,2015Q3,PERSONNEL COMPENSATION,"","SHEFFEY,TRE'SHONDA S",07/01/15,09/30/15,STAFF ASSISTANT,"6,999.99",2015,"","","","SHEFFEY,TRE'SHONDA S"
,DEMOCRATIC CAUCUS,2015Q3,PERSONNEL COMPENSATION,"","SHEFFEY,TRE'SHONDA S",06/01/15,07/31/15,STAFF ASSISTANT (OVERTIME),908.65,2015,"","","","SHEFFEY,TRE'SHONDA S"
,DEMOCRATIC CAUCUS,2015Q3,PERSONNEL COMPENSATION,"","WOODRUM,JEREMY S",07/01/15,09/30/15,"LEGISLATIVE DIR., VICE CHAIR","10,749.99",2015,"","","","WOODRUM,JEREMY S"
,DEMOCRATIC CAUCUS,2015Q3,TRAVEL,07-13,"CARRILLO, MANUEL J",06/29/15,06/29/15,TAXI/PARKING/TOLLS,1.70,2015,AP,Accounts payable,E0299079,"CARRILLO, MANUEL J"
,DEMOCRATIC CAUCUS,2015Q3,TRAVEL,07-13,"NORIEGA, EMILY J",06/12/15,06/12/15,TAXI/PARKING/TOLLS,18.65,2015,AP,Accounts payable,E0299085,"NORIEGA, EMILY J"
,DEMOCRATIC CAUCUS,2015Q3,TRAVEL,07-13,"DELANEY, ERIC",06/29/15,07/01/15,CAR RENTAL,393.41,2015,AP,Accounts payable,E0299088,"DELANEY, ERIC"
,DEMOCRATIC CAUCUS,2015Q3,TRAVEL,07-13,"DELANEY, ERIC",06/29/15,07/01/15,GASOLINE,56.53,2015,AP,Accounts payable,E0299088,"DELANEY, ERIC"
,DEMOCRATIC CAUCUS,2015Q3,TRAVEL,09-14,"CARRILLO, MANUEL J",09/02/15,09/02/15,CAR RENTAL,235.89,2015,AP,Accounts payable,E0319407,"CARRILLO, MANUEL J"
,DEMOCRATIC CAUCUS,2015Q3,TRANSPORTATION OF THINGS,08-19,CITI PCARD-UPS AD,06/29/15,07/28/15,FREIGHT CHARGES,334.82,2015,AP,Accounts payable,00811597,CITI PCARD-UPS AD
,DEMOCRATIC CAUCUS,2015Q3,"RENT, COMMUNICATION, UTILITIES",07-20,CITI PCARD-THE UPS STORE,05/29/15,06/28/15,POSTAGE / COURIER / BOX RENTAL,268.78,2015,AP,Accounts payable,00806198,CITI PCARD-THE UPS STORE
,DEMOCRATIC CAUCUS,2015Q3,"RENT, COMMUNICATION, UTILITIES",08-25,UNITED PARCEL SERVICE,08/04/15,08/05/15,POSTAGE / COURIER / BOX RENTAL,47.20,2015,AP,Accounts payable,E0312629,UNITED PARCEL SERVICE
,DEMOCRATIC CAUCUS,2015Q3,OTHER SERVICES,07-20,CITI PCARD-CLASSICLEANERS-LONGWOR,05/29/15,06/28/15,LAUNDRY SERVICES,62.97,2015,AP,Accounts payable,00806198,CITI PCARD-CLASSICLEANERS-LONGWOR
,DEMOCRATIC CAUCUS,2015Q3,OTHER SERVICES,08-19,CITI PCARD-CLASSICLEANERS-LONGWOR,06/29/15,07/28/15,LAUNDRY SERVICES,153.95,2015,AP,Accounts payable,00811597,CITI PCARD-CLASSICLEANERS-LONGWOR
,DEMOCRATIC CAUCUS,2015Q3,SUPPLIES AND MATERIALS,07-13,"RODRIGUEZ-CIAMPOLI,FABIOLA",06/11/15,06/11/15,FOOD & BEVERAGE,157.62,2015,AP,Accounts payable,E0299073,"RODRIGUEZ-CIAMPOLI,FABIOLA"
,DEMOCRATIC CAUCUS,2015Q3,SUPPLIES AND MATERIALS,07-20,CITI PCARD-BETHESDA BAGELS OF DUP,05/29/15,06/28/15,FOOD & BEVERAGE,"2,691.92",2015,AP,Accounts payable,00806198,CITI PCARD-BETHESDA BAGELS OF DUP
,DEMOCRATIC CAUCUS,2015Q3,SUPPLIES AND MATERIALS,07-20,CITI PCARD-HARRIS TEETER,05/29/15,06/28/15,FOOD & BEVERAGE,"1,556.90",2015,AP,Accounts payable,00806198,CITI PCARD-HARRIS TEETER
,DEMOCRATIC CAUCUS,2015Q3,SUPPLIES AND MATERIALS,07-20,CITI PCARD-LA TIMES SUBSCRIPTION,05/29/15,06/28/15,PUBLICATIONS/REFERENCE MAT'L,11.96,2015,AP,Accounts payable,00806198,CITI PCARD-LA TIMES SUBSCRIPTION
,DEMOCRATIC CAUCUS,2015Q3,SUPPLIES AND MATERIALS,07-20,CITI PCARD-MAILCHIMP,05/29/15,06/28/15,PUBLICATIONS/REFERENCE MAT'L,30.00,2015,AP,Accounts payable,00806198,CITI PCARD-MAILCHIMP
,DEMOCRATIC CAUCUS,2015Q3,SUPPLIES AND MATERIALS,07-20,CITI PCARD-WHOLEFDS PST,05/29/15,06/28/15,FOOD & BEVERAGE,6.99,2015,AP,Accounts payable,00806198,CITI PCARD-WHOLEFDS PST
,DEMOCRATIC CAUCUS,2015Q3,SUPPLIES AND MATERIALS,07-31,VOCUS INC,08/01/15,12/31/16,PUBLICATIONS/REFERENCE MAT'L,"6,800.00",2015,AP,Accounts payable,00806768,VOCUS INC
,DEMOCRATIC CAUCUS,2015Q3,SUPPLIES AND MATERIALS,08-12,DEER PARK,06/30/15,06/30/15,WATER,29.99,2015,AP,Accounts payable,00806946,DEER PARK
,DEMOCRATIC CAUCUS,2015Q3,SUPPLIES AND MATERIALS,08-19,CITI PCARD-ADOBE CREATIVE CLOUD,06/29/15,07/28/15,OFFICE SUPPLIES (OUTSIDE),52.86,2015,AP,Accounts payable,00811597,CITI PCARD-ADOBE CREATIVE CLOUD
,DEMOCRATIC CAUCUS,2015Q3,SUPPLIES AND MATERIALS,08-19,CITI PCARD-BETHESDA BAGELS OF DUP,06/29/15,07/28/15,FOOD & BEVERAGE,"2,887.70",2015,AP,Accounts payable,00811597,CITI PCARD-BETHESDA BAGELS OF DUP
,DEMOCRATIC CAUCUS,2015Q3,SUPPLIES AND MATERIALS,08-19,CITI PCARD-HARRIS TEETER,06/29/15,07/28/15,FOOD & BEVERAGE,733.34,2015,AP,Accounts payable,00811597,CITI PCARD-HARRIS TEETER
,DEMOCRATIC CAUCUS,2015Q3,SUPPLIES AND MATERIALS,08-19,CITI PCARD-LA TIMES SUBSCRIPTION,06/29/15,07/28/15,PUBLICATIONS/REFERENCE MAT'L,11.96,2015,AP,Accounts payable,00811597,CITI PCARD-LA TIMES SUBSCRIPTION
,DEMOCRATIC CAUCUS,2015Q3,SUPPLIES AND MATERIALS,08-19,CITI PCARD-MAILCHIMP,06/29/15,07/28/15,OFFICE SUPPLIES (OUTSIDE),30.00,2015,AP,Accounts payable,00811597,CITI PCARD-MAILCHIMP
,DEMOCRATIC CAUCUS,2015Q3,SUPPLIES AND MATERIALS,08-19,CITI PCARD-ORIENTAL TRADING CO,06/29/15,07/28/15,OFFICE SUPPLIES (OUTSIDE),135.00,2015,AP,Accounts payable,00811597,CITI PCARD-ORIENTAL TRADING CO
,DEMOCRATIC CAUCUS,2015Q3,SUPPLIES AND MATERIALS,08-19,CITI PCARD-PAYPAL RUMALUTIONS,06/29/15,07/28/15,FOOD & BEVERAGE,54.60,2015,AP,Accounts payable,00811597,CITI PCARD-PAYPAL RUMALUTIONS
,DEMOCRATIC CAUCUS,2015Q3,SUPPLIES AND MATERIALS,09-01,DEER PARK,07/31/15,07/31/15,WATER,29.99,2015,AP,Accounts payable,00811969,DEER PARK
,DEMOCRATIC CAUCUS,2015Q3,SUPPLIES AND MATERIALS,09-18,CITI PCARD-B&H PHOTO,07/29/15,08/28/15,OFFICE SUPPLIES (OUTSIDE),705.42,2015,AP,Accounts payable,00816865,CITI PCARD-B&H PHOTO
,DEMOCRATIC CAUCUS,2015Q3,SUPPLIES AND MATERIALS,09-18,CITI PCARD-BETHESDA BAGELS OF DUP,07/29/15,08/28/15,FOOD & BEVERAGE,461.49,2015,AP,Accounts payable,00816865,CITI PCARD-BETHESDA BAGELS OF DUP
,DEMOCRATIC CAUCUS,2015Q3,SUPPLIES AND MATERIALS,09-18,CITI PCARD-HARRIS TEETER,07/29/15,08/28/15,FOOD & BEVERAGE,88.38,2015,AP,Accounts payable,00816865,CITI PCARD-HARRIS TEETER
,DEMOCRATIC CAUCUS,2015Q3,SUPPLIES AND MATERIALS,09-18,CITI PCARD-LA TIMES SUBSCRIPTION,07/29/15,08/28/15,PUBLICATIONS/REFERENCE MAT'L,11.96,2015,AP,Accounts payable,00816865,CITI PCARD-LA TIMES SUBSCRIPTION
,DEMOCRATIC CAUCUS,2015Q3,SUPPLIES AND MATERIALS,09-18,CITI PCARD-MAILCHIMP,07/29/15,08/28/15,PUBLICATIONS/REFERENCE MAT'L,35.00,2015,AP,Accounts payable,00816865,CITI PCARD-MAILCHIMP
,DEMOCRATIC CAUCUS,2015Q3,SUPPLIES AND MATERIALS,09-18,CITI PCARD-PAYPAL SUGAREXPERI,07/29/15,08/28/15,FOOD & BEVERAGE,775.00,2015,AP,Accounts payable,00816865,CITI PCARD-PAYPAL SUGAREXPERI
,DEMOCRATIC CAUCUS,2015Q3,SUPPLIES AND MATERIALS,09-18,CITI PCARD-POTBELLY,07/29/15,08/28/15,FOOD & BEVERAGE,192.50,2015,AP,Accounts payable,00816865,CITI PCARD-POTBELLY
,DEMOCRATIC CAUCUS,2015Q3,SUPPLIES AND MATERIALS,09-24,DEER PARK,08/31/15,08/31/15,WATER,29.99,2015,AP,Accounts payable,00817062,DEER PARK
,DEMOCRATIC CAUCUS,2015Q3,EQUIPMENT,09-18,CITI PCARD-AMAZON MKTPLACE PMTS,07/29/15,08/28/15,WARRANTIES,12.92,2015,AP,Accounts payable,00816865,CITI PCARD-AMAZON MKTPLACE PMTS
,DEMOCRATIC CAUCUS,2015Q3,EQUIPMENT,09-18,CITI PCARD-BESTBUYCOM,07/29/15,08/28/15,WARRANTIES,21.14,2015,AP,Accounts payable,00816865,CITI PCARD-BESTBUYCOM
,DEMOCRATIC CAUCUS,2015Q3,"RENT, COMMUNICATION, UTILITIES",09-28,CAPITOL HOST,11/14/14,11/14/14,TEMPORARY SPACE RENTAL,250.00,2014,AP,Accounts payable,E0323639,CAPITOL HOST
,REPUBLICAN CONFERENCE,2015Q3,PERSONNEL COMPENSATION,"","BUCHELI,DANIEL C",07/01/15,09/30/15,SPECIALTY MEDIA PRESS SECRETAR,"13,749.99",2015,"","","","BUCHELI,DANIEL C"
,REPUBLICAN CONFERENCE,2015Q3,PERSONNEL COMPENSATION,"","CROCKER,NICHOLAS L",07/01/15,09/30/15,MEMBER SERVICES COORDINATOR,"9,166.67",2015,"","","","CROCKER,NICHOLAS L"
,REPUBLICAN CONFERENCE,2015Q3,PERSONNEL COMPENSATION,"","DAINES,ANNE C",07/08/15,09/30/15,COMMUNICATIONS ASSISTANT,"7,493.05",2015,"","","","DAINES,ANNE C"
,REPUBLICAN CONFERENCE,2015Q3,PERSONNEL COMPENSATION,"","DEUTSCH,JEREMY",07/01/15,09/30/15,CHIEF OF STAFF,"30,000.00",2015,"","","","DEUTSCH,JEREMY"
,REPUBLICAN CONFERENCE,2015Q3,PERSONNEL COMPENSATION,"","DORIGATTI,BRANDON M",08/25/15,09/04/15,STAFF ASSISTANT,833.33,2015,"","","","DORIGATTI,BRANDON M"
,REPUBLICAN CONFERENCE,2015Q3,PERSONNEL COMPENSATION,"","DUPPLER,MARTHA C",07/01/15,09/30/15,COALITIONS DIRECTOR,"21,249.99",2015,"","","","DUPPLER,MARTHA C"
,REPUBLICAN CONFERENCE,2015Q3,PERSONNEL COMPENSATION,"","FIELD,IAN A",07/01/15,09/30/15,PRESS SECRETARY,"4,736.12",2015,"","","","FIELD,IAN A"
,REPUBLICAN CONFERENCE,2015Q3,PERSONNEL COMPENSATION,"","GILSON,LOUISA H",07/01/15,07/15/15,STAFF ASSISTANT,"1,458.33",2015,"","","","GILSON,LOUISA H"
,REPUBLICAN CONFERENCE,2015Q3,PERSONNEL COMPENSATION,"","HALL, MIKAYLA M",07/01/15,09/30/15,SPEECH WRITER,"12,999.99",2015,"","","","HALL, MIKAYLA M"
,REPUBLICAN CONFERENCE,2015Q3,PERSONNEL COMPENSATION,"","HODSON,NATHAN M",07/01/15,09/30/15,DEPUTY CHIEF OF STAFF,"33,249.99",2015,"","","","HODSON,NATHAN M"
,REPUBLICAN CONFERENCE,2015Q3,PERSONNEL COMPENSATION,"","LITMAN,RIVA",07/01/15,07/10/15,COMMUNICATIONS DIRECTOR,"3,222.22",2015,"","","","LITMAN,RIVA"
,REPUBLICAN CONFERENCE,2015Q3,PERSONNEL COMPENSATION,"","MAGALLANES, NICOLAS",07/01/15,09/30/15,SENIOR ADVISOR,"16,340.01",2015,"","","","MAGALLANES, NICOLAS"
,REPUBLICAN CONFERENCE,2015Q3,PERSONNEL COMPENSATION,"","MARK,REBECCA",07/01/15,09/30/15,SR. ADVISOR TECH POLICY/WOMEN,"17,499.99",2015,"","","","MARK,REBECCA"
,REPUBLICAN CONFERENCE,2015Q3,PERSONNEL COMPENSATION,"","MCMULLIN,DAVID E",07/01/15,09/30/15,POLICY DIRECTOR,"32,750.01",2015,"","","","MCMULLIN,DAVID E"
,REPUBLICAN CONFERENCE,2015Q3,PERSONNEL COMPENSATION,"","NEIGHBORS,MATTHEW P",09/11/15,09/30/15,STAFF ASSISTANT,"1,916.67",2015,"","","","NEIGHBORS,MATTHEW P"
,REPUBLICAN CONFERENCE,2015Q3,PERSONNEL COMPENSATION,"","ROGERS,SARAH E",07/01/15,09/30/15,DIRECTOR OF MEMBER SERVICES,"27,999.99",2015,"","","","ROGERS,SARAH E"
,REPUBLICAN CONFERENCE,2015Q3,PERSONNEL COMPENSATION,"","ROOS,AMBER E",07/01/15,09/30/15,FINANCE ASSISTANT,"2,250.00",2015,"","","","ROOS,AMBER E"
,REPUBLICAN CONFERENCE,2015Q3,PERSONNEL COMPENSATION,"","ROSS, JOHN E",07/01/15,09/30/15,FINANCE DIRECTOR,"3,249.99",2015,"","","","ROSS, JOHN E"
,REPUBLICAN CONFERENCE,2015Q3,PERSONNEL COMPENSATION,"","SMENTEK,DAVID",07/01/15,09/30/15,POLICY COORDINATOR,"11,250.00",2015,"","","","SMENTEK,DAVID"
,REPUBLICAN CONFERENCE,2015Q3,PERSONNEL COMPENSATION,"","STEVENS,PAMELA R",07/01/15,09/30/15,DIRECTOR OF MEDIA AFFAIRS,"32,874.99",2015,"","","","STEVENS,PAMELA R"
,REPUBLICAN CONFERENCE,2015Q3,PERSONNEL COMPENSATION,"","SUNDAY,JESSICA M",07/01/15,09/30/15,SCHEDULER,"8,589.99",2015,"","","","SUNDAY,JESSICA M"
,REPUBLICAN CONFERENCE,2015Q3,PERSONNEL COMPENSATION,"","THORNE, DRAY A",07/01/15,09/30/15,SYSTEMS ADMINISTRATOR,"3,000.00",2015,"","","","THORNE, DRAY A"
,REPUBLICAN CONFERENCE,2015Q3,PERSONNEL COMPENSATION,"","WYCKOFF,SORELLE C",07/01/15,07/10/15,PRESS SECRETARY,"1,138.89",2015,"","","","WYCKOFF,SORELLE C"
,REPUBLICAN CONFERENCE,2015Q3,TRAVEL,07-13,SEAN R PARNELL,06/25/15,06/29/15,CONSULT TRAVEL / RELATED EXP,"4,755.26",2015,AP,Accounts payable,E0299146,SEAN R PARNELL
,REPUBLICAN CONFERENCE,2015Q3,TRAVEL,07-23,"MAGALLANES, NICOLAS",07/08/15,07/08/15,TAXI/PARKING/TOLLS,9.90,2015,AP,Accounts payable,E0302878,"MAGALLANES, NICOLAS"
,REPUBLICAN CONFERENCE,2015Q3,TRAVEL,08-05,SEAN R PARNELL,07/30/15,07/30/15,CONSULT TRAVEL / RELATED EXP,"3,741.23",2015,AP,Accounts payable,E0306472,SEAN R PARNELL
,REPUBLICAN CONFERENCE,2015Q3,TRAVEL,08-10,"STEVENS, PAMELA R",01/12/15,07/10/15,TRAVEL SUBSISTENCE,615.08,2015,AP,Accounts payable,E0308059,"STEVENS, PAMELA R"
,REPUBLICAN CONFERENCE,2015Q3,TRAVEL,08-14,"STEVENS, PAMELA R",08/07/15,08/10/15,TAXI/PARKING/TOLLS,53.01,2015,AP,Accounts payable,E0309875,"STEVENS, PAMELA R"
,REPUBLICAN CONFERENCE,2015Q3,TRAVEL,09-04,"STEVENS, PAMELA R",08/17/15,08/20/15,TRAVEL SUBSISTENCE,90.26,2015,AP,Accounts payable,E0316248,"STEVENS, PAMELA R"
,REPUBLICAN CONFERENCE,2015Q3,TRAVEL,09-08,"BUCHELI,DANIEL C",08/25/15,08/31/15,COMMERCIAL TRANSPORTATION,137.14,2015,AP,Accounts payable,E0316247,"BUCHELI,DANIEL C"
,REPUBLICAN CONFERENCE,2015Q3,TRAVEL,09-08,"BUCHELI,DANIEL C",08/25/15,08/27/15,LODGING,135.60,2015,AP,Accounts payable,E0316247,"BUCHELI,DANIEL C"
,REPUBLICAN CONFERENCE,2015Q3,TRAVEL,09-08,"BUCHELI,DANIEL C",08/25/15,08/27/15,CAR RENTAL,48.88,2015,AP,Accounts payable,E0316247,"BUCHELI,DANIEL C"
,REPUBLICAN CONFERENCE,2015Q3,TRAVEL,09-08,"BUCHELI,DANIEL C",08/25/15,08/31/15,TRAVEL SUBSISTENCE,269.63,2015,AP,Accounts payable,E0316247,"BUCHELI,DANIEL C"
,REPUBLICAN CONFERENCE,2015Q3,TRAVEL,09-11,"BUCHELI,DANIEL C",09/04/15,09/04/15,TRAVEL SUBSISTENCE,27.84,2015,AP,Accounts payable,E0318643,"BUCHELI,DANIEL C"
,REPUBLICAN CONFERENCE,2015Q3,PRINTING AND REPRODUCTION,07-20,CITI PCARD-GETTY IMAGES,05/29/15,06/28/15,PRINTING & REPRODUCTION,199.00,2015,AP,Accounts payable,00806198,CITI PCARD-GETTY IMAGES
,REPUBLICAN CONFERENCE,2015Q3,PRINTING AND REPRODUCTION,08-06,AGILE PRINTING COMPANY INC,07/28/15,07/28/15,PRINTING & REPRODUCTION,"8,400.00",2015,AP,Accounts payable,E0307038,AGILE PRINTING COMPANY INC
,REPUBLICAN CONFERENCE,2015Q3,PRINTING AND REPRODUCTION,08-19,CITI PCARD-GETTY IMAGES,06/29/15,07/28/15,PRINTING & REPRODUCTION,199.00,2015,AP,Accounts payable,00811597,CITI PCARD-GETTY IMAGES
,REPUBLICAN CONFERENCE,2015Q3,PRINTING AND REPRODUCTION,09-18,CITI PCARD-GETTY IMAGES,07/29/15,08/28/15,PRINTING & REPRODUCTION,199.00,2015,AP,Accounts payable,00816865,CITI PCARD-GETTY IMAGES
,REPUBLICAN CONFERENCE,2015Q3,OTHER SERVICES,07-13,SEAN R PARNELL,05/31/15,05/31/15,CONSULTANT CONTRACT SERVICE,"10,000.00",2015,AP,Accounts payable,E0299146,SEAN R PARNELL
,REPUBLICAN CONFERENCE,2015Q3,OTHER SERVICES,08-05,SEAN R PARNELL,06/30/15,06/30/15,CONSULTANT CONTRACT SERVICE,"10,000.00",2015,AP,Accounts payable,E0306472,SEAN R PARNELL
,REPUBLICAN CONFERENCE,2015Q3,OTHER SERVICES,09-11,SEAN R PARNELL,07/31/15,07/31/15,CONSULTANT CONTRACT SERVICE,"10,000.00",2015,AP,Accounts payable,E0318645,SEAN R PARNELL
,REPUBLICAN CONFERENCE,2015Q3,SUPPLIES AND MATERIALS,07-06,CAPITOL HOST,06/18/15,06/18/15,FOOD & BEVERAGE,38.95,2015,AP,Accounts payable,E0295917,CAPITOL HOST
,REPUBLICAN CONFERENCE,2015Q3,SUPPLIES AND MATERIALS,07-06,CAPITOL HOST,06/17/15,06/17/15,FOOD & BEVERAGE,357.00,2015,AP,Accounts payable,E0295918,CAPITOL HOST
,REPUBLICAN CONFERENCE,2015Q3,SUPPLIES AND MATERIALS,07-09,CAPITOL HOST,06/24/15,06/24/15,FOOD & BEVERAGE,441.00,2015,AP,Accounts payable,E0297693,CAPITOL HOST
,REPUBLICAN CONFERENCE,2015Q3,SUPPLIES AND MATERIALS,07-09,HAGUE QUALITY WATER OF MD INC,07/06/15,08/05/15,WATER,63.00,2015,AP,Accounts payable,E0297915,HAGUE QUALITY WATER OF MD INC
,REPUBLICAN CONFERENCE,2015Q3,SUPPLIES AND MATERIALS,07-10,QUORUM ANALYTICS INC,06/30/15,06/29/16,PUBLICATIONS/REFERENCE MAT'L,"4,800.00",2015,AP,Accounts payable,E0297692,QUORUM ANALYTICS INC
,REPUBLICAN CONFERENCE,2015Q3,SUPPLIES AND MATERIALS,07-15,CAPITOL HOST,05/08/15,05/08/15,FOOD & BEVERAGE,141.60,2015,AP,Accounts payable,E0300294,CAPITOL HOST
,REPUBLICAN CONFERENCE,2015Q3,SUPPLIES AND MATERIALS,07-20,CITI PCARD-BUFFALO WILD WINGS,05/29/15,06/28/15,FOOD & BEVERAGE,667.58,2015,AP,Accounts payable,00806198,CITI PCARD-BUFFALO WILD WINGS
,REPUBLICAN CONFERENCE,2015Q3,SUPPLIES AND MATERIALS,07-20,CITI PCARD-CHICK-FIL-A,05/29/15,06/28/15,FOOD & BEVERAGE,"1,949.18",2015,AP,Accounts payable,00806198,CITI PCARD-CHICK-FIL-A
,REPUBLICAN CONFERENCE,2015Q3,SUPPLIES AND MATERIALS,07-20,CITI PCARD-CORNER BAKERY,05/29/15,06/28/15,FOOD & BEVERAGE,705.36,2015,AP,Accounts payable,00806198,CITI PCARD-CORNER BAKERY
,REPUBLICAN CONFERENCE,2015Q3,SUPPLIES AND MATERIALS,07-20,CITI PCARD-GOLDBERG S NEW YORK BA,05/29/15,06/28/15,FOOD & BEVERAGE,389.60,2015,AP,Accounts payable,00806198,CITI PCARD-GOLDBERG S NEW YORK BA
,REPUBLICAN CONFERENCE,2015Q3,SUPPLIES AND MATERIALS,07-20,CITI PCARD-NEW YORK TIMES DIGITAL,05/29/15,06/28/15,PUBLICATIONS/REFERENCE MAT'L,15.00,2015,AP,Accounts payable,00806198,CITI PCARD-NEW YORK TIMES DIGITAL
,REPUBLICAN CONFERENCE,2015Q3,SUPPLIES AND MATERIALS,07-20,CITI PCARD-QDOBA MEXICAN GRIL,05/29/15,06/28/15,FOOD & BEVERAGE,312.23,2015,AP,Accounts payable,00806198,CITI PCARD-QDOBA MEXICAN GRIL
,REPUBLICAN CONFERENCE,2015Q3,SUPPLIES AND MATERIALS,07-20,CITI PCARD-SAFEWAY STORE,05/29/15,06/28/15,FOOD & BEVERAGE,27.90,2015,AP,Accounts payable,00806198,CITI PCARD-SAFEWAY STORE
,REPUBLICAN CONFERENCE,2015Q3,SUPPLIES AND MATERIALS,07-20,CITI PCARD-SHOPPERS FOOD / PHAR,05/29/15,06/28/15,FOOD & BEVERAGE,17.18,2015,AP,Accounts payable,00806198,CITI PCARD-SHOPPERS FOOD / PHAR
,REPUBLICAN CONFERENCE,2015Q3,SUPPLIES AND MATERIALS,07-20,CITI PCARD-SPORTS AUTHORI,05/29/15,06/28/15,FOOD & BEVERAGE,31.67,2015,AP,Accounts payable,00806198,CITI PCARD-SPORTS AUTHORI
,REPUBLICAN CONFERENCE,2015Q3,SUPPLIES AND MATERIALS,07-20,CITI PCARD-SQ ZORBA'S CAFE & CAT,05/29/15,06/28/15,FOOD & BEVERAGE,369.00,2015,AP,Accounts payable,00806198,CITI PCARD-SQ ZORBA'S CAFE & CAT
,REPUBLICAN CONFERENCE,2015Q3,SUPPLIES AND MATERIALS,07-20,"CITI PCARD-WE, THE PIZZA",05/29/15,06/28/15,FOOD & BEVERAGE,698.40,2015,AP,Accounts payable,00806198,"CITI PCARD-WE, THE PIZZA"
,REPUBLICAN CONFERENCE,2015Q3,SUPPLIES AND MATERIALS,07-20,CAPITOL HOST,07/08/15,07/08/15,FOOD & BEVERAGE,561.60,2015,AP,Accounts payable,E0301688,CAPITOL HOST
,REPUBLICAN CONFERENCE,2015Q3,SUPPLIES AND MATERIALS,07-20,CAPITOL HOST,07/06/15,07/06/15,FOOD & BEVERAGE,630.00,2015,AP,Accounts payable,E0301689,CAPITOL HOST
,REPUBLICAN CONFERENCE,2015Q3,SUPPLIES AND MATERIALS,07-20,CAPITOL HOST,07/09/15,07/09/15,FOOD & BEVERAGE,210.00,2015,AP,Accounts payable,E0301690,CAPITOL HOST
,REPUBLICAN CONFERENCE,2015Q3,SUPPLIES AND MATERIALS,07-23,"HODSON, NATHAN",07/17/15,07/17/15,FOOD & BEVERAGE,"1,099.94",2015,AP,Accounts payable,E0302877,"HODSON, NATHAN"
,REPUBLICAN CONFERENCE,2015Q3,SUPPLIES AND MATERIALS,07-27,CAPITOL HOST,07/14/15,07/14/15,FOOD & BEVERAGE,561.60,2015,AP,Accounts payable,E0303949,CAPITOL HOST
,REPUBLICAN CONFERENCE,2015Q3,SUPPLIES AND MATERIALS,07-27,ARAMARK REFRESHMENT SERVICES,07/24/15,07/24/15,FOOD & BEVERAGE,679.26,2015,AP,Accounts payable,E0303950,ARAMARK REFRESHMENT SERVICES
,REPUBLICAN CONFERENCE,2015Q3,SUPPLIES AND MATERIALS,07-29,CAPITOL HOST,07/17/15,07/17/15,FOOD & BEVERAGE,141.60,2015,AP,Accounts payable,E0304983,CAPITOL HOST
,REPUBLICAN CONFERENCE,2015Q3,SUPPLIES AND MATERIALS,08-10,CAPITOL HOST,07/28/15,07/28/15,FOOD & BEVERAGE,315.00,2015,AP,Accounts payable,E0307720,CAPITOL HOST
,REPUBLICAN CONFERENCE,2015Q3,SUPPLIES AND MATERIALS,08-10,HAGUE QUALITY WATER OF MD INC,08/06/15,09/05/15,WATER,63.00,2015,AP,Accounts payable,E0308060,HAGUE QUALITY WATER OF MD INC
,REPUBLICAN CONFERENCE,2015Q3,SUPPLIES AND MATERIALS,08-12,DEER PARK,06/30/15,06/30/15,WATER,428.49,2015,AP,Accounts payable,00806946,DEER PARK
,REPUBLICAN CONFERENCE,2015Q3,SUPPLIES AND MATERIALS,08-19,CITI PCARD-ADOBE CREATIVE CLOUD,06/29/15,07/28/15,SOFTWARE LESS THAN $500,370.07,2015,AP,Accounts payable,00811597,CITI PCARD-ADOBE CREATIVE CLOUD
,REPUBLICAN CONFERENCE,2015Q3,SUPPLIES AND MATERIALS,08-19,CITI PCARD-CARMINE'S- DC,06/29/15,07/28/15,FOOD & BEVERAGE,476.30,2015,AP,Accounts payable,00811597,CITI PCARD-CARMINE'S- DC
,REPUBLICAN CONFERENCE,2015Q3,SUPPLIES AND MATERIALS,08-19,CITI PCARD-CAVA CATERING,06/29/15,07/28/15,FOOD & BEVERAGE,800.85,2015,AP,Accounts payable,00811597,CITI PCARD-CAVA CATERING
,REPUBLICAN CONFERENCE,2015Q3,SUPPLIES AND MATERIALS,08-19,CITI PCARD-CHICK-FIL-A,06/29/15,07/28/15,FOOD & BEVERAGE,719.00,2015,AP,Accounts payable,00811597,CITI PCARD-CHICK-FIL-A
,REPUBLICAN CONFERENCE,2015Q3,SUPPLIES AND MATERIALS,08-19,CITI PCARD-CORNER BAKERY,06/29/15,07/28/15,FOOD & BEVERAGE,"1,027.50",2015,AP,Accounts payable,00811597,CITI PCARD-CORNER BAKERY
,REPUBLICAN CONFERENCE,2015Q3,SUPPLIES AND MATERIALS,08-19,CITI PCARD-DUNKIN,06/29/15,07/28/15,FOOD & BEVERAGE,26.37,2015,AP,Accounts payable,00811597,CITI PCARD-DUNKIN
,REPUBLICAN CONFERENCE,2015Q3,SUPPLIES AND MATERIALS,08-19,CITI PCARD-HARRISTEETER,06/29/15,07/28/15,FOOD & BEVERAGE,49.92,2015,AP,Accounts payable,00811597,CITI PCARD-HARRISTEETER
,REPUBLICAN CONFERENCE,2015Q3,SUPPLIES AND MATERIALS,08-19,CITI PCARD-LE BON CAFE - SPLENDID,06/29/15,07/28/15,FOOD & BEVERAGE,339.00,2015,AP,Accounts payable,00811597,CITI PCARD-LE BON CAFE - SPLENDID
,REPUBLICAN CONFERENCE,2015Q3,SUPPLIES AND MATERIALS,08-19,CITI PCARD-NEW YORK TIMES DIGITAL,06/29/15,07/28/15,PUBLICATIONS/REFERENCE MAT'L,15.00,2015,AP,Accounts payable,00811597,CITI PCARD-NEW YORK TIMES DIGITAL
,REPUBLICAN CONFERENCE,2015Q3,SUPPLIES AND MATERIALS,08-19,CITI PCARD-POTBELLY,06/29/15,07/28/15,FOOD & BEVERAGE,349.95,2015,AP,Accounts payable,00811597,CITI PCARD-POTBELLY
,REPUBLICAN CONFERENCE,2015Q3,SUPPLIES AND MATERIALS,08-19,CITI PCARD-QDOBA MEXICAN GRIL,06/29/15,07/28/15,FOOD & BEVERAGE,783.08,2015,AP,Accounts payable,00811597,CITI PCARD-QDOBA MEXICAN GRIL
,REPUBLICAN CONFERENCE,2015Q3,SUPPLIES AND MATERIALS,08-19,CITI PCARD-SQ ZORBA'S CAFE & CAT,06/29/15,07/28/15,FOOD & BEVERAGE,393.00,2015,AP,Accounts payable,00811597,CITI PCARD-SQ ZORBA'S CAFE & CAT
,REPUBLICAN CONFERENCE,2015Q3,SUPPLIES AND MATERIALS,08-19,CITI PCARD-WE THE PIZZA,06/29/15,07/28/15,FOOD & BEVERAGE,220.00,2015,AP,Accounts payable,00811597,CITI PCARD-WE THE PIZZA
,REPUBLICAN CONFERENCE,2015Q3,SUPPLIES AND MATERIALS,08-31,ARAMARK REFRESHMENT SERVICES,09/01/15,09/30/15,FOOD & BEVERAGE,108.00,2015,AP,Accounts payable,E0314321,ARAMARK REFRESHMENT SERVICES
,REPUBLICAN CONFERENCE,2015Q3,SUPPLIES AND MATERIALS,09-01,DEER PARK,07/31/15,07/31/15,WATER,269.70,2015,AP,Accounts payable,00811969,DEER PARK
,REPUBLICAN CONFERENCE,2015Q3,SUPPLIES AND MATERIALS,09-04,ARAMARK REFRESHMENT SERVICES,08/21/15,08/21/15,FOOD & BEVERAGE,"1,479.21",2015,AP,Accounts payable,E0316754,ARAMARK REFRESHMENT SERVICES
,REPUBLICAN CONFERENCE,2015Q3,SUPPLIES AND MATERIALS,09-11,HAGUE QUALITY WATER OF MD INC,09/01/15,09/30/15,WATER,63.00,2015,AP,Accounts payable,E0318644,HAGUE QUALITY WATER OF MD INC
,REPUBLICAN CONFERENCE,2015Q3,SUPPLIES AND MATERIALS,09-17,"HODSON, NATHAN",09/15/15,09/15/15,FOOD & BEVERAGE,985.48,2015,AP,Accounts payable,E0320884,"HODSON, NATHAN"
,REPUBLICAN CONFERENCE,2015Q3,SUPPLIES AND MATERIALS,09-18,CITI PCARD-ADOBE CREATIVE CLOUD,07/29/15,08/28/15,SOFTWARE LESS THAN $500,370.07,2015,AP,Accounts payable,00816865,CITI PCARD-ADOBE CREATIVE CLOUD
,REPUBLICAN CONFERENCE,2015Q3,SUPPLIES AND MATERIALS,09-18,CITI PCARD-CHICK-FIL-A,07/29/15,08/28/15,FOOD & BEVERAGE,"1,963.25",2015,AP,Accounts payable,00816865,CITI PCARD-CHICK-FIL-A
,REPUBLICAN CONFERENCE,2015Q3,SUPPLIES AND MATERIALS,09-18,CITI PCARD-GOLDBERG S NEW YORK BA,07/29/15,08/28/15,FOOD & BEVERAGE,529.60,2015,AP,Accounts payable,00816865,CITI PCARD-GOLDBERG S NEW YORK BA
,REPUBLICAN CONFERENCE,2015Q3,SUPPLIES AND MATERIALS,09-18,CITI PCARD-NEW YORK TIMES DIGITAL,07/29/15,08/28/15,PUBLICATIONS/REFERENCE MAT'L,15.00,2015,AP,Accounts payable,00816865,CITI PCARD-NEW YORK TIMES DIGITAL
,REPUBLICAN CONFERENCE,2015Q3,SUPPLIES AND MATERIALS,09-18,CITI PCARD-QDOBA MEXICAN GRIL,07/29/15,08/28/15,FOOD & BEVERAGE,429.93,2015,AP,Accounts payable,00816865,CITI PCARD-QDOBA MEXICAN GRIL
,REPUBLICAN CONFERENCE,2015Q3,SUPPLIES AND MATERIALS,09-18,CITI PCARD-SQ ZORBA'S CAFE,07/29/15,08/28/15,FOOD & BEVERAGE,321.50,2015,AP,Accounts payable,00816865,CITI PCARD-SQ ZORBA'S CAFE
,REPUBLICAN CONFERENCE,2015Q3,SUPPLIES AND MATERIALS,09-18,CITI PCARD-STARBUCKS,07/29/15,08/28/15,FOOD & BEVERAGE,"1,008.79",2015,AP,Accounts payable,00816865,CITI PCARD-STARBUCKS
,REPUBLICAN CONFERENCE,2015Q3,SUPPLIES AND MATERIALS,09-21,ARAMARK REFRESHMENT SERVICES,09/18/15,09/18/15,FOOD & BEVERAGE,"1,794.97",2015,AP,Accounts payable,E0322006,ARAMARK REFRESHMENT SERVICES
,REPUBLICAN CONFERENCE,2015Q3,SUPPLIES AND MATERIALS,09-24,DEER PARK,08/31/15,08/31/15,WATER,269.70,2015,AP,Accounts payable,00817062,DEER PARK
,CHIEF ADMIN OFCR OF THE HOUSE,2015Q3,PERSONNEL COMPENSATION,"","ABBOTT, JESSICA A",07/01/15,09/30/15,FINANCIAL ANALYST,"32,712.00",FISCAL YEAR 2015,"","","","ABBOTT, JESSICA A"
,CHIEF ADMIN OFCR OF THE HOUSE,2015Q3,PERSONNEL COMPENSATION,"","ABEL, TIMOTHY",07/01/15,09/30/15,SR TECHNICAL SUPPORT REP (A),"24,368.49",FISCAL YEAR 2015,"","","","ABEL, TIMOTHY"
,CHIEF ADMIN OFCR OF THE HOUSE,2015Q3,PERSONNEL COMPENSATION,"","ACUESTA,JULY J",07/01/15,09/30/15,SENIOR SYSTEMS ENGINEER,"27,988.26",FISCAL YEAR 2015,"","","","ACUESTA,JULY J"
,CHIEF ADMIN OFCR OF THE HOUSE,2015Q3,PERSONNEL COMPENSATION,"","ADDISON, TRACY",07/01/15,09/30/15,LOGISTICS & DIST SPEC (A),"11,799.99",FISCAL YEAR 2015,"","","","ADDISON, TRACY"
,CHIEF ADMIN OFCR OF THE HOUSE,2015Q3,PERSONNEL COMPENSATION,"","ADELAKUN, DEEN A",07/01/15,09/30/15,SR TECH SOLUTIONS ENGINEER,"23,004.24",FISCAL YEAR 2015,"","","","ADELAKUN, DEEN A"
,CHIEF ADMIN OFCR OF THE HOUSE,2015Q3,PERSONNEL COMPENSATION,"","ADENIJI,ADERONKE F",07/01/15,09/30/15,TEAM LEAD ASSURANCE &RISK MGMT,"33,276.99",FISCAL YEAR 2015,"","","","ADENIJI,ADERONKE F"
,CHIEF ADMIN OFCR OF THE HOUSE,2015Q3,PERSONNEL COMPENSATION,"","AGEE, MATTHEW P",07/01/15,09/30/15,RESOURCE MANAGER,"31,582.50",FISCAL YEAR 2015,"","","","AGEE, MATTHEW P"
,CHIEF ADMIN OFCR OF THE HOUSE,2015Q3,PERSONNEL COMPENSATION,"","AGEE, TINA M",07/01/15,09/30/15,DIRECTOR PHOTOGRAPHY,"27,988.26",FISCAL YEAR 2015,"","","","AGEE, TINA M"
,CHIEF ADMIN OFCR OF THE HOUSE,2015Q3,PERSONNEL COMPENSATION,"","AGNEW, ROSE M",07/01/15,09/30/15,SR PAYROLL & BENS GENERALIST,"20,732.25",FISCAL YEAR 2015,"","","","AGNEW, ROSE M"
,CHIEF ADMIN OFCR OF THE HOUSE,2015Q3,PERSONNEL COMPENSATION,"","AGNEW, ROSE M",08/01/15,08/31/15,SR PAYROLL & BENS GENERALIST (OVERTIME),29.90,FISCAL YEAR 2015,"","","","AGNEW, ROSE M"
,CHIEF ADMIN OFCR OF THE HOUSE,2015Q3,PERSONNEL COMPENSATION,"","AHUJA, KALPANA A",07/01/15,09/30/15,DIRECTOR WEB SYSTEMS,"33,372.24",FISCAL YEAR 2015,"","","","AHUJA, KALPANA A"
,CHIEF ADMIN OFCR OF THE HOUSE,2015Q3,PERSONNEL COMPENSATION,"","AKINSEGUN, PATRICIA A",07/01/15,07/14/15,TELEPHONE SYSTEMS CONSULTANT,474.06,FISCAL YEAR 2015,"","","","AKINSEGUN, PATRICIA A"
,CHIEF ADMIN OFCR OF THE HOUSE,2015Q3,PERSONNEL COMPENSATION,"","AKINSEGUN, PATRICIA A",08/01/15,08/27/15,CONFIG MGMT/QLTY ASSUR ANALYST,"3,104.38",FISCAL YEAR 2015,"","","","AKINSEGUN, PATRICIA A"
,CHIEF ADMIN OFCR OF THE HOUSE,2015Q3,PERSONNEL COMPENSATION,"","ALBERS,BARBARA V",07/01/15,09/30/15,MANAGER WEB SERVICES,"31,016.25",FISCAL YEAR 2015,"","","","ALBERS,BARBARA V"
,CHIEF ADMIN OFCR OF THE HOUSE,2015Q3,PERSONNEL COMPENSATION,"","ALEXANDER, GORDON",07/01/15,09/30/15,TECH SOLUTIONS ENGINEER,"18,487.74",FISCAL YEAR 2015,"","","","ALEXANDER, GORDON"
,CHIEF ADMIN OFCR OF THE HOUSE,2015Q3,PERSONNEL COMPENSATION,"","ALLISON, KEVIN M",07/01/15,09/30/15,LOGISTICS & DIST SPEC (A),"13,775.01",FISCAL YEAR 2015,"","","","ALLISON, KEVIN M"
,CHIEF ADMIN OFCR OF THE HOUSE,2015Q3,PERSONNEL COMPENSATION,"","ALLISON, KEVIN M",08/01/15,08/31/15,LOGISTICS & DIST SPEC (A) (OVERTIME),105.96,FISCAL YEAR 2015,"","","","ALLISON, KEVIN M"
,CHIEF ADMIN OFCR OF THE HOUSE,2015Q3,PERSONNEL COMPENSATION,"","ALSTON,MARK A",07/01/15,09/30/15,TECH SOLUTIONS ENGINEER,"18,092.25",FISCAL YEAR 2015,"","","","ALSTON,MARK A"
,CHIEF ADMIN OFCR OF THE HOUSE,2015Q3,PERSONNEL COMPENSATION,"","ALVEY, LISA M",07/01/15,09/30/15,FINANCIAL COUNSELOR,"21,092.49",FISCAL YEAR 2015,"","","","ALVEY, LISA M"
,CHIEF ADMIN OFCR OF THE HOUSE,2015Q3,PERSONNEL COMPENSATION,"","ANDERSEN, FREDERIC E",07/01/15,08/31/15,2ND ASST SUPERINTENDENT,"15,336.16",FISCAL YEAR 2015,"","","","ANDERSEN, FREDERIC E"
,CHIEF ADMIN OFCR OF THE HOUSE,2015Q3,PERSONNEL COMPENSATION,"","ANDERSEN, FREDERIC E",09/01/15,09/30/15,ASSISTANT DIRECTOR,"7,668.08",FISCAL YEAR 2015,"","","","ANDERSEN, FREDERIC E"
,CHIEF ADMIN OFCR OF THE HOUSE,2015Q3,PERSONNEL COMPENSATION,"","ANDERSON, DONTRELL",07/01/15,09/30/15,FINANCIAL COUNSELOR,"16,902.24",FISCAL YEAR 2015,"","","","ANDERSON, DONTRELL"
,CHIEF ADMIN OFCR OF THE HOUSE,2015Q3,PERSONNEL COMPENSATION,"","ANDREWS,THOMAS",07/01/15,09/30/15,VOICE & VIDEO BRANCH MGR (A),"34,620.51",FISCAL YEAR 2015,"","","","ANDREWS,THOMAS"
,CHIEF ADMIN OFCR OF THE HOUSE,2015Q3,PERSONNEL COMPENSATION,"","ANDREWS-MOBLEY, RACHELLE G",07/01/15,09/30/15,PRINCIPAL TECHNICAL TRAINER,"26,953.74",FISCAL YEAR 2015,"","","","ANDREWS-MOBLEY, RACHELLE G"
,CHIEF ADMIN OFCR OF THE HOUSE,2015Q3,PERSONNEL COMPENSATION,"","ARMSTRONG,JANCIERA C",07/01/15,09/30/15,"MANAGER, ACCOUNTING","27,469.74",FISCAL YEAR 2015,"","","","ARMSTRONG,JANCIERA C"
,CHIEF ADMIN OFCR OF THE HOUSE,2015Q3,PERSONNEL COMPENSATION,"","ARTHUR, CAMILLA S",07/01/15,09/30/15,ASSISTANT CAO,"41,778.99",FISCAL YEAR 2015,"","","","ARTHUR, CAMILLA S"
,CHIEF ADMIN OFCR OF THE HOUSE,2015Q3,PERSONNEL COMPENSATION,"","ASATA,HEATHER O",07/07/15,09/30/15,ADMINISTRATIVE SPECIALIST,"13,147.63",FISCAL YEAR 2015,"","","","ASATA,HEATHER O"
,CHIEF ADMIN OFCR OF THE HOUSE,2015Q3,PERSONNEL COMPENSATION,"","ATCHISON, DARRYL A",07/01/15,09/30/15,DEPUTY CHIEF ENGINEER,"31,770.33",FISCAL YEAR 2015,"","","","ATCHISON, DARRYL A"
,CHIEF ADMIN OFCR OF THE HOUSE,2015Q3,PERSONNEL COMPENSATION,"","AWAN, OMAR",07/01/15,09/30/15,SR BUSINESS PROCESS APPL SPEC,"36,494.49",FISCAL YEAR 2015,"","","","AWAN, OMAR"
,CHIEF ADMIN OFCR OF THE HOUSE,2015Q3,PERSONNEL COMPENSATION,"","BAHAM,TODD",07/01/15,09/30/15,BROADCAST PRODUCTION TECHNICIA,"19,494.75",FISCAL YEAR 2015,"","","","BAHAM,TODD"
,CHIEF ADMIN OFCR OF THE HOUSE,2015Q3,PERSONNEL COMPENSATION,"","BAHAM,TODD",06/01/15,07/31/15,BROADCAST PRODUCTION TECHNICIA (OVERTIME),"2,680.50",FISCAL YEAR 2015,"","","","BAHAM,TODD"
,CHIEF ADMIN OFCR OF THE HOUSE,2015Q3,PERSONNEL COMPENSATION,"","BAILEY, DAVID E",07/01/15,09/30/15,SR TECHNICAL SUPPORT REP (A),"24,368.49",FISCAL YEAR 2015,"","","","BAILEY, DAVID E"
,CHIEF ADMIN OFCR OF THE HOUSE,2015Q3,PERSONNEL COMPENSATION,"","BAKER, DARRELL F",07/01/15,09/30/15,SR NETWORK COMM SPEC,"26,433.75",FISCAL YEAR 2015,"","","","BAKER, DARRELL F"
,CHIEF ADMIN OFCR OF THE HOUSE,2015Q3,PERSONNEL COMPENSATION,"","BANFIELD,KELLI C",07/01/15,09/30/15,BROADCAST ENGINEER/PROD SPEC,"22,098.51",FISCAL YEAR 2015,"","","","BANFIELD,KELLI C"
,CHIEF ADMIN OFCR OF THE HOUSE,2015Q3,PERSONNEL COMPENSATION,"","BANKS,BIANCA N",07/01/15,09/30/15,RETAIL INVENTORY SPECIALIST,"17,298.00",FISCAL YEAR 2015,"","","","BANKS,BIANCA N"
,CHIEF ADMIN OFCR OF THE HOUSE,2015Q3,PERSONNEL COMPENSATION,"","BARBEE, GLENN",07/01/15,09/30/15,NETWORK TECHNICIAN,"22,551.24",FISCAL YEAR 2015,"","","","BARBEE, GLENN"
,CHIEF ADMIN OFCR OF THE HOUSE,2015Q3,PERSONNEL COMPENSATION,"","BARBEE,DONELL G",07/01/15,09/30/15,RETAIL INVENTORY SPECIALIST,"10,599.99",FISCAL YEAR 2015,"","","","BARBEE,DONELL G"
,CHIEF ADMIN OFCR OF THE HOUSE,2015Q3,PERSONNEL COMPENSATION,"","BARBOUR, JUNE M",07/01/15,09/30/15,BROADCAST PRODUCTION TECHNICIA,"19,494.75",FISCAL YEAR 2015,"","","","BARBOUR, JUNE M"
,CHIEF ADMIN OFCR OF THE HOUSE,2015Q3,PERSONNEL COMPENSATION,"","BARBOUR, JUNE M",06/01/15,07/31/15,BROADCAST PRODUCTION TECHNICIA (OVERTIME),346.78,FISCAL YEAR 2015,"","","","BARBOUR, JUNE M"
,CHIEF ADMIN OFCR OF THE HOUSE,2015Q3,PERSONNEL COMPENSATION,"","BARCINIAK, DANA L",07/01/15,09/30/15,SENIOR PHOTOGRAPHER,"22,293.24",FISCAL YEAR 2015,"","","","BARCINIAK, DANA L"
,CHIEF ADMIN OFCR OF THE HOUSE,2015Q3,PERSONNEL COMPENSATION,"","BARCINIAK, DANA L",06/01/15,07/31/15,SENIOR PHOTOGRAPHER (OVERTIME),386.27,FISCAL YEAR 2015,"","","","BARCINIAK, DANA L"
,CHIEF ADMIN OFCR OF THE HOUSE,2015Q3,PERSONNEL COMPENSATION,"","BAREFOOT,JEFFREY",07/01/15,07/31/15,PRODUCTION/ENGINEER SPEC (TEMP,"6,765.97",FISCAL YEAR 2015,"","","","BAREFOOT,JEFFREY"
,CHIEF ADMIN OFCR OF THE HOUSE,2015Q3,PERSONNEL COMPENSATION,"","BAREFOOT,JEFFREY",09/01/15,09/30/15,BROADCAST ENGINEER/PROD SPEC,"6,758.92",FISCAL YEAR 2015,"","","","BAREFOOT,JEFFREY"
,CHIEF ADMIN OFCR OF THE HOUSE,2015Q3,PERSONNEL COMPENSATION,"","BARNABAE, MONICA M",07/01/15,09/30/15,DIRECTOR-HOUSE CHILD CARE CNTR,"27,815.42",FISCAL YEAR 2015,"","","","BARNABAE, MONICA M"
,CHIEF ADMIN OFCR OF THE HOUSE,2015Q3,PERSONNEL COMPENSATION,"","BARR,PAUL",07/01/15,09/30/15,RECEIVING/WAREHOUSE SPECIALIST,"12,359.01",FISCAL YEAR 2015,"","","","BARR,PAUL"
,CHIEF ADMIN OFCR OF THE HOUSE,2015Q3,PERSONNEL COMPENSATION,"","BARRETT, ROBERT R",07/01/15,09/30/15,"DIRECTOR, ENTERPRISE APPLICATI","36,905.25",FISCAL YEAR 2015,"","","","BARRETT, ROBERT R"
,CHIEF ADMIN OFCR OF THE HOUSE,2015Q3,PERSONNEL COMPENSATION,"","BARTON,TISHA R",06/29/15,09/30/15,EXECUTIVE ASSISTANT,"18,294.97",FISCAL YEAR 2015,"","","","BARTON,TISHA R"
,CHIEF ADMIN OFCR OF THE HOUSE,2015Q3,PERSONNEL COMPENSATION,"","BASILIO, TYRONE A",07/01/15,09/30/15,TECHNICAL SUPPORT REP,"20,161.34",FISCAL YEAR 2015,"","","","BASILIO, TYRONE A"
,CHIEF ADMIN OFCR OF THE HOUSE,2015Q3,PERSONNEL COMPENSATION,"","BATES, DEBORAH A",07/01/15,09/30/15,PRODUCTION/ENGINEER SPEC (TEMP,"8,713.74",FISCAL YEAR 2015,"","","","BATES, DEBORAH A"
,CHIEF ADMIN OFCR OF THE HOUSE,2015Q3,PERSONNEL COMPENSATION,"","BATH,GEORGE J",07/01/15,09/30/15,SENIOR ADVISOR,"42,102.75",FISCAL YEAR 2015,"","","","BATH,GEORGE J"
,CHIEF ADMIN OFCR OF THE HOUSE,2015Q3,PERSONNEL COMPENSATION,"","BEAUBIAN, TRACI R",07/01/15,09/30/15,CHIEF FINANCIAL OFFICER,"42,102.75",FISCAL YEAR 2015,"","","","BEAUBIAN, TRACI R"
,CHIEF ADMIN OFCR OF THE HOUSE,2015Q3,PERSONNEL COMPENSATION,"","BEIDEL, BERNARD E",07/01/15,09/30/15,"DIR, OFFICE OF EMPLOYEE ASSIST","42,102.75",FISCAL YEAR 2015,"","","","BEIDEL, BERNARD E"
,CHIEF ADMIN OFCR OF THE HOUSE,2015Q3,PERSONNEL COMPENSATION,"","BELL,FRANK E",07/01/15,09/30/15,SENIOR TECHNICAL ADVISOR,"33,993.00",FISCAL YEAR 2015,"","","","BELL,FRANK E"
,CHIEF ADMIN OFCR OF THE HOUSE,2015Q3,PERSONNEL COMPENSATION,"","BENN, PHILLIP F",07/01/15,09/30/15,ELECTRONICS TECHNICIAN (A),"23,460.75",FISCAL YEAR 2015,"","","","BENN, PHILLIP F"
,CHIEF ADMIN OFCR OF THE HOUSE,2015Q3,PERSONNEL COMPENSATION,"","BENN, PHILLIP F",06/01/15,07/31/15,ELECTRONICS TECHNICIAN (A) (OVERTIME),"1,184.30",FISCAL YEAR 2015,"","","","BENN, PHILLIP F"
,CHIEF ADMIN OFCR OF THE HOUSE,2015Q3,PERSONNEL COMPENSATION,"","BERGER, DONALD W",07/01/15,09/30/15,TECHNICAL DIRECTOR (A),"23,267.25",FISCAL YEAR 2015,"","","","BERGER, DONALD W"
,CHIEF ADMIN OFCR OF THE HOUSE,2015Q3,PERSONNEL COMPENSATION,"","BERGER, DONALD W",06/01/15,07/31/15,TECHNICAL DIRECTOR (A) (OVERTIME),201.35,FISCAL YEAR 2015,"","","","BERGER, DONALD W"
,CHIEF ADMIN OFCR OF THE HOUSE,2015Q3,PERSONNEL COMPENSATION,"","BERRY,JOSEPH B",07/01/15,09/30/15,SYSTEMS ENGINEER,"22,098.51",FISCAL YEAR 2015,"","","","BERRY,JOSEPH B"
,CHIEF ADMIN OFCR OF THE HOUSE,2015Q3,PERSONNEL COMPENSATION,"","BEST, CHARLENE",07/01/15,09/30/15,MANAGER,"24,180.99",FISCAL YEAR 2015,"","","","BEST, CHARLENE"
,CHIEF ADMIN OFCR OF THE HOUSE,2015Q3,PERSONNEL COMPENSATION,"","BETHEA,LASHON L",07/01/15,09/30/15,TECHNICAL TRAINER,"25,548.00",FISCAL YEAR 2015,"","","","BETHEA,LASHON L"
,CHIEF ADMIN OFCR OF THE HOUSE,2015Q3,PERSONNEL COMPENSATION,"","BILLARD, MICHAEL A",07/01/15,09/30/15,COMMUNICATIONS SPEC,"25,548.00",FISCAL YEAR 2015,"","","","BILLARD, MICHAEL A"
,CHIEF ADMIN OFCR OF THE HOUSE,2015Q3,PERSONNEL COMPENSATION,"","BILLUPS, BRIAN E",07/01/15,09/30/15,NETWORK TECHNICIAN (A),"19,894.50",FISCAL YEAR 2015,"","","","BILLUPS, BRIAN E"
,CHIEF ADMIN OFCR OF THE HOUSE,2015Q3,PERSONNEL COMPENSATION,"","BLAKNEY, HAROLD",07/01/15,09/30/15,SENIOR SYSTEMS ENGINEER,"37,953.17",FISCAL YEAR 2015,"","","","BLAKNEY, HAROLD"
,CHIEF ADMIN OFCR OF THE HOUSE,2015Q3,PERSONNEL COMPENSATION,"","BOGAN, DAVID S",07/01/15,09/30/15,"SUPERVISOR, RETAIL INVENTORY","19,894.50",FISCAL YEAR 2015,"","","","BOGAN, DAVID S"
,CHIEF ADMIN OFCR OF THE HOUSE,2015Q3,PERSONNEL COMPENSATION,"","BOGER, KELLY M",07/01/15,09/30/15,ACCOUNT MANAGEMENT COUNSELOR,"20,294.76",FISCAL YEAR 2015,"","","","BOGER, KELLY M"
,CHIEF ADMIN OFCR OF THE HOUSE,2015Q3,PERSONNEL COMPENSATION,"","BOGER, KELLY M",06/01/15,08/31/15,ACCOUNT MANAGEMENT COUNSELOR (OVERTIME),"8,644.69",FISCAL YEAR 2015,"","","","BOGER, KELLY M"
,CHIEF ADMIN OFCR OF THE HOUSE,2015Q3,PERSONNEL COMPENSATION,"","BOOKER, CARLOS",07/01/15,09/30/15,SALES SPECIALIST,"10,599.99",FISCAL YEAR 2015,"","","","BOOKER, CARLOS"
,CHIEF ADMIN OFCR OF THE HOUSE,2015Q3,PERSONNEL COMPENSATION,"","BOONE, RUSSELL",07/01/15,09/30/15,TECHNICAL SUPPORT REP,"22,293.24",FISCAL YEAR 2015,"","","","BOONE, RUSSELL"
,CHIEF ADMIN OFCR OF THE HOUSE,2015Q3,PERSONNEL COMPENSATION,"","BOWERS,KAREN L",07/01/15,09/30/15,FINANCIAL COUNSELOR,"19,494.75",FISCAL YEAR 2015,"","","","BOWERS,KAREN L"
,CHIEF ADMIN OFCR OF THE HOUSE,2015Q3,PERSONNEL COMPENSATION,"","BOWLDING, SONIA R",07/01/15,09/30/15,REC/WAREHOUSE SPEC (A),"11,500.50",FISCAL YEAR 2015,"","","","BOWLDING, SONIA R"
,CHIEF ADMIN OFCR OF THE HOUSE,2015Q3,PERSONNEL COMPENSATION,"","BOWLES, JAMES A",07/01/15,09/30/15,JOURNEYMAN FURNITURE SPEC,"20,076.00",FISCAL YEAR 2015,"","","","BOWLES, JAMES A"
,CHIEF ADMIN OFCR OF THE HOUSE,2015Q3,PERSONNEL COMPENSATION,"","BOWLING-STOKES,CHAUNETTE L",07/01/15,09/30/15,MANAGEMENT ANALYST,"24,180.99",FISCAL YEAR 2015,"","","","BOWLING-STOKES,CHAUNETTE L"
,CHIEF ADMIN OFCR OF THE HOUSE,2015Q3,PERSONNEL COMPENSATION,"","BOWMAN,SHELIA",07/01/15,09/30/15,FINANCIAL COUNSELOR,"16,902.24",FISCAL YEAR 2015,"","","","BOWMAN,SHELIA"
,CHIEF ADMIN OFCR OF THE HOUSE,2015Q3,PERSONNEL COMPENSATION,"","BOYD, KRISTIE N",06/01/15,08/17/15,PHOTOGRAPHER/LAB TECH (TEMP),"12,506.78",FISCAL YEAR 2015,"","","","BOYD, KRISTIE N"
,CHIEF ADMIN OFCR OF THE HOUSE,2015Q3,PERSONNEL COMPENSATION,"","BOYD, PETRINA",07/01/15,09/30/15,SALES SPECIALIST,"11,970.99",FISCAL YEAR 2015,"","","","BOYD, PETRINA"
,CHIEF ADMIN OFCR OF THE HOUSE,2015Q3,PERSONNEL COMPENSATION,"","BOYLE, KEVIN J",07/01/15,09/30/15,SR BUSINESS PROCESS APPL SPEC,"39,621.51",FISCAL YEAR 2015,"","","","BOYLE, KEVIN J"
,CHIEF ADMIN OFCR OF THE HOUSE,2015Q3,PERSONNEL COMPENSATION,"","BRACKENS, ROBERT",07/01/15,09/30/15,BROADCAST PRODUCTION TECHNICIA,"22,098.51",FISCAL YEAR 2015,"","","","BRACKENS, ROBERT"
,CHIEF ADMIN OFCR OF THE HOUSE,2015Q3,PERSONNEL COMPENSATION,"","BRACKENS, ROBERT",06/01/15,07/31/15,BROADCAST PRODUCTION TECHNICIA (OVERTIME),828.69,FISCAL YEAR 2015,"","","","BRACKENS, ROBERT"
,CHIEF ADMIN OFCR OF THE HOUSE,2015Q3,PERSONNEL COMPENSATION,"","BRADY,JOHN R",07/01/15,09/30/15,JOURNEYMAN TEXTILE SPEC,"12,014.25",FISCAL YEAR 2015,"","","","BRADY,JOHN R"
,CHIEF ADMIN OFCR OF THE HOUSE,2015Q3,PERSONNEL COMPENSATION,"","BRAXTON, BRANDON A",07/01/15,09/30/15,LOGISTICS & DIST SPEC (A),"11,200.74",FISCAL YEAR 2015,"","","","BRAXTON, BRANDON A"
,CHIEF ADMIN OFCR OF THE HOUSE,2015Q3,PERSONNEL COMPENSATION,"","BREWSTER III,JAMES E",07/01/15,09/30/15,LOGISTICS & DIST SPEC (A),"9,441.24",FISCAL YEAR 2015,"","","","BREWSTER III,JAMES E"
,CHIEF ADMIN OFCR OF THE HOUSE,2015Q3,PERSONNEL COMPENSATION,"","BREWSTER,CHRISTOPHER A",07/01/15,09/30/15,ADMINISTRATIVE COUNSEL,"42,102.75",FISCAL YEAR 2015,"","","","BREWSTER,CHRISTOPHER A"
,CHIEF ADMIN OFCR OF THE HOUSE,2015Q3,PERSONNEL COMPENSATION,"","BRIDGEFORTH, TOINETTA A",07/01/15,09/30/15,CONTRACTS SPECIALIST,"23,004.24",FISCAL YEAR 2015,"","","","BRIDGEFORTH, TOINETTA A"
,CHIEF ADMIN OFCR OF THE HOUSE,2015Q3,PERSONNEL COMPENSATION,"","BRISCOE, KEVIN",07/01/15,09/30/15,LOGISTICS & DIST SPEC (A),"11,200.74",FISCAL YEAR 2015,"","","","BRISCOE, KEVIN"
,CHIEF ADMIN OFCR OF THE HOUSE,2015Q3,PERSONNEL COMPENSATION,"","BRITT,SHANNON W",06/01/15,06/26/15,SR HUMAN RESOURCES GENERALIST (OTHER COMPENSATION),"5,713.05",FISCAL YEAR 2015,"","","","BRITT,SHANNON W"
,CHIEF ADMIN OFCR OF THE HOUSE,2015Q3,PERSONNEL COMPENSATION,"","BROBBEY-MENSAH, KWAME",07/01/15,09/30/15,SR INFO SYST. SECURITY ANALYST,"29,025.99",FISCAL YEAR 2015,"","","","BROBBEY-MENSAH, KWAME"
,CHIEF ADMIN OFCR OF THE HOUSE,2015Q3,PERSONNEL COMPENSATION,"","BROWN SR, DEMETRICE T",07/01/15,09/30/15,SUPERVISOR,"27,469.74",FISCAL YEAR 2015,"","","","BROWN SR, DEMETRICE T"
,CHIEF ADMIN OFCR OF THE HOUSE,2015Q3,PERSONNEL COMPENSATION,"","BROWN, ANNETTE G",07/01/15,09/30/15,SR SOFTWARE ENGINEER,"26,914.74",FISCAL YEAR 2015,"","","","BROWN, ANNETTE G"
,CHIEF ADMIN OFCR OF THE HOUSE,2015Q3,PERSONNEL COMPENSATION,"","BROWN, KEITH S",07/01/15,08/31/15,REC/WAREHOUSE SPEC (A),"9,612.50",FISCAL YEAR 2015,"","","","BROWN, KEITH S"
,CHIEF ADMIN OFCR OF THE HOUSE,2015Q3,PERSONNEL COMPENSATION,"","BROWN, KEITH S",09/01/15,09/30/15,JOURNEYMAN FURNITURE SPEC,"4,806.25",FISCAL YEAR 2015,"","","","BROWN, KEITH S"
,CHIEF ADMIN OFCR OF THE HOUSE,2015Q3,PERSONNEL COMPENSATION,"","BROWN, PAMELA L",07/01/15,09/30/15,CUSTOMER SOLUTIONS REP,"18,885.51",FISCAL YEAR 2015,"","","","BROWN, PAMELA L"
,CHIEF ADMIN OFCR OF THE HOUSE,2015Q3,PERSONNEL COMPENSATION,"","BROWN,DAVID D",07/01/15,09/30/15,FINANCIAL COUNSELOR,"16,902.24",FISCAL YEAR 2015,"","","","BROWN,DAVID D"
,CHIEF ADMIN OFCR OF THE HOUSE,2015Q3,PERSONNEL COMPENSATION,"","BROWN,JASON",07/01/15,09/30/15,BROADCAST PRODUCTION TECHNICIA,"19,494.75",FISCAL YEAR 2015,"","","","BROWN,JASON"
,CHIEF ADMIN OFCR OF THE HOUSE,2015Q3,PERSONNEL COMPENSATION,"","BROWN,JASON",06/01/15,07/31/15,BROADCAST PRODUCTION TECHNICIA (OVERTIME),871.63,FISCAL YEAR 2015,"","","","BROWN,JASON"
,CHIEF ADMIN OFCR OF THE HOUSE,2015Q3,PERSONNEL COMPENSATION,"","BROWN,KIMBERLY K",07/01/15,09/07/15,RESOURCE ANALYST,"12,877.40",FISCAL YEAR 2015,"","","","BROWN,KIMBERLY K"
,CHIEF ADMIN OFCR OF THE HOUSE,2015Q3,PERSONNEL COMPENSATION,"","BROWN,KIMBERLY K",09/08/15,09/30/15,BUSINESS PROC APPLIC SPEC,"5,181.84",FISCAL YEAR 2015,"","","","BROWN,KIMBERLY K"
,CHIEF ADMIN OFCR OF THE HOUSE,2015Q3,PERSONNEL COMPENSATION,"","BROWN,LAWRENCE",07/01/15,09/30/15,BROADCAST ENGINEER/PROD SPEC,"22,551.24",FISCAL YEAR 2015,"","","","BROWN,LAWRENCE"
,CHIEF ADMIN OFCR OF THE HOUSE,2015Q3,PERSONNEL COMPENSATION,"","BROWN,LAWRENCE",06/01/15,06/30/15,BROADCAST ENGINEER/PROD SPEC. (OVERTIME),32.53,FISCAL YEAR 2015,"","","","BROWN,LAWRENCE"
,CHIEF ADMIN OFCR OF THE HOUSE,2015Q3,PERSONNEL COMPENSATION,"","BRUMMELL,JENELLE L",07/01/15,09/30/15,PARALEGAL,"18,431.42",FISCAL YEAR 2015,"","","","BRUMMELL,JENELLE L"
,CHIEF ADMIN OFCR OF THE HOUSE,2015Q3,PERSONNEL COMPENSATION,"","BUCKLER, RICKY L",07/01/15,09/30/15,PURCHASING AGENT,"19,494.75",FISCAL YEAR 2015,"","","","BUCKLER, RICKY L"
,CHIEF ADMIN OFCR OF THE HOUSE,2015Q3,PERSONNEL COMPENSATION,"","BUCKLER, TROY D",07/01/15,09/30/15,PURCHASING AGENT,"16,491.99",FISCAL YEAR 2015,"","","","BUCKLER, TROY D"
,CHIEF ADMIN OFCR OF THE HOUSE,2015Q3,PERSONNEL COMPENSATION,"","BUFORD, MARCIA L",07/01/15,09/30/15,COMPUTER FAC OP SUPERVISOR,"26,914.74",FISCAL YEAR 2015,"","","","BUFORD, MARCIA L"
,CHIEF ADMIN OFCR OF THE HOUSE,2015Q3,PERSONNEL COMPENSATION,"","BURCH, KENNETH J",07/01/15,09/30/15,BUSINESS PROC APPLIC SPEC,"30,408.58",FISCAL YEAR 2015,"","","","BURCH, KENNETH J"
,CHIEF ADMIN OFCR OF THE HOUSE,2015Q3,PERSONNEL COMPENSATION,"","BUTLER, CLARENCE G",07/01/15,09/30/15,JOURNEYMAN FURNITURE SPEC,"15,802.50",FISCAL YEAR 2015,"","","","BUTLER, CLARENCE G"
,CHIEF ADMIN OFCR OF THE HOUSE,2015Q3,PERSONNEL COMPENSATION,"","BUTLER, JAMES F",07/01/15,09/30/15,"MANAGER, PAYROLL & BENEFITS","28,508.01",FISCAL YEAR 2015,"","","","BUTLER, JAMES F"
,CHIEF ADMIN OFCR OF THE HOUSE,2015Q3,PERSONNEL COMPENSATION,"","CALLAWAY, ROBERT M",07/01/15,09/30/15,SR BROADCAST ENG./PROD SPEC,"24,636.00",FISCAL YEAR 2015,"","","","CALLAWAY, ROBERT M"
,CHIEF ADMIN OFCR OF THE HOUSE,2015Q3,PERSONNEL COMPENSATION,"","CANNON, DREW",07/01/15,07/17/15,4TH ASST SUPERINTENDENT,"3,417.43",FISCAL YEAR 2015,"","","","CANNON, DREW"
,CHIEF ADMIN OFCR OF THE HOUSE,2015Q3,PERSONNEL COMPENSATION,"","CANNON, DREW",07/01/15,07/17/15,4TH ASST SUPERINTENDENT (OTHER COMPENSATION),653.33,FISCAL YEAR 2015,"","","","CANNON, DREW"
,CHIEF ADMIN OFCR OF THE HOUSE,2015Q3,PERSONNEL COMPENSATION,"","CARCAMO, ALICIA L",07/01/15,09/30/15,ACCOUNTING TECHNICIAN,"19,283.25",FISCAL YEAR 2015,"","","","CARCAMO, ALICIA L"
,CHIEF ADMIN OFCR OF THE HOUSE,2015Q3,PERSONNEL COMPENSATION,"","CARNNIA,CASEY",07/01/15,09/30/15,INTERNET SYSTEMS SPECIALIST,"19,894.50",FISCAL YEAR 2015,"","","","CARNNIA,CASEY"
,CHIEF ADMIN OFCR OF THE HOUSE,2015Q3,PERSONNEL COMPENSATION,"","CARR, JOSH D",07/01/15,09/30/15,SENIOR SYSTEMS ENGINEER,"25,548.00",FISCAL YEAR 2015,"","","","CARR, JOSH D"
,CHIEF ADMIN OFCR OF THE HOUSE,2015Q3,PERSONNEL COMPENSATION,"","CARRICO, RONALD",07/01/15,09/30/15,SR BUSINESS PROCESS APPL SPEC,"37,120.50",FISCAL YEAR 2015,"","","","CARRICO, RONALD"
,CHIEF ADMIN OFCR OF THE HOUSE,2015Q3,PERSONNEL COMPENSATION,"","CARSON,LAWRENCE T",07/01/15,09/30/15,SALES SPECIALIST,"10,298.76",FISCAL YEAR 2015,"","","","CARSON,LAWRENCE T"
,CHIEF ADMIN OFCR OF THE HOUSE,2015Q3,PERSONNEL COMPENSATION,"","CARTER JR, JOHN L",07/01/15,09/30/15,"MANAGER, FINISHING","25,275.24",FISCAL YEAR 2015,"","","","CARTER JR, JOHN L"
,CHIEF ADMIN OFCR OF THE HOUSE,2015Q3,PERSONNEL COMPENSATION,"","CARTER,DELISA D",07/01/15,09/30/15,SR. SOFTWARE SPECIALIST,"35,867.25",FISCAL YEAR 2015,"","","","CARTER,DELISA D"
,CHIEF ADMIN OFCR OF THE HOUSE,2015Q3,PERSONNEL COMPENSATION,"","CASSIDY, ED",07/01/15,09/30/15,CHIEF ADMINISTRATIVE OFFICER,"43,125.00",FISCAL YEAR 2015,"","","","CASSIDY, ED"
,CHIEF ADMIN OFCR OF THE HOUSE,2015Q3,PERSONNEL COMPENSATION,"","CAULK, ANDREW T",07/01/15,09/30/15,MANAGER,"24,938.66",FISCAL YEAR 2015,"","","","CAULK, ANDREW T"
,CHIEF ADMIN OFCR OF THE HOUSE,2015Q3,PERSONNEL COMPENSATION,"","CHABOT, ELLIOT C",07/01/15,07/31/15,SR SYSTEMS ANALYST,"10,884.75",FISCAL YEAR 2015,"","","","CHABOT, ELLIOT C"
,CHIEF ADMIN OFCR OF THE HOUSE,2015Q3,PERSONNEL COMPENSATION,"","CHABOT, ELLIOT C",08/01/15,09/30/15,SENIOR SYSTEMS ANALYST,"21,769.50",FISCAL YEAR 2015,"","","","CHABOT, ELLIOT C"
,CHIEF ADMIN OFCR OF THE HOUSE,2015Q3,PERSONNEL COMPENSATION,"","CHAMBERS, KEVIN N",07/01/15,09/30/15,SR CUSTOMER SOLUTIONS REP,"20,694.00",FISCAL YEAR 2015,"","","","CHAMBERS, KEVIN N"
,CHIEF ADMIN OFCR OF THE HOUSE,2015Q3,PERSONNEL COMPENSATION,"","CHANG, SU-HWA",07/01/15,09/30/15,SENIOR SYSTEMS ENGINEER,"31,614.75",FISCAL YEAR 2015,"","","","CHANG, SU-HWA"
,CHIEF ADMIN OFCR OF THE HOUSE,2015Q3,PERSONNEL COMPENSATION,"","CHARGUALAF,JESSE",07/01/15,09/30/15,BROADCAST ENGINEER/PROD SPEC,"20,276.76",FISCAL YEAR 2015,"","","","CHARGUALAF,JESSE"
,CHIEF ADMIN OFCR OF THE HOUSE,2015Q3,PERSONNEL COMPENSATION,"","CHARGUALAF,JESSE",06/01/15,07/31/15,BROADCAST ENGINEER/PROD SPEC. (OVERTIME),263.20,FISCAL YEAR 2015,"","","","CHARGUALAF,JESSE"
,CHIEF ADMIN OFCR OF THE HOUSE,2015Q3,PERSONNEL COMPENSATION,"","CHEN, SUSAN",07/01/15,09/30/15,FINANCIAL COUNSELOR,"16,902.24",FISCAL YEAR 2015,"","","","CHEN, SUSAN"
,CHIEF ADMIN OFCR OF THE HOUSE,2015Q3,PERSONNEL COMPENSATION,"","CHIU,JIMMY",07/07/15,09/30/15,HRIS APPLICATIONS SYST ANALYST,"24,186.63",FISCAL YEAR 2015,"","","","CHIU,JIMMY"
,CHIEF ADMIN OFCR OF THE HOUSE,2015Q3,PERSONNEL COMPENSATION,"","CICALE, MICHAEL P",07/01/15,09/30/15,SR CUSTOMER SOLUTIONS REP,"19,283.25",FISCAL YEAR 2015,"","","","CICALE, MICHAEL P"
,CHIEF ADMIN OFCR OF THE HOUSE,2015Q3,PERSONNEL COMPENSATION,"","CLAGGETT, TIMOTHY A",07/01/15,09/30/15,JOURNEYMAN TEXTILE SPEC,"19,283.25",FISCAL YEAR 2015,"","","","CLAGGETT, TIMOTHY A"
,CHIEF ADMIN OFCR OF THE HOUSE,2015Q3,PERSONNEL COMPENSATION,"","CLARK, MARION",07/01/15,09/30/15,SR TELECOMMUNICATIONS ADMIN,"18,092.25",FISCAL YEAR 2015,"","","","CLARK, MARION"
,CHIEF ADMIN OFCR OF THE HOUSE,2015Q3,PERSONNEL COMPENSATION,"","CLARKE, JOHN P",07/01/15,09/30/15,SUPERVISOR,"22,249.42",FISCAL YEAR 2015,"","","","CLARKE, JOHN P"
,CHIEF ADMIN OFCR OF THE HOUSE,2015Q3,PERSONNEL COMPENSATION,"","COAKLEY,KRISTEN J",07/01/15,09/30/15,SR TELECOMMUNICATIONS ADMIN,"17,298.00",FISCAL YEAR 2015,"","","","COAKLEY,KRISTEN J"
,CHIEF ADMIN OFCR OF THE HOUSE,2015Q3,PERSONNEL COMPENSATION,"","COBB, FAYE C",07/01/15,09/30/15,"DIR, BUDGET, POLICY & PLANNING","40,594.26",FISCAL YEAR 2015,"","","","COBB, FAYE C"
,CHIEF ADMIN OFCR OF THE HOUSE,2015Q3,PERSONNEL COMPENSATION,"","COLBERT, RAY C",07/01/15,09/30/15,SR BROADCAST ENG/PROD SPECLST,"24,180.99",FISCAL YEAR 2015,"","","","COLBERT, RAY C"
,CHIEF ADMIN OFCR OF THE HOUSE,2015Q3,PERSONNEL COMPENSATION,"","COLBERT, RAY C",06/01/15,07/31/15,SR BROADCAST ENG/PROD SPECLST (OVERTIME),383.63,FISCAL YEAR 2015,"","","","COLBERT, RAY C"
,CHIEF ADMIN OFCR OF THE HOUSE,2015Q3,PERSONNEL COMPENSATION,"","COLLINS, JOHN B",07/01/15,09/30/15,BROADCAST PRODUCTION TECHNICIA,"23,916.00",FISCAL YEAR 2015,"","","","COLLINS, JOHN B"
,CHIEF ADMIN OFCR OF THE HOUSE,2015Q3,PERSONNEL COMPENSATION,"","COLLINS, JOHN B",06/01/15,07/31/15,BROADCAST PRODUCTION TECHNICIA (OVERTIME),"1,793.68",FISCAL YEAR 2015,"","","","COLLINS, JOHN B"
,CHIEF ADMIN OFCR OF THE HOUSE,2015Q3,PERSONNEL COMPENSATION,"","COLLINS,JOEL",07/01/15,09/30/15,SR INTERNET SYSTEMS SPECIALIST,"31,016.25",FISCAL YEAR 2015,"","","","COLLINS,JOEL"
,CHIEF ADMIN OFCR OF THE HOUSE,2015Q3,PERSONNEL COMPENSATION,"","CONNOLLY,ERIC",07/01/15,09/30/15,PHOTOGRAPHER,"15,117.24",FISCAL YEAR 2015,"","","","CONNOLLY,ERIC"
,CHIEF ADMIN OFCR OF THE HOUSE,2015Q3,PERSONNEL COMPENSATION,"","CONNOLLY,ERIC",07/01/15,07/31/15,PHOTOGRAPHER (OVERTIME),650.62,FISCAL YEAR 2015,"","","","CONNOLLY,ERIC"
,CHIEF ADMIN OFCR OF THE HOUSE,2015Q3,PERSONNEL COMPENSATION,"","COOK, ERIC H",07/01/15,09/30/15,NETWORK TECHNICIAN,"20,694.00",FISCAL YEAR 2015,"","","","COOK, ERIC H"
,CHIEF ADMIN OFCR OF THE HOUSE,2015Q3,PERSONNEL COMPENSATION,"","COOPER, RICHARD S",07/01/15,09/30/15,STAFF ACCOUNTANT (A),"25,700.00",FISCAL YEAR 2015,"","","","COOPER, RICHARD S"
,CHIEF ADMIN OFCR OF THE HOUSE,2015Q3,PERSONNEL COMPENSATION,"","CORNEJO, LUIS E",07/01/15,09/30/15,SENIOR SYSTEMS ENGINEER,"26,461.26",FISCAL YEAR 2015,"","","","CORNEJO, LUIS E"
,CHIEF ADMIN OFCR OF THE HOUSE,2015Q3,PERSONNEL COMPENSATION,"","COX, BRIDGET A",07/01/15,09/30/15,SENIOR SYSTEMS ANALYST,"30,581.25",FISCAL YEAR 2015,"","","","COX, BRIDGET A"
,CHIEF ADMIN OFCR OF THE HOUSE,2015Q3,PERSONNEL COMPENSATION,"","COYNE III, THOMAS E",07/01/15,09/30/15,CHIEF LOGISTICS OFFICER,"42,102.75",FISCAL YEAR 2015,"","","","COYNE III, THOMAS E"
,CHIEF ADMIN OFCR OF THE HOUSE,2015Q3,PERSONNEL COMPENSATION,"","CRUDUP III, WILLIAM D",07/01/15,09/30/15,LOGISTICS & DIST SPEC (A),"12,872.76",FISCAL YEAR 2015,"","","","CRUDUP III, WILLIAM D"
,CHIEF ADMIN OFCR OF THE HOUSE,2015Q3,PERSONNEL COMPENSATION,"","CRUDUP III, WILLIAM D",08/01/15,08/31/15,LOGISTICS & DIST SPEC (A) (OVERTIME),99.02,FISCAL YEAR 2015,"","","","CRUDUP III, WILLIAM D"
,CHIEF ADMIN OFCR OF THE HOUSE,2015Q3,PERSONNEL COMPENSATION,"","CUFF,LOREN D",07/01/15,09/30/15,INTERNET SYSTEMS SPECIALIST,"20,294.76",FISCAL YEAR 2015,"","","","CUFF,LOREN D"
,CHIEF ADMIN OFCR OF THE HOUSE,2015Q3,PERSONNEL COMPENSATION,"","CUFFEY, LAWRENCE",07/01/15,09/30/15,SR RECVNG AND WAREHOUSING SPEC,"18,207.24",FISCAL YEAR 2015,"","","","CUFFEY, LAWRENCE"
,CHIEF ADMIN OFCR OF THE HOUSE,2015Q3,PERSONNEL COMPENSATION,"","CUPRILL, CARLOS",07/01/15,09/30/15,SR TECHNICAL SUPPORT REP,"23,004.24",FISCAL YEAR 2015,"","","","CUPRILL, CARLOS"
,CHIEF ADMIN OFCR OF THE HOUSE,2015Q3,PERSONNEL COMPENSATION,"","CUTLER JR, BENJAMIN S",07/01/15,09/30/15,PAYROLL & BENEFITS ASSISTANT,"15,802.50",FISCAL YEAR 2015,"","","","CUTLER JR, BENJAMIN S"
,CHIEF ADMIN OFCR OF THE HOUSE,2015Q3,PERSONNEL COMPENSATION,"","DAHL,RYAN S",07/01/15,09/30/15,MEDIA LOGISTICS COORDINATOR,"15,460.26",FISCAL YEAR 2015,"","","","DAHL,RYAN S"
,CHIEF ADMIN OFCR OF THE HOUSE,2015Q3,PERSONNEL COMPENSATION,"","DAHLSTROM, DARREN",07/01/15,09/30/15,JOURNEYMAN FURNITURE SPEC,"20,076.00",FISCAL YEAR 2015,"","","","DAHLSTROM, DARREN"
,CHIEF ADMIN OFCR OF THE HOUSE,2015Q3,PERSONNEL COMPENSATION,"","DAVENPORT,KAREN V",07/01/15,09/30/15,FINANCIAL ANALYST,"22,551.24",FISCAL YEAR 2015,"","","","DAVENPORT,KAREN V"
,CHIEF ADMIN OFCR OF THE HOUSE,2015Q3,PERSONNEL COMPENSATION,"","DAVIS, JOHN J",07/01/15,09/30/15,BROADCAST PRODUCTION TECHNICIA,"23,004.24",FISCAL YEAR 2015,"","","","DAVIS, JOHN J"
,CHIEF ADMIN OFCR OF THE HOUSE,2015Q3,PERSONNEL COMPENSATION,"","DAVIS, JOHN J",06/01/15,07/31/15,BROADCAST PRODUCTION TECHNICIA (OVERTIME),44.24,FISCAL YEAR 2015,"","","","DAVIS, JOHN J"
,CHIEF ADMIN OFCR OF THE HOUSE,2015Q3,PERSONNEL COMPENSATION,"","DAVIS, STACHIA G",07/01/15,09/30/15,DIR MOD FURN & TRANSITION,"28,334.76",FISCAL YEAR 2015,"","","","DAVIS, STACHIA G"
,CHIEF ADMIN OFCR OF THE HOUSE,2015Q3,PERSONNEL COMPENSATION,"","DAVIS,SCOTT K",07/01/15,09/30/15,PAYROLL & BENEFITS GENERALIST,"17,298.00",FISCAL YEAR 2015,"","","","DAVIS,SCOTT K"
,CHIEF ADMIN OFCR OF THE HOUSE,2015Q3,PERSONNEL COMPENSATION,"","DAWKINS, JOANN",07/01/15,09/30/15,SR TELECOMM ADMIN,"16,836.99",FISCAL YEAR 2015,"","","","DAWKINS, JOANN"
,CHIEF ADMIN OFCR OF THE HOUSE,2015Q3,PERSONNEL COMPENSATION,"","DEAN, JOSEPH M",07/01/15,09/30/15,JOURNEYMAN TEXTILE SPEC,"20,694.00",FISCAL YEAR 2015,"","","","DEAN, JOSEPH M"
,CHIEF ADMIN OFCR OF THE HOUSE,2015Q3,PERSONNEL COMPENSATION,"","DEAVER,JAMES",07/01/15,09/30/15,SENIOR SYSTEMS ENGINEER,"32,712.00",FISCAL YEAR 2015,"","","","DEAVER,JAMES"
,CHIEF ADMIN OFCR OF THE HOUSE,2015Q3,PERSONNEL COMPENSATION,"","DELISLE,KALDON A",07/01/15,09/30/15,JOURNEYMAN FURNITURE SPEC,"14,545.91",FISCAL YEAR 2015,"","","","DELISLE,KALDON A"
,CHIEF ADMIN OFCR OF THE HOUSE,2015Q3,PERSONNEL COMPENSATION,"","DELUCA, ALAN",07/01/15,09/30/15,COMPUTER FACILITIES OP MGR (A),"36,494.49",FISCAL YEAR 2015,"","","","DELUCA, ALAN"
,CHIEF ADMIN OFCR OF THE HOUSE,2015Q3,PERSONNEL COMPENSATION,"","DENT,RICHARD H",07/01/15,09/30/15,JOURNEYMAN TEXTILE SPEC,"13,043.49",FISCAL YEAR 2015,"","","","DENT,RICHARD H"
,CHIEF ADMIN OFCR OF THE HOUSE,2015Q3,PERSONNEL COMPENSATION,"","DERRICK, SCOTT",07/01/15,09/30/15,GRAPHICS & DESKTOP PUBL SPEC,"23,460.75",FISCAL YEAR 2015,"","","","DERRICK, SCOTT"
,CHIEF ADMIN OFCR OF THE HOUSE,2015Q3,PERSONNEL COMPENSATION,"","DICKIE, JAMES",07/01/15,09/30/15,ENGINEERING OPS MANAGER,"31,582.50",FISCAL YEAR 2015,"","","","DICKIE, JAMES"
,CHIEF ADMIN OFCR OF THE HOUSE,2015Q3,PERSONNEL COMPENSATION,"","DIEFFENDERFER, GARY L",07/01/15,09/30/15,SR. APPLICATION DBA SPECIALIST,"32,712.00",FISCAL YEAR 2015,"","","","DIEFFENDERFER, GARY L"
,CHIEF ADMIN OFCR OF THE HOUSE,2015Q3,PERSONNEL COMPENSATION,"","DOBBINS, MARK",07/01/15,09/30/15,"MANAGER, PURCHASING","23,916.00",FISCAL YEAR 2015,"","","","DOBBINS, MARK"
,CHIEF ADMIN OFCR OF THE HOUSE,2015Q3,PERSONNEL COMPENSATION,"","DOLPH,EMILY M",07/01/15,07/31/15,ADA AIDE,"4,924.25",FISCAL YEAR 2015,"","","","DOLPH,EMILY M"
,CHIEF ADMIN OFCR OF THE HOUSE,2015Q3,PERSONNEL COMPENSATION,"","DOLPH,EMILY M",06/01/15,06/30/15,ADA AIDE (OVERTIME),603.69,FISCAL YEAR 2015,"","","","DOLPH,EMILY M"
,CHIEF ADMIN OFCR OF THE HOUSE,2015Q3,PERSONNEL COMPENSATION,"","DOLPH,EMILY M",07/01/15,07/31/15,ADA AIDE (OTHER COMPENSATION),"2,503.16",FISCAL YEAR 2015,"","","","DOLPH,EMILY M"
,CHIEF ADMIN OFCR OF THE HOUSE,2015Q3,PERSONNEL COMPENSATION,"","DOODY,ERICA",02/01/15,09/30/15,ADMINISTRATIVE SPECIALIST,"9,024.62",FISCAL YEAR 2015,"","","","DOODY,ERICA"
,CHIEF ADMIN OFCR OF THE HOUSE,2015Q3,PERSONNEL COMPENSATION,"","DOOLEY,GENEVA",07/01/15,09/30/15,SENIOR SOFTWARE SPECIALIST,"32,712.00",FISCAL YEAR 2015,"","","","DOOLEY,GENEVA"
,CHIEF ADMIN OFCR OF THE HOUSE,2015Q3,PERSONNEL COMPENSATION,"","DOZIER, BRIAN A",07/01/15,09/30/15,INVENTORY ADMINISTRATOR,"15,802.50",FISCAL YEAR 2015,"","","","DOZIER, BRIAN A"
,CHIEF ADMIN OFCR OF THE HOUSE,2015Q3,PERSONNEL COMPENSATION,"","DUENAS, JOSEPH E",07/01/15,09/30/15,TECHNICAL SUPPORT REP,"19,095.51",FISCAL YEAR 2015,"","","","DUENAS, JOSEPH E"
,CHIEF ADMIN OFCR OF THE HOUSE,2015Q3,PERSONNEL COMPENSATION,"","DUNKLIN, KELDA Y",07/01/15,09/30/15,SR TECHNICAL SUPPORT REP,"26,914.74",FISCAL YEAR 2015,"","","","DUNKLIN, KELDA Y"
,CHIEF ADMIN OFCR OF THE HOUSE,2015Q3,PERSONNEL COMPENSATION,"","DURAN, ROLANDO",07/01/15,09/30/15,ELECTRONICS TECHNICIAN (A),"23,004.24",FISCAL YEAR 2015,"","","","DURAN, ROLANDO"
,CHIEF ADMIN OFCR OF THE HOUSE,2015Q3,PERSONNEL COMPENSATION,"","DURAN, ROLANDO",07/01/15,07/31/15,ELECTRONICS TECHNICIAN (A) (OVERTIME),199.07,FISCAL YEAR 2015,"","","","DURAN, ROLANDO"
,CHIEF ADMIN OFCR OF THE HOUSE,2015Q3,PERSONNEL COMPENSATION,"","EAGLIN,HOPE J",07/01/15,09/30/15,SENIOR SECURITY ANALYST,"27,469.74",FISCAL YEAR 2015,"","","","EAGLIN,HOPE J"
,CHIEF ADMIN OFCR OF THE HOUSE,2015Q3,PERSONNEL COMPENSATION,"","EGERSON, TROY H",07/01/15,09/30/15,JOURNEYMAN TEXTILE SPEC,"18,885.51",FISCAL YEAR 2015,"","","","EGERSON, TROY H"
,CHIEF ADMIN OFCR OF THE HOUSE,2015Q3,PERSONNEL COMPENSATION,"","ELIAS, ANDREW C",07/01/15,09/30/15,DEPUTY DIRECTOR,"30,581.25",FISCAL YEAR 2015,"","","","ELIAS, ANDREW C"
,CHIEF ADMIN OFCR OF THE HOUSE,2015Q3,PERSONNEL COMPENSATION,"","ELLIN, JAMES B",07/01/15,09/30/15,SR NETWORK SYSTEMS ENGINEER,"30,453.99",FISCAL YEAR 2015,"","","","ELLIN, JAMES B"
,CHIEF ADMIN OFCR OF THE HOUSE,2015Q3,PERSONNEL COMPENSATION,"","ELLIOTT, RONALD",07/01/15,09/30/15,SR INFO SYST. SECURITY ANALYST,"26,004.00",FISCAL YEAR 2015,"","","","ELLIOTT, RONALD"
,CHIEF ADMIN OFCR OF THE HOUSE,2015Q3,PERSONNEL COMPENSATION,"","ELLIS,FRANKLIN M",07/01/15,09/30/15,SR SYSTEMS SUPPORT ENGINEER,"23,267.25",FISCAL YEAR 2015,"","","","ELLIS,FRANKLIN M"
,CHIEF ADMIN OFCR OF THE HOUSE,2015Q3,PERSONNEL COMPENSATION,"","ELLIS-GREGG, SHARON",07/01/15,09/30/15,PAYROLL & BENEFITS ASSISTANT,"14,418.75",FISCAL YEAR 2015,"","","","ELLIS-GREGG, SHARON"
,CHIEF ADMIN OFCR OF THE HOUSE,2015Q3,PERSONNEL COMPENSATION,"","ELLIS-JONES, DEBORAH",07/01/15,09/30/15,ADMIN-FINANCE & PAYROLL,"24,180.99",FISCAL YEAR 2015,"","","","ELLIS-JONES, DEBORAH"
,CHIEF ADMIN OFCR OF THE HOUSE,2015Q3,PERSONNEL COMPENSATION,"","EMAMALI, NICOLE S",07/01/15,09/30/15,SR TECHNICAL SUPPORT REP,"28,161.51",FISCAL YEAR 2015,"","","","EMAMALI, NICOLE S"
,CHIEF ADMIN OFCR OF THE HOUSE,2015Q3,PERSONNEL COMPENSATION,"","ENGLISH IV, JAMES H",07/01/15,09/30/15,JOURNEYMAN FURNITURE SPEC,"13,742.76",FISCAL YEAR 2015,"","","","ENGLISH IV, JAMES H"
,CHIEF ADMIN OFCR OF THE HOUSE,2015Q3,PERSONNEL COMPENSATION,"","ENGLISH, JOSEPH H",07/01/15,09/30/15,MOBILE COMM SPECIALIST (DATA),"26,004.00",FISCAL YEAR 2015,"","","","ENGLISH, JOSEPH H"
,CHIEF ADMIN OFCR OF THE HOUSE,2015Q3,PERSONNEL COMPENSATION,"","ERVING, JAMES H",07/01/15,09/30/15,COMMUNICATIONS SPECIALIST,"26,914.74",FISCAL YEAR 2015,"","","","ERVING, JAMES H"
,CHIEF ADMIN OFCR OF THE HOUSE,2015Q3,PERSONNEL COMPENSATION,"","ETCHISON,CHERYL A",07/01/15,09/30/15,"MANAGER, PAYROLL & BENEFITS","29,700.17",FISCAL YEAR 2015,"","","","ETCHISON,CHERYL A"
,CHIEF ADMIN OFCR OF THE HOUSE,2015Q3,PERSONNEL COMPENSATION,"","EVANS JR, WILLIAM R",07/01/15,09/30/15,ELECTRONICS TECHNICIAN (A),"23,460.75",FISCAL YEAR 2015,"","","","EVANS JR, WILLIAM R"
,CHIEF ADMIN OFCR OF THE HOUSE,2015Q3,PERSONNEL COMPENSATION,"","EVANS JR, WILLIAM R",06/01/15,07/31/15,ELECTRONICS TECHNICIAN (A) (OVERTIME),"1,815.93",FISCAL YEAR 2015,"","","","EVANS JR, WILLIAM R"
,CHIEF ADMIN OFCR OF THE HOUSE,2015Q3,PERSONNEL COMPENSATION,"","EVANS,THOMAS F",07/01/15,09/30/15,INFO SYSTEMS SECURITY ANALYST,"23,723.49",FISCAL YEAR 2015,"","","","EVANS,THOMAS F"
,CHIEF ADMIN OFCR OF THE HOUSE,2015Q3,PERSONNEL COMPENSATION,"","EWERS, GRETCHEN",07/01/15,09/30/15,MANAGER,"26,914.74",FISCAL YEAR 2015,"","","","EWERS, GRETCHEN"
,CHIEF ADMIN OFCR OF THE HOUSE,2015Q3,PERSONNEL COMPENSATION,"","EWING JR, JOHN C",03/01/15,09/30/15,RECEIVING/WAREHOUSE SPECIALIST,"9,831.76",FISCAL YEAR 2015,"","","","EWING JR, JOHN C"
,CHIEF ADMIN OFCR OF THE HOUSE,2015Q3,PERSONNEL COMPENSATION,"","FARLEY, JOANN I",07/01/15,09/30/15,FINANCIAL COUNSELOR,"18,487.74",FISCAL YEAR 2015,"","","","FARLEY, JOANN I"
,CHIEF ADMIN OFCR OF THE HOUSE,2015Q3,PERSONNEL COMPENSATION,"","FINUCANE,CHRISTOPHER B",07/01/15,09/30/15,DIRECTOR ENTERPRISE OPERATIONS,"40,594.26",FISCAL YEAR 2015,"","","","FINUCANE,CHRISTOPHER B"
,CHIEF ADMIN OFCR OF THE HOUSE,2015Q3,PERSONNEL COMPENSATION,"","FISHER, JEROME",07/01/15,09/30/15,SR TECH SOLUTIONS ENGINEER,"25,089.99",FISCAL YEAR 2015,"","","","FISHER, JEROME"
,CHIEF ADMIN OFCR OF THE HOUSE,2015Q3,PERSONNEL COMPENSATION,"","FITZGERALD,KATHLEEN M",07/27/15,09/30/15,BUSINESS CONTINUITY MANAGER,"22,458.67",FISCAL YEAR 2015,"","","","FITZGERALD,KATHLEEN M"
,CHIEF ADMIN OFCR OF THE HOUSE,2015Q3,PERSONNEL COMPENSATION,"","FONTNEAU, BRUCE",07/01/15,09/30/15,SYSTEMS ENGINEER,"24,180.99",FISCAL YEAR 2015,"","","","FONTNEAU, BRUCE"
,CHIEF ADMIN OFCR OF THE HOUSE,2015Q3,PERSONNEL COMPENSATION,"","FORD, DARIN J",07/01/15,09/30/15,SR TECHNICAL SUPPORT REP (A),"23,004.24",FISCAL YEAR 2015,"","","","FORD, DARIN J"
,CHIEF ADMIN OFCR OF THE HOUSE,2015Q3,PERSONNEL COMPENSATION,"","FORGIONE, JOHN A",07/01/15,09/30/15,SR CUSTOMER SOLUTIONS REP,"19,283.25",FISCAL YEAR 2015,"","","","FORGIONE, JOHN A"
,CHIEF ADMIN OFCR OF THE HOUSE,2015Q3,PERSONNEL COMPENSATION,"","FOSTER, CHARLES J",07/01/15,09/30/15,PAYROLL & BENEFITS ASSISTANT,"14,418.75",FISCAL YEAR 2015,"","","","FOSTER, CHARLES J"
,CHIEF ADMIN OFCR OF THE HOUSE,2015Q3,PERSONNEL COMPENSATION,"","FOUNTAIN,ANIKA",07/01/15,09/30/15,TECH SOLUTIONS TECHNICIAN,"18,092.25",FISCAL YEAR 2015,"","","","FOUNTAIN,ANIKA"
,CHIEF ADMIN OFCR OF THE HOUSE,2015Q3,PERSONNEL COMPENSATION,"","FRAVEL,DON J",03/01/15,09/30/15,TECH SOLUTIONS TECHNICIAN,"15,989.23",FISCAL YEAR 2015,"","","","FRAVEL,DON J"
,CHIEF ADMIN OFCR OF THE HOUSE,2015Q3,PERSONNEL COMPENSATION,"","FRECH, JASON L",07/01/15,09/30/15,SR SYSTEMS ENGINEER,"26,953.74",FISCAL YEAR 2015,"","","","FRECH, JASON L"
,CHIEF ADMIN OFCR OF THE HOUSE,2015Q3,PERSONNEL COMPENSATION,"","FREEMAN, ANTOINETTE P",07/01/15,09/30/15,ADMINISTRATIVE SPECIALIST,"15,104.76",FISCAL YEAR 2015,"","","","FREEMAN, ANTOINETTE P"
,CHIEF ADMIN OFCR OF THE HOUSE,2015Q3,PERSONNEL COMPENSATION,"","FREENEY, MALCOLM",07/01/15,09/30/15,PROJECT MANAGER,"26,461.26",FISCAL YEAR 2015,"","","","FREENEY, MALCOLM"
,CHIEF ADMIN OFCR OF THE HOUSE,2015Q3,PERSONNEL COMPENSATION,"","FRENCH, CHARLES",07/01/15,09/30/15,SENIOR NETWORK TECHNICIAN,"26,004.00",FISCAL YEAR 2015,"","","","FRENCH, CHARLES"
,CHIEF ADMIN OFCR OF THE HOUSE,2015Q3,PERSONNEL COMPENSATION,"","FRITZ,ERIC D",07/01/15,09/30/15,SENIOR SYSTEMS ENGINEER,"27,988.26",FISCAL YEAR 2015,"","","","FRITZ,ERIC D"
,CHIEF ADMIN OFCR OF THE HOUSE,2015Q3,PERSONNEL COMPENSATION,"","GAINES, JULIA W",07/01/15,09/30/15,SPECIAL ASSISTANT (A),"26,185.50",FISCAL YEAR 2015,"","","","GAINES, JULIA W"
,CHIEF ADMIN OFCR OF THE HOUSE,2015Q3,PERSONNEL COMPENSATION,"","GALLAGHER, RENEE",07/01/15,09/30/15,SR INFO SYST. SECURITY ANALYST,"26,004.00",FISCAL YEAR 2015,"","","","GALLAGHER, RENEE"
,CHIEF ADMIN OFCR OF THE HOUSE,2015Q3,PERSONNEL COMPENSATION,"","GALLAGHER,RYAN S",07/01/15,09/30/15,PAYROLL & BENEFITS GENERALIST,"14,432.49",FISCAL YEAR 2015,"","","","GALLAGHER,RYAN S"
,CHIEF ADMIN OFCR OF THE HOUSE,2015Q3,PERSONNEL COMPENSATION,"","GARAY, GERMAN",07/01/15,09/30/15,BROADCAST PRODUCTION TECHNICIA,"23,460.75",FISCAL YEAR 2015,"","","","GARAY, GERMAN"
,CHIEF ADMIN OFCR OF THE HOUSE,2015Q3,PERSONNEL COMPENSATION,"","GARAY, GERMAN",06/01/15,08/31/15,BROADCAST PRODUCTION TECHNICIA (OVERTIME),"1,285.82",FISCAL YEAR 2015,"","","","GARAY, GERMAN"
,CHIEF ADMIN OFCR OF THE HOUSE,2015Q3,PERSONNEL COMPENSATION,"","GARCIA, JOHN",07/01/15,09/30/15,JOURNEYMAN FURNITURE SPEC,"13,742.76",FISCAL YEAR 2015,"","","","GARCIA, JOHN"
,CHIEF ADMIN OFCR OF THE HOUSE,2015Q3,PERSONNEL COMPENSATION,"","GARCIA, JOHN",08/01/15,08/31/15,JOURNEYMAN FURNITURE SPEC. (OVERTIME),317.14,FISCAL YEAR 2015,"","","","GARCIA, JOHN"
,CHIEF ADMIN OFCR OF THE HOUSE,2015Q3,PERSONNEL COMPENSATION,"","GASKINS, JAMES R",07/01/15,09/30/15,BRANCH MANAGER,"32,712.00",FISCAL YEAR 2015,"","","","GASKINS, JAMES R"
,CHIEF ADMIN OFCR OF THE HOUSE,2015Q3,PERSONNEL COMPENSATION,"","GATES, TRENA F",07/01/15,09/30/15,FINANCIAL ANALYST,"21,226.16",FISCAL YEAR 2015,"","","","GATES, TRENA F"
,CHIEF ADMIN OFCR OF THE HOUSE,2015Q3,PERSONNEL COMPENSATION,"","GATES,COREY M",07/01/15,09/30/15,JOURNEYMAN TEXTILE SPEC,"14,471.78",FISCAL YEAR 2015,"","","","GATES,COREY M"
,CHIEF ADMIN OFCR OF THE HOUSE,2015Q3,PERSONNEL COMPENSATION,"","GATES,THOMAS D",07/01/15,09/30/15,SENIOR SYSTEMS ENGINEER,"24,636.00",FISCAL YEAR 2015,"","","","GATES,THOMAS D"
,CHIEF ADMIN OFCR OF THE HOUSE,2015Q3,PERSONNEL COMPENSATION,"","GEPERT,DARLA M",07/01/15,09/30/15,ADMINISTRATIVE SPECIALIST (A),"13,043.49",FISCAL YEAR 2015,"","","","GEPERT,DARLA M"
,CHIEF ADMIN OFCR OF THE HOUSE,2015Q3,PERSONNEL COMPENSATION,"","GEPERT,DARLA M",07/01/15,07/31/15,ADMINISTRATIVE SPECIALIST (A) (OVERTIME),112.88,FISCAL YEAR 2015,"","","","GEPERT,DARLA M"
,CHIEF ADMIN OFCR OF THE HOUSE,2015Q3,PERSONNEL COMPENSATION,"","GERARDEN,PAUL J",07/01/15,09/30/15,CUSTOMER SOLUTIONS REP,"14,075.76",FISCAL YEAR 2015,"","","","GERARDEN,PAUL J"
,CHIEF ADMIN OFCR OF THE HOUSE,2015Q3,PERSONNEL COMPENSATION,"","GILLIS,DANIEL",07/01/15,09/30/15,ADA AIDE,"7,135.50",FISCAL YEAR 2015,"","","","GILLIS,DANIEL"
,CHIEF ADMIN OFCR OF THE HOUSE,2015Q3,PERSONNEL COMPENSATION,"","GILLIS,DANIEL",06/01/15,08/31/15,ADA AIDE (OVERTIME),"10,376.09",FISCAL YEAR 2015,"","","","GILLIS,DANIEL"
,CHIEF ADMIN OFCR OF THE HOUSE,2015Q3,PERSONNEL COMPENSATION,"","GIZARA, MICHAEL P",07/01/15,09/30/15,TEAM LEAD OPERATNS/ADV CONTENT,"33,276.99",FISCAL YEAR 2015,"","","","GIZARA, MICHAEL P"
,CHIEF ADMIN OFCR OF THE HOUSE,2015Q3,PERSONNEL COMPENSATION,"","GOGGINS II, JAMES D",07/01/15,09/30/15,NETWORK COMM SPECIALIST (A),"23,460.75",FISCAL YEAR 2015,"","","","GOGGINS II, JAMES D"
,CHIEF ADMIN OFCR OF THE HOUSE,2015Q3,PERSONNEL COMPENSATION,"","GOLDSBOROUGH-LEE, ANGEL M",07/01/15,09/30/15,"DIR, TECH MGT & INTERNAL CTRLS","35,450.25",FISCAL YEAR 2015,"","","","GOLDSBOROUGH-LEE, ANGEL M"
,CHIEF ADMIN OFCR OF THE HOUSE,2015Q3,PERSONNEL COMPENSATION,"","GONZALEZ, ROSARIO D",07/01/15,09/30/15,SR CUSTOMER SOLUTIONS REP,"20,294.76",FISCAL YEAR 2015,"","","","GONZALEZ, ROSARIO D"
,CHIEF ADMIN OFCR OF THE HOUSE,2015Q3,PERSONNEL COMPENSATION,"","GOODIN,EMILY L",07/01/15,09/30/15,SENIOR COMMUNICATIONS SPEC,"18,697.26",FISCAL YEAR 2015,"","","","GOODIN,EMILY L"
,CHIEF ADMIN OFCR OF THE HOUSE,2015Q3,PERSONNEL COMPENSATION,"","GOODMAN,JESSICA L",07/01/15,09/30/15,PAYROLL & BENEFITS GENERALIST,"14,086.74",FISCAL YEAR 2015,"","","","GOODMAN,JESSICA L"
,CHIEF ADMIN OFCR OF THE HOUSE,2015Q3,PERSONNEL COMPENSATION,"","GOULD, MICHAEL",07/01/15,09/30/15,"MANAGER, REMEDY MANAGEMENT","31,016.25",FISCAL YEAR 2015,"","","","GOULD, MICHAEL"
,CHIEF ADMIN OFCR OF THE HOUSE,2015Q3,PERSONNEL COMPENSATION,"","GRAEUB, ANDREW C",07/01/15,09/30/15,"MANAGER, NETWORK SYST ENGINEER","35,241.75",FISCAL YEAR 2015,"","","","GRAEUB, ANDREW C"
,CHIEF ADMIN OFCR OF THE HOUSE,2015Q3,PERSONNEL COMPENSATION,"","GRANT,LISA",07/01/15,09/30/15,CHIEF PROCUREMENT OFFICER,"42,102.75",FISCAL YEAR 2015,"","","","GRANT,LISA"
,CHIEF ADMIN OFCR OF THE HOUSE,2015Q3,PERSONNEL COMPENSATION,"","GRECO,JACQUELINE M",07/01/15,09/30/15,CUSTOMER SOLUTIONS REP,"12,703.50",FISCAL YEAR 2015,"","","","GRECO,JACQUELINE M"
,CHIEF ADMIN OFCR OF THE HOUSE,2015Q3,PERSONNEL COMPENSATION,"","GREEN, CAROLINE",07/01/15,09/30/15,TECHNICAL SUPPORT REP (A),"18,487.74",FISCAL YEAR 2015,"","","","GREEN, CAROLINE"
,CHIEF ADMIN OFCR OF THE HOUSE,2015Q3,PERSONNEL COMPENSATION,"","GREEN, MITCHELL",07/01/15,09/30/15,CONTRACT ADMINISTRATOR,"33,276.99",FISCAL YEAR 2015,"","","","GREEN, MITCHELL"
,CHIEF ADMIN OFCR OF THE HOUSE,2015Q3,PERSONNEL COMPENSATION,"","GREENE, CHANTEL T",07/01/15,09/30/15,MGR BUS SYS AND INTEGRATION,"36,494.49",FISCAL YEAR 2015,"","","","GREENE, CHANTEL T"
,CHIEF ADMIN OFCR OF THE HOUSE,2015Q3,PERSONNEL COMPENSATION,"","GRIGGS,KYLE R",07/01/15,09/30/15,CONTRACTS SPECIALIST,"20,732.25",FISCAL YEAR 2015,"","","","GRIGGS,KYLE R"
,CHIEF ADMIN OFCR OF THE HOUSE,2015Q3,PERSONNEL COMPENSATION,"","GRISWOLD,RAYMOND",07/01/15,09/30/15,"DIRECTOR, ACQ & CONTRACT MGMT","34,620.51",FISCAL YEAR 2015,"","","","GRISWOLD,RAYMOND"
,CHIEF ADMIN OFCR OF THE HOUSE,2015Q3,PERSONNEL COMPENSATION,"","GRONSKI,ROBERT S",07/01/15,09/30/15,SR BUSINESS PROCESS APPL SPEC,"30,453.99",FISCAL YEAR 2015,"","","","GRONSKI,ROBERT S"
,CHIEF ADMIN OFCR OF THE HOUSE,2015Q3,PERSONNEL COMPENSATION,"","GUARNERO,DAVID P",07/01/15,09/30/15,PAYROLL & BENEFITS GENERALIST,"16,504.50",FISCAL YEAR 2015,"","","","GUARNERO,DAVID P"
,CHIEF ADMIN OFCR OF THE HOUSE,2015Q3,PERSONNEL COMPENSATION,"","GUDURU,PRATAP K",07/01/15,09/30/15,SENIOR SYSTEMS ENGINEER,"32,145.99",FISCAL YEAR 2015,"","","","GUDURU,PRATAP K"
,CHIEF ADMIN OFCR OF THE HOUSE,2015Q3,PERSONNEL COMPENSATION,"","GUGLIOTTA,NORMAN",07/01/15,09/30/15,FINANCIAL COUNSELOR (A),"16,902.24",FISCAL YEAR 2015,"","","","GUGLIOTTA,NORMAN"
,CHIEF ADMIN OFCR OF THE HOUSE,2015Q3,PERSONNEL COMPENSATION,"","HALL,MORGAN",07/01/15,09/30/15,FACILITIES MANAGEMENT SPECIALI,"17,298.00",FISCAL YEAR 2015,"","","","HALL,MORGAN"
,CHIEF ADMIN OFCR OF THE HOUSE,2015Q3,PERSONNEL COMPENSATION,"","HAMBRIC, STEEN H",07/01/15,09/30/15,ASSISTANT CIO,"42,102.75",FISCAL YEAR 2015,"","","","HAMBRIC, STEEN H"
,CHIEF ADMIN OFCR OF THE HOUSE,2015Q3,PERSONNEL COMPENSATION,"","HAMEL,RYAN T",07/01/15,09/30/15,THIRD ASSISTANT,"17,298.00",FISCAL YEAR 2015,"","","","HAMEL,RYAN T"
,CHIEF ADMIN OFCR OF THE HOUSE,2015Q3,PERSONNEL COMPENSATION,"","HAMNER, PHILIP D",07/01/15,09/30/15,"DIRECTOR, ACCOUNTING","37,120.50",FISCAL YEAR 2015,"","","","HAMNER, PHILIP D"
,CHIEF ADMIN OFCR OF THE HOUSE,2015Q3,PERSONNEL COMPENSATION,"","HANEY, WINSTON",07/01/15,09/30/15,ACCOUNT MANAGEMENT COUNSELOR,"14,418.75",FISCAL YEAR 2015,"","","","HANEY, WINSTON"
,CHIEF ADMIN OFCR OF THE HOUSE,2015Q3,PERSONNEL COMPENSATION,"","HANEY, WINSTON",07/01/15,07/31/15,ACCOUNT MANAGEMENT COUNSELOR (OVERTIME),305.01,FISCAL YEAR 2015,"","","","HANEY, WINSTON"
,CHIEF ADMIN OFCR OF THE HOUSE,2015Q3,PERSONNEL COMPENSATION,"","HANONU, TINA M",07/01/15,09/30/15,SPECIAL ADVISOR/TRANSITION,"42,102.75",FISCAL YEAR 2015,"","","","HANONU, TINA M"
,CHIEF ADMIN OFCR OF THE HOUSE,2015Q3,PERSONNEL COMPENSATION,"","HAQ,RABIA",07/01/15,09/30/15,BUSINESS PROC APPLIC SPEC,"24,180.99",FISCAL YEAR 2015,"","","","HAQ,RABIA"
,CHIEF ADMIN OFCR OF THE HOUSE,2015Q3,PERSONNEL COMPENSATION,"","HARGROVE, BRIAN",07/01/15,09/30/15,LOGISTICS & DIST SPEC (A),"10,899.24",FISCAL YEAR 2015,"","","","HARGROVE, BRIAN"
,CHIEF ADMIN OFCR OF THE HOUSE,2015Q3,PERSONNEL COMPENSATION,"","HARRELL,VICKIE",07/01/15,07/31/15,NETWORK TECHNICIAN,"7,668.08",FISCAL YEAR 2015,"","","","HARRELL,VICKIE"
,CHIEF ADMIN OFCR OF THE HOUSE,2015Q3,PERSONNEL COMPENSATION,"","HARRELL,VICKIE",08/01/15,09/30/15,SR NETWORK COMM SPECIALIST (A),"16,120.66",FISCAL YEAR 2015,"","","","HARRELL,VICKIE"
,CHIEF ADMIN OFCR OF THE HOUSE,2015Q3,PERSONNEL COMPENSATION,"","HARRINGTON, KEITH",07/01/15,09/30/15,FINANCIAL COUNSELOR,"23,094.51",FISCAL YEAR 2015,"","","","HARRINGTON, KEITH"
,CHIEF ADMIN OFCR OF THE HOUSE,2015Q3,PERSONNEL COMPENSATION,"","HARRIS, DONALD",07/01/15,09/30/15,NETWORK COMM SUPERVISOR,"31,016.25",FISCAL YEAR 2015,"","","","HARRIS, DONALD"
,CHIEF ADMIN OFCR OF THE HOUSE,2015Q3,PERSONNEL COMPENSATION,"","HARRIS, KEVIN",07/01/15,09/30/15,JOURNEYMAN FURNITURE SPEC,"20,076.00",FISCAL YEAR 2015,"","","","HARRIS, KEVIN"
,CHIEF ADMIN OFCR OF THE HOUSE,2015Q3,PERSONNEL COMPENSATION,"","HARRIS, KEVIN",08/01/15,08/31/15,JOURNEYMAN FURNITURE SPEC. (OVERTIME),"1,853.15",FISCAL YEAR 2015,"","","","HARRIS, KEVIN"
,CHIEF ADMIN OFCR OF THE HOUSE,2015Q3,PERSONNEL COMPENSATION,"","HARTMAN,ANDREW J",06/24/15,09/30/15,STAFF ASSISTANT,"9,174.75",FISCAL YEAR 2015,"","","","HARTMAN,ANDREW J"
,CHIEF ADMIN OFCR OF THE HOUSE,2015Q3,PERSONNEL COMPENSATION,"","HARVEY, JAMIE",07/01/15,09/30/15,SR TELECOMMUNICATIONS ADMIN (A,"16,836.99",FISCAL YEAR 2015,"","","","HARVEY, JAMIE"
,CHIEF ADMIN OFCR OF THE HOUSE,2015Q3,PERSONNEL COMPENSATION,"","HARVEY,KINSEY B",07/01/15,09/30/15,MEDIA LOGISTICS COORDINATOR,"16,902.24",FISCAL YEAR 2015,"","","","HARVEY,KINSEY B"
,CHIEF ADMIN OFCR OF THE HOUSE,2015Q3,PERSONNEL COMPENSATION,"","HAYES,KATHLEEN M",07/01/15,09/30/15,CUSTOMER SOLUTIONS REP,"15,117.24",FISCAL YEAR 2015,"","","","HAYES,KATHLEEN M"
,CHIEF ADMIN OFCR OF THE HOUSE,2015Q3,PERSONNEL COMPENSATION,"","HAYES,MICHELLE P",07/01/15,09/30/15,SENIOR SYSTEMS ENGINEER,"32,712.00",FISCAL YEAR 2015,"","","","HAYES,MICHELLE P"
,CHIEF ADMIN OFCR OF THE HOUSE,2015Q3,PERSONNEL COMPENSATION,"","HEEB III, JOHN J",07/01/15,09/30/15,SR BUSINESS PROCESS APPL SPEC,"34,407.51",FISCAL YEAR 2015,"","","","HEEB III, JOHN J"
,CHIEF ADMIN OFCR OF THE HOUSE,2015Q3,PERSONNEL COMPENSATION,"","HERBERT, GREGORY L",07/01/15,09/30/15,REC/WAREHOUSE SPEC (A),"12,573.00",FISCAL YEAR 2015,"","","","HERBERT, GREGORY L"
,CHIEF ADMIN OFCR OF THE HOUSE,2015Q3,PERSONNEL COMPENSATION,"","HERBERT,DONNA",07/01/15,09/30/15,FINANCIAL ANALYST,"20,294.76",FISCAL YEAR 2015,"","","","HERBERT,DONNA"
,CHIEF ADMIN OFCR OF THE HOUSE,2015Q3,PERSONNEL COMPENSATION,"","HIBBS, CYNTHIA",07/01/15,09/30/15,NETWORK COORDINATOR (A),"20,076.00",FISCAL YEAR 2015,"","","","HIBBS, CYNTHIA"
,CHIEF ADMIN OFCR OF THE HOUSE,2015Q3,PERSONNEL COMPENSATION,"","HIRSCH, PATRICK A",07/01/15,09/30/15,DIR-HOUSE RECORDING STUDIO,"41,778.99",FISCAL YEAR 2015,"","","","HIRSCH, PATRICK A"
,CHIEF ADMIN OFCR OF THE HOUSE,2015Q3,PERSONNEL COMPENSATION,"","HOBBS, DENINE",07/01/15,09/30/15,SPECIAL ASSISTANT,"25,548.00",FISCAL YEAR 2015,"","","","HOBBS, DENINE"
,CHIEF ADMIN OFCR OF THE HOUSE,2015Q3,PERSONNEL COMPENSATION,"","HODGES, JOHN E",07/01/15,09/30/15,DIR. OFFICE SUPPLY & GIFT SHOP,"27,469.74",FISCAL YEAR 2015,"","","","HODGES, JOHN E"
,CHIEF ADMIN OFCR OF THE HOUSE,2015Q3,PERSONNEL COMPENSATION,"","HOKHOLD, MARK D",07/01/15,09/30/15,SYSTEMS ENGINEER,"25,548.00",FISCAL YEAR 2015,"","","","HOKHOLD, MARK D"
,CHIEF ADMIN OFCR OF THE HOUSE,2015Q3,PERSONNEL COMPENSATION,"","HOLAU,GEORGE",07/01/15,09/30/15,FINANCIAL COUNSELOR,"21,092.49",FISCAL YEAR 2015,"","","","HOLAU,GEORGE"
,CHIEF ADMIN OFCR OF THE HOUSE,2015Q3,PERSONNEL COMPENSATION,"","HOLLAND, GREGORY",07/01/15,09/30/15,LOGISTICS & DIST SPEC (A),"11,799.99",FISCAL YEAR 2015,"","","","HOLLAND, GREGORY"
,CHIEF ADMIN OFCR OF THE HOUSE,2015Q3,PERSONNEL COMPENSATION,"","HOLLAND, GREGORY",06/01/15,06/30/15,LOGISTICS & DIST SPEC (A) (OVERTIME),22.69,FISCAL YEAR 2015,"","","","HOLLAND, GREGORY"
,CHIEF ADMIN OFCR OF THE HOUSE,2015Q3,PERSONNEL COMPENSATION,"","HOLLEY, STEVEN M",07/01/15,09/30/15,LOGISTICS & DIST SPEC (A),"11,300.66",FISCAL YEAR 2015,"","","","HOLLEY, STEVEN M"
,CHIEF ADMIN OFCR OF THE HOUSE,2015Q3,PERSONNEL COMPENSATION,"","HOLT,CLINTON F",07/01/15,09/30/15,BROADCAST ENGINEER/PROD SPEC,"20,051.46",FISCAL YEAR 2015,"","","","HOLT,CLINTON F"
,CHIEF ADMIN OFCR OF THE HOUSE,2015Q3,PERSONNEL COMPENSATION,"","HORNBURG, RICHARD A",07/01/15,09/30/15,BUSINESS PROC APPLIC SPEC,"29,025.99",FISCAL YEAR 2015,"","","","HORNBURG, RICHARD A"
,CHIEF ADMIN OFCR OF THE HOUSE,2015Q3,PERSONNEL COMPENSATION,"","HOWARD, ANTHONY T",07/01/15,09/30/15,JOURNEYMAN TEXTILE SPEC,"16,836.99",FISCAL YEAR 2015,"","","","HOWARD, ANTHONY T"
,CHIEF ADMIN OFCR OF THE HOUSE,2015Q3,PERSONNEL COMPENSATION,"","HUGHES, MICHAEL A",07/01/15,09/30/15,FINANCIAL COUNSELOR,"16,148.25",FISCAL YEAR 2015,"","","","HUGHES, MICHAEL A"
,CHIEF ADMIN OFCR OF THE HOUSE,2015Q3,PERSONNEL COMPENSATION,"","HUNT,DANIEL",07/01/15,09/30/15,SR NETWORK COMM SPECIALIST,"31,582.50",FISCAL YEAR 2015,"","","","HUNT,DANIEL"
,CHIEF ADMIN OFCR OF THE HOUSE,2015Q3,PERSONNEL COMPENSATION,"","HUNTER, STEVE",07/01/15,09/30/15,ACCOUNT MANAGEMENT COUNSELOR,"14,075.76",FISCAL YEAR 2015,"","","","HUNTER, STEVE"
,CHIEF ADMIN OFCR OF THE HOUSE,2015Q3,PERSONNEL COMPENSATION,"","HUNTER, STEVE",06/01/15,08/31/15,ACCOUNT MANAGEMENT COUNSELOR (OVERTIME),"3,065.51",FISCAL YEAR 2015,"","","","HUNTER, STEVE"
,CHIEF ADMIN OFCR OF THE HOUSE,2015Q3,PERSONNEL COMPENSATION,"","HURDA, JACQUELINE L",07/01/15,09/30/15,FINANCIAL COUNSELOR (A),"20,294.76",FISCAL YEAR 2015,"","","","HURDA, JACQUELINE L"
,CHIEF ADMIN OFCR OF THE HOUSE,2015Q3,PERSONNEL COMPENSATION,"","ILOG,ANGELA M",07/01/15,09/30/15,CONTRACTS SUPPORT ADMIN,"14,772.75",FISCAL YEAR 2015,"","","","ILOG,ANGELA M"
,CHIEF ADMIN OFCR OF THE HOUSE,2015Q3,PERSONNEL COMPENSATION,"","JACKSON, REGGIE",07/01/15,09/30/15,SR TECHNICAL SUPPORT REP (A),"24,180.99",FISCAL YEAR 2015,"","","","JACKSON, REGGIE"
,CHIEF ADMIN OFCR OF THE HOUSE,2015Q3,PERSONNEL COMPENSATION,"","JACKSON, WANDA J",07/01/15,09/30/15,TELECOMMUNICATIONS BRANCH MNGR,"27,469.74",FISCAL YEAR 2015,"","","","JACKSON, WANDA J"
,CHIEF ADMIN OFCR OF THE HOUSE,2015Q3,PERSONNEL COMPENSATION,"","JACOBSON, BRADLEY J",07/01/15,09/30/15,BRANCH MANAGER,"35,241.75",FISCAL YEAR 2015,"","","","JACOBSON, BRADLEY J"
,CHIEF ADMIN OFCR OF THE HOUSE,2015Q3,PERSONNEL COMPENSATION,"","JANIFER, ROLAND S",07/01/15,09/30/15,"SUPERVISOR,LOGIS & DIST (A)","18,487.74",FISCAL YEAR 2015,"","","","JANIFER, ROLAND S"
,CHIEF ADMIN OFCR OF THE HOUSE,2015Q3,PERSONNEL COMPENSATION,"","JECKO,BRITTANY E",07/01/15,08/31/15,HUMAN RESOURCES GENERALIST,"11,003.00",FISCAL YEAR 2015,"","","","JECKO,BRITTANY E"
,CHIEF ADMIN OFCR OF THE HOUSE,2015Q3,PERSONNEL COMPENSATION,"","JECKO,BRITTANY E",09/01/15,09/30/15,SR BUSINESS PROC APPL SPEC,"8,638.08",FISCAL YEAR 2015,"","","","JECKO,BRITTANY E"
,CHIEF ADMIN OFCR OF THE HOUSE,2015Q3,PERSONNEL COMPENSATION,"","JEFFERSON,KENYATTA",07/01/15,09/30/15,TECHNICAL SUPPORT REP (A),"19,095.51",FISCAL YEAR 2015,"","","","JEFFERSON,KENYATTA"
,CHIEF ADMIN OFCR OF THE HOUSE,2015Q3,PERSONNEL COMPENSATION,"","JENKINS, JAMES",07/01/15,09/30/15,WORKFLOW COORDINATOR,"19,283.25",FISCAL YEAR 2015,"","","","JENKINS, JAMES"
,CHIEF ADMIN OFCR OF THE HOUSE,2015Q3,PERSONNEL COMPENSATION,"","JENNINGS, ARACELI",07/01/15,09/30/15,FINANCE ASSISTANT,"16,836.99",FISCAL YEAR 2015,"","","","JENNINGS, ARACELI"
,CHIEF ADMIN OFCR OF THE HOUSE,2015Q3,PERSONNEL COMPENSATION,"","JOHANN, DEREK",07/01/15,09/30/15,SR RECEIVING & WAREHOUSIN SPEC,"16,836.99",FISCAL YEAR 2015,"","","","JOHANN, DEREK"
,CHIEF ADMIN OFCR OF THE HOUSE,2015Q3,PERSONNEL COMPENSATION,"","JOHNSON, ANDRE",07/01/15,07/01/15,APPLICATION DBA SPECIALIST,260.68,FISCAL YEAR 2015,"","","","JOHNSON, ANDRE"
,CHIEF ADMIN OFCR OF THE HOUSE,2015Q3,PERSONNEL COMPENSATION,"","JOHNSON, ANDRE",07/01/15,07/01/15,APPLICATION DBA SPECIALIST (OTHER COMPENSATION),"7,820.25",FISCAL YEAR 2015,"","","","JOHNSON, ANDRE"
,CHIEF ADMIN OFCR OF THE HOUSE,2015Q3,PERSONNEL COMPENSATION,"","JOHNSON, DWAYNE",07/01/15,09/30/15,RETAIL INVENTORY SPECIALIST,"14,761.50",FISCAL YEAR 2015,"","","","JOHNSON, DWAYNE"
,CHIEF ADMIN OFCR OF THE HOUSE,2015Q3,PERSONNEL COMPENSATION,"","JOHNSON, ERIC C",07/01/15,09/30/15,LOGISTICS & DIST SPEC (A),"12,872.76",FISCAL YEAR 2015,"","","","JOHNSON, ERIC C"
,CHIEF ADMIN OFCR OF THE HOUSE,2015Q3,PERSONNEL COMPENSATION,"","JOHNSON, MARGARET K",07/01/15,09/30/15,SR MODULAR FURNITURE SPEC,"18,092.25",FISCAL YEAR 2015,"","","","JOHNSON, MARGARET K"
,CHIEF ADMIN OFCR OF THE HOUSE,2015Q3,PERSONNEL COMPENSATION,"","JOHNSON, REGINALD",07/01/15,09/30/15,FINANCIAL COUNSELOR (A),"18,092.25",FISCAL YEAR 2015,"","","","JOHNSON, REGINALD"
,CHIEF ADMIN OFCR OF THE HOUSE,2015Q3,PERSONNEL COMPENSATION,"","JOHNSON, ROBERT C",07/01/15,09/30/15,SENIOR SYSTEMS ENGINEER,"30,581.25",FISCAL YEAR 2015,"","","","JOHNSON, ROBERT C"
,CHIEF ADMIN OFCR OF THE HOUSE,2015Q3,PERSONNEL COMPENSATION,"","JOHNSON,ANDRE D",08/03/15,09/30/15,SENIOR NETWORK TECHNICIAN,"11,533.78",FISCAL YEAR 2015,"","","","JOHNSON,ANDRE D"
,CHIEF ADMIN OFCR OF THE HOUSE,2015Q3,PERSONNEL COMPENSATION,"","JOHNSON,KWASI Z",07/01/15,09/30/15,LOGISTICS & DIST SPEC (A),"9,441.24",FISCAL YEAR 2015,"","","","JOHNSON,KWASI Z"
,CHIEF ADMIN OFCR OF THE HOUSE,2015Q3,PERSONNEL COMPENSATION,"","JONES III,CLARENCE",07/01/15,09/30/15,SENIOR NETWORK TECHNICIAN,"19,894.50",FISCAL YEAR 2015,"","","","JONES III,CLARENCE"
,CHIEF ADMIN OFCR OF THE HOUSE,2015Q3,PERSONNEL COMPENSATION,"","JONES JR, CHARLES J",07/01/15,09/30/15,NETWORK COMM SPECIALIST,"24,636.00",FISCAL YEAR 2015,"","","","JONES JR, CHARLES J"
,CHIEF ADMIN OFCR OF THE HOUSE,2015Q3,PERSONNEL COMPENSATION,"","JONES, DEBORAH D",07/01/15,09/30/15,FINANCIAL COUNSELOR,"21,493.50",FISCAL YEAR 2015,"","","","JONES, DEBORAH D"
,CHIEF ADMIN OFCR OF THE HOUSE,2015Q3,PERSONNEL COMPENSATION,"","JONES, MITCHAEL",07/01/15,09/30/15,TECHNICAL TRAINER,"20,694.00",FISCAL YEAR 2015,"","","","JONES, MITCHAEL"
,CHIEF ADMIN OFCR OF THE HOUSE,2015Q3,PERSONNEL COMPENSATION,"","JONES, MOLLY C",07/01/15,08/31/15,5TH ASST SUPERINTENDENT,"10,535.00",FISCAL YEAR 2015,"","","","JONES, MOLLY C"
,CHIEF ADMIN OFCR OF THE HOUSE,2015Q3,PERSONNEL COMPENSATION,"","JONES, MOLLY C",09/01/15,09/30/15,ASSISTANT DIRECTOR,"6,030.75",FISCAL YEAR 2015,"","","","JONES, MOLLY C"
,CHIEF ADMIN OFCR OF THE HOUSE,2015Q3,PERSONNEL COMPENSATION,"","JONES, STEPHEN E",07/01/15,09/30/15,SENIOR SYSTEMS ENGINEER,"31,016.25",FISCAL YEAR 2015,"","","","JONES, STEPHEN E"
,CHIEF ADMIN OFCR OF THE HOUSE,2015Q3,PERSONNEL COMPENSATION,"","JONES, WESLEY D",07/01/15,09/30/15,LOGISTICS & DIST SPEC (A),"11,500.50",FISCAL YEAR 2015,"","","","JONES, WESLEY D"
,CHIEF ADMIN OFCR OF THE HOUSE,2015Q3,PERSONNEL COMPENSATION,"","JONES,RODNEY B",07/01/15,09/30/15,SR TECHNICAL SUPPORT REP,"22,098.51",FISCAL YEAR 2015,"","","","JONES,RODNEY B"
,CHIEF ADMIN OFCR OF THE HOUSE,2015Q3,PERSONNEL COMPENSATION,"","JONES,YOLANDA S",07/01/15,09/30/15,PAYROLL & BENEFITS GENERALIST,"16,902.24",FISCAL YEAR 2015,"","","","JONES,YOLANDA S"
,CHIEF ADMIN OFCR OF THE HOUSE,2015Q3,PERSONNEL COMPENSATION,"","JORDAN, YONG O",07/01/15,09/30/15,SR TECH SOLUTIONS ENGINEER,"25,089.99",FISCAL YEAR 2015,"","","","JORDAN, YONG O"
,CHIEF ADMIN OFCR OF THE HOUSE,2015Q3,PERSONNEL COMPENSATION,"","JORDAN,CHRISTOPHER",07/01/15,09/30/15,DIRECTOR BUSINESS CONTINUITY,"40,594.26",FISCAL YEAR 2015,"","","","JORDAN,CHRISTOPHER"
,CHIEF ADMIN OFCR OF THE HOUSE,2015Q3,PERSONNEL COMPENSATION,"","JOYCE, ERIC",07/01/15,09/30/15,SUPERVISOR,"29,025.99",FISCAL YEAR 2015,"","","","JOYCE, ERIC"
,CHIEF ADMIN OFCR OF THE HOUSE,2015Q3,PERSONNEL COMPENSATION,"","JUDGE, NANCY",07/01/15,09/30/15,CUSTOMER SOLUTIONS REP,"15,802.50",FISCAL YEAR 2015,"","","","JUDGE, NANCY"
,CHIEF ADMIN OFCR OF THE HOUSE,2015Q3,PERSONNEL COMPENSATION,"","KAHLER, KENT",07/01/15,09/30/15,SYSTEMS ENGINEER,"26,004.00",FISCAL YEAR 2015,"","","","KAHLER, KENT"
,CHIEF ADMIN OFCR OF THE HOUSE,2015Q3,PERSONNEL COMPENSATION,"","KAPLAN,LEAH",07/01/15,09/30/15,MEDIA LOGISTICS ASSISTANT,"13,730.49",FISCAL YEAR 2015,"","","","KAPLAN,LEAH"
,CHIEF ADMIN OFCR OF THE HOUSE,2015Q3,PERSONNEL COMPENSATION,"","KEANE, MICHAEL T",07/01/15,09/30/15,"MANAGER, WORKFLOW MANAGEMENT","24,028.49",FISCAL YEAR 2015,"","","","KEANE, MICHAEL T"
,CHIEF ADMIN OFCR OF THE HOUSE,2015Q3,PERSONNEL COMPENSATION,"","KELLAHER,ANTHONY",07/01/15,09/30/15,MEDIA LOGISTICS COORDINATOR,"19,095.51",FISCAL YEAR 2015,"","","","KELLAHER,ANTHONY"
,CHIEF ADMIN OFCR OF THE HOUSE,2015Q3,PERSONNEL COMPENSATION,"","KELLEY, KEVIN S",07/01/15,09/30/15,CUSTOMER SOLUTIONS REP,"16,606.99",FISCAL YEAR 2015,"","","","KELLEY, KEVIN S"
,CHIEF ADMIN OFCR OF THE HOUSE,2015Q3,PERSONNEL COMPENSATION,"","KELLEY, MARY M",07/01/15,09/30/15,RESOURCE MANAGER,"30,063.24",FISCAL YEAR 2015,"","","","KELLEY, MARY M"
,CHIEF ADMIN OFCR OF THE HOUSE,2015Q3,PERSONNEL COMPENSATION,"","KELLEY, TARA A",07/01/15,09/30/15,COMMUNICATIONS SPEC (A),"21,493.50",FISCAL YEAR 2015,"","","","KELLEY, TARA A"
,CHIEF ADMIN OFCR OF THE HOUSE,2015Q3,PERSONNEL COMPENSATION,"","KEMP, DAVID S",07/01/15,09/30/15,SENIOR SYSTEMS ENGINEER,"33,840.51",FISCAL YEAR 2015,"","","","KEMP, DAVID S"
,CHIEF ADMIN OFCR OF THE HOUSE,2015Q3,PERSONNEL COMPENSATION,"","KENEALY, PATRICK T",07/01/15,09/30/15,FINANCIAL ANALYST,"35,536.74",FISCAL YEAR 2015,"","","","KENEALY, PATRICK T"
,CHIEF ADMIN OFCR OF THE HOUSE,2015Q3,PERSONNEL COMPENSATION,"","KILSON,FRANKLIN P",07/01/15,09/30/15,NETWORK TECHNICIAN,"22,098.51",FISCAL YEAR 2015,"","","","KILSON,FRANKLIN P"
,CHIEF ADMIN OFCR OF THE HOUSE,2015Q3,PERSONNEL COMPENSATION,"","KIMBALL, MARK E",07/01/15,09/30/15,SR TECHNICAL SUPPORT REP (A),"22,551.24",FISCAL YEAR 2015,"","","","KIMBALL, MARK E"
,CHIEF ADMIN OFCR OF THE HOUSE,2015Q3,PERSONNEL COMPENSATION,"","KING, JOHN A",06/01/15,06/30/15,"SUPERVISOR,LOGISTICS & DIST (A (OTHER COMPENSATION)",455.77,FISCAL YEAR 2015,"","","","KING, JOHN A"
,CHIEF ADMIN OFCR OF THE HOUSE,2015Q3,PERSONNEL COMPENSATION,"","KLEMP, CAROLINE",07/01/15,09/30/15,DIRECTOR MEMBERS' SERVICES,"35,536.74",FISCAL YEAR 2015,"","","","KLEMP, CAROLINE"
,CHIEF ADMIN OFCR OF THE HOUSE,2015Q3,PERSONNEL COMPENSATION,"","KLUSSENDORF, KATHLEEN M",07/01/15,09/30/15,SPECIAL ASSISTANT,"27,828.75",FISCAL YEAR 2015,"","","","KLUSSENDORF, KATHLEEN M"
,CHIEF ADMIN OFCR OF THE HOUSE,2015Q3,PERSONNEL COMPENSATION,"","KNELL, KATHERINE A",07/01/15,09/30/15,HRIS APPLICATIONS MANAGER,"41,384.08",FISCAL YEAR 2015,"","","","KNELL, KATHERINE A"
,CHIEF ADMIN OFCR OF THE HOUSE,2015Q3,PERSONNEL COMPENSATION,"","KNOERL, THOMAS K",07/01/15,09/30/15,NETWORK COMMUNICATIONS SPEC,"26,914.74",FISCAL YEAR 2015,"","","","KNOERL, THOMAS K"
,CHIEF ADMIN OFCR OF THE HOUSE,2015Q3,PERSONNEL COMPENSATION,"","KORNACKI, OLGA R",07/01/15,09/30/15,DIRECTOR,"33,840.51",FISCAL YEAR 2015,"","","","KORNACKI, OLGA R"
,CHIEF ADMIN OFCR OF THE HOUSE,2015Q3,PERSONNEL COMPENSATION,"","KOZTOSKI, DOUGLAS W",07/01/15,09/30/15,BROADCAST PRODUCTION TECHNICIA,"19,894.50",FISCAL YEAR 2015,"","","","KOZTOSKI, DOUGLAS W"
,CHIEF ADMIN OFCR OF THE HOUSE,2015Q3,PERSONNEL COMPENSATION,"","KOZTOSKI, DOUGLAS W",06/01/15,07/31/15,BROADCAST PRODUCTION TECHNICIA (OVERTIME),"1,109.48",FISCAL YEAR 2015,"","","","KOZTOSKI, DOUGLAS W"
,CHIEF ADMIN OFCR OF THE HOUSE,2015Q3,PERSONNEL COMPENSATION,"","KRAFT,NORMAN R",07/01/15,09/30/15,INTERNET SYSTEMS SPECIALIST,"23,723.49",FISCAL YEAR 2015,"","","","KRAFT,NORMAN R"
,CHIEF ADMIN OFCR OF THE HOUSE,2015Q3,PERSONNEL COMPENSATION,"","KRALY,ELIZABETH A",07/01/15,09/30/15,"MANAGER, CAO HUMAN RESOURCES","27,642.58",FISCAL YEAR 2015,"","","","KRALY,ELIZABETH A"
,CHIEF ADMIN OFCR OF THE HOUSE,2015Q3,PERSONNEL COMPENSATION,"","KRAMER, STEPHEN",07/01/15,09/30/15,NETWORK COMMUNICATIONS SPEC,"26,004.00",FISCAL YEAR 2015,"","","","KRAMER, STEPHEN"
,CHIEF ADMIN OFCR OF THE HOUSE,2015Q3,PERSONNEL COMPENSATION,"","KREMKAU,REBECCA K",07/01/15,09/30/15,FINANCIAL ANALYST,"22,098.51",FISCAL YEAR 2015,"","","","KREMKAU,REBECCA K"
,CHIEF ADMIN OFCR OF THE HOUSE,2015Q3,PERSONNEL COMPENSATION,"","KUPER, KAREN",07/01/15,09/30/15,SPECIAL ASSISTANT/OPER SUPERVI,"25,548.00",FISCAL YEAR 2015,"","","","KUPER, KAREN"
,CHIEF ADMIN OFCR OF THE HOUSE,2015Q3,PERSONNEL COMPENSATION,"","LAGASSE, DANIEL",07/01/15,09/30/15,BCDR OPERATIONS MANAGER,"33,372.24",FISCAL YEAR 2015,"","","","LAGASSE, DANIEL"
,CHIEF ADMIN OFCR OF THE HOUSE,2015Q3,PERSONNEL COMPENSATION,"","LAU,DAVID E",07/01/15,09/30/15,INFORMATION SECURITY MANAGER,"33,993.00",FISCAL YEAR 2015,"","","","LAU,DAVID E"
,CHIEF ADMIN OFCR OF THE HOUSE,2015Q3,PERSONNEL COMPENSATION,"","LEBER, DENNIS",07/01/15,09/30/15,SR NETWORK SYSTEMS ENGINEER,"28,508.01",FISCAL YEAR 2015,"","","","LEBER, DENNIS"
,CHIEF ADMIN OFCR OF THE HOUSE,2015Q3,PERSONNEL COMPENSATION,"","LEE, DARNELL A",07/01/15,09/30/15,ASSISTANT CAO,"38,135.49",FISCAL YEAR 2015,"","","","LEE, DARNELL A"
,CHIEF ADMIN OFCR OF THE HOUSE,2015Q3,PERSONNEL COMPENSATION,"","LEIBY,FREDERICK",07/01/15,09/30/15,CONTRACT ADMINISTRATOR,"18,697.26",FISCAL YEAR 2015,"","","","LEIBY,FREDERICK"
,CHIEF ADMIN OFCR OF THE HOUSE,2015Q3,PERSONNEL COMPENSATION,"","LEON-CAMPOS, CARLOS",07/01/15,09/30/15,MANAGER,"25,548.00",FISCAL YEAR 2015,"","","","LEON-CAMPOS, CARLOS"
,CHIEF ADMIN OFCR OF THE HOUSE,2015Q3,PERSONNEL COMPENSATION,"","LEONARD,DENISE D",07/01/15,09/30/15,WORKFLOW COORDINATOR,"16,504.50",FISCAL YEAR 2015,"","","","LEONARD,DENISE D"
,CHIEF ADMIN OFCR OF THE HOUSE,2015Q3,PERSONNEL COMPENSATION,"","LESNEWSKY,ERIK",07/01/15,09/30/15,ADA AIDE,"6,661.14",FISCAL YEAR 2015,"","","","LESNEWSKY,ERIK"
,CHIEF ADMIN OFCR OF THE HOUSE,2015Q3,PERSONNEL COMPENSATION,"","LESNEWSKY,ERIK",06/01/15,07/31/15,ADA AIDE (OVERTIME),"8,344.36",FISCAL YEAR 2015,"","","","LESNEWSKY,ERIK"
,CHIEF ADMIN OFCR OF THE HOUSE,2015Q3,PERSONNEL COMPENSATION,"","LEVENGOOD, DAVID S",07/01/15,09/25/15,TECHNICAL TRAINER,"18,034.65",FISCAL YEAR 2015,"","","","LEVENGOOD, DAVID S"
,CHIEF ADMIN OFCR OF THE HOUSE,2015Q3,PERSONNEL COMPENSATION,"","LEWIS, JOHN T",07/01/15,09/30/15,DIRECTOR FURNISHINGS,"29,025.99",FISCAL YEAR 2015,"","","","LEWIS, JOHN T"
,CHIEF ADMIN OFCR OF THE HOUSE,2015Q3,PERSONNEL COMPENSATION,"","LEWIS, ROBERT M",07/01/15,09/30/15,PHOTOGRAPHIC LAB TECHNICIAN,"18,207.24",FISCAL YEAR 2015,"","","","LEWIS, ROBERT M"
,CHIEF ADMIN OFCR OF THE HOUSE,2015Q3,PERSONNEL COMPENSATION,"","LIM,CHAU T",07/01/15,09/30/15,SENIOR ACCOUNTANT (A),"25,548.00",FISCAL YEAR 2015,"","","","LIM,CHAU T"
,CHIEF ADMIN OFCR OF THE HOUSE,2015Q3,PERSONNEL COMPENSATION,"","LINVILLE, RAY A",07/01/15,09/30/15,SENIOR SYSTEMS ENGINEER,"30,581.25",FISCAL YEAR 2015,"","","","LINVILLE, RAY A"
,CHIEF ADMIN OFCR OF THE HOUSE,2015Q3,PERSONNEL COMPENSATION,"","LITTLE, ANDREAL P",07/01/15,09/30/15,ADMINISTRATIVE SPECIALIST,"16,491.99",FISCAL YEAR 2015,"","","","LITTLE, ANDREAL P"
,CHIEF ADMIN OFCR OF THE HOUSE,2015Q3,PERSONNEL COMPENSATION,"","LITTLE, HAROLD M",07/01/15,09/30/15,SR TECH SOLUTIONS ENGINEER,"25,089.99",FISCAL YEAR 2015,"","","","LITTLE, HAROLD M"
,CHIEF ADMIN OFCR OF THE HOUSE,2015Q3,PERSONNEL COMPENSATION,"","LOGAN, KATHERINE J",07/01/15,09/30/15,DIRECTOR PAYROLL AND BENEFITS,"40,594.26",FISCAL YEAR 2015,"","","","LOGAN, KATHERINE J"
,CHIEF ADMIN OFCR OF THE HOUSE,2015Q3,PERSONNEL COMPENSATION,"","LONG, JOHN P",07/01/15,09/30/15,SR MODULAR FURNITURE SPEC,"26,185.50",FISCAL YEAR 2015,"","","","LONG, JOHN P"
,CHIEF ADMIN OFCR OF THE HOUSE,2015Q3,PERSONNEL COMPENSATION,"","LOVING, ANTHONY",07/01/15,09/30/15,APPLICATION DBA SPECIALIST,"28,680.67",FISCAL YEAR 2015,"","","","LOVING, ANTHONY"
,CHIEF ADMIN OFCR OF THE HOUSE,2015Q3,PERSONNEL COMPENSATION,"","MAAS, JENNIFER A",07/01/15,09/30/15,"MGR, USER EXPERIENCE & DESIGN","27,469.74",FISCAL YEAR 2015,"","","","MAAS, JENNIFER A"
,CHIEF ADMIN OFCR OF THE HOUSE,2015Q3,PERSONNEL COMPENSATION,"","MAGNOTTI IV,LOUIS",07/01/15,09/30/15,AUDIO SPECIALIST,"18,298.50",FISCAL YEAR 2015,"","","","MAGNOTTI IV,LOUIS"
,CHIEF ADMIN OFCR OF THE HOUSE,2015Q3,PERSONNEL COMPENSATION,"","MAGNOTTI IV,LOUIS",07/01/15,07/31/15,AUDIO SPECIALIST (OVERTIME),26.39,FISCAL YEAR 2015,"","","","MAGNOTTI IV,LOUIS"
,CHIEF ADMIN OFCR OF THE HOUSE,2015Q3,PERSONNEL COMPENSATION,"","MAGRUDER, TIMOTHY",07/01/15,09/30/15,JOURNEYMAN FURNITURE SPEC,"16,148.25",FISCAL YEAR 2015,"","","","MAGRUDER, TIMOTHY"
,CHIEF ADMIN OFCR OF THE HOUSE,2015Q3,PERSONNEL COMPENSATION,"","MAGRUDER, TIMOTHY",08/01/15,08/31/15,JOURNEYMAN FURNITURE SPEC. (OVERTIME),"1,117.94",FISCAL YEAR 2015,"","","","MAGRUDER, TIMOTHY"
,CHIEF ADMIN OFCR OF THE HOUSE,2015Q3,PERSONNEL COMPENSATION,"","MAHAR,EDWARD A",07/01/15,09/30/15,"DIR, INFO SYSTEMS SECURITY","39,775.08",FISCAL YEAR 2015,"","","","MAHAR,EDWARD A"
,CHIEF ADMIN OFCR OF THE HOUSE,2015Q3,PERSONNEL COMPENSATION,"","MAIDEN III, LEWIS L",07/01/15,09/30/15,LOGISTICS & DIST SPEC (A),"14,761.50",FISCAL YEAR 2015,"","","","MAIDEN III, LEWIS L"
,CHIEF ADMIN OFCR OF THE HOUSE,2015Q3,PERSONNEL COMPENSATION,"","MALASPINA,KIMBERLY J",07/01/15,09/30/15,JOURNEYMAN TEXTILE SPEC,"17,693.01",FISCAL YEAR 2015,"","","","MALASPINA,KIMBERLY J"
,CHIEF ADMIN OFCR OF THE HOUSE,2015Q3,PERSONNEL COMPENSATION,"","MALLON, MICHAEL P",07/01/15,09/30/15,RESOURCE ANALYST,"23,460.75",FISCAL YEAR 2015,"","","","MALLON, MICHAEL P"
,CHIEF ADMIN OFCR OF THE HOUSE,2015Q3,PERSONNEL COMPENSATION,"","MALLOY, DEON",07/01/15,09/30/15,SR TECHNICAL SUPPORT REP (A),"22,853.24",FISCAL YEAR 2015,"","","","MALLOY, DEON"
,CHIEF ADMIN OFCR OF THE HOUSE,2015Q3,PERSONNEL COMPENSATION,"","MARCUS, RALPH J",07/01/15,09/30/15,TECHNICAL DIRECTOR (A),"25,089.99",FISCAL YEAR 2015,"","","","MARCUS, RALPH J"
,CHIEF ADMIN OFCR OF THE HOUSE,2015Q3,PERSONNEL COMPENSATION,"","MARCUS, RALPH J",06/01/15,07/31/15,TECHNICAL DIRECTOR (A) (OVERTIME),832.30,FISCAL YEAR 2015,"","","","MARCUS, RALPH J"
,CHIEF ADMIN OFCR OF THE HOUSE,2015Q3,PERSONNEL COMPENSATION,"","MARSH, STEVE W",07/01/15,09/30/15,"MANAGER, ACCOUNTING","30,063.24",FISCAL YEAR 2015,"","","","MARSH, STEVE W"
,CHIEF ADMIN OFCR OF THE HOUSE,2015Q3,PERSONNEL COMPENSATION,"","MARTIN, CHRISTOPHER W",07/01/15,09/30/15,JOURNEYMAN FURNITURE SPEC,"20,076.00",FISCAL YEAR 2015,"","","","MARTIN, CHRISTOPHER W"
,CHIEF ADMIN OFCR OF THE HOUSE,2015Q3,PERSONNEL COMPENSATION,"","MARTINEZ, JAIME D",07/01/15,09/30/15,SENIOR SYSTEMS ENGINEER,"29,025.99",FISCAL YEAR 2015,"","","","MARTINEZ, JAIME D"
,CHIEF ADMIN OFCR OF THE HOUSE,2015Q3,PERSONNEL COMPENSATION,"","MARTINS, RICHARD",07/01/15,09/30/15,MANAGER NETWORK CONFIG. MNGMNT,"36,494.49",FISCAL YEAR 2015,"","","","MARTINS, RICHARD"
,CHIEF ADMIN OFCR OF THE HOUSE,2015Q3,PERSONNEL COMPENSATION,"","MASHETER JR, FREDERICK J",07/01/15,09/30/15,PURCHASING AGENT,"15,792.00",FISCAL YEAR 2015,"","","","MASHETER JR, FREDERICK J"
,CHIEF ADMIN OFCR OF THE HOUSE,2015Q3,PERSONNEL COMPENSATION,"","MASON, TRON",07/01/15,09/30/15,SR NETWORK COMM SPEC (A),"28,508.01",FISCAL YEAR 2015,"","","","MASON, TRON"
,CHIEF ADMIN OFCR OF THE HOUSE,2015Q3,PERSONNEL COMPENSATION,"","MASSENGALE, DOUG",07/01/15,09/30/15,CHIEF ENGINEER,"31,582.50",FISCAL YEAR 2015,"","","","MASSENGALE, DOUG"
,CHIEF ADMIN OFCR OF THE HOUSE,2015Q3,PERSONNEL COMPENSATION,"","MATADIAL, GLORIA V",07/01/15,09/30/15,SUPERVISOR,"29,544.99",FISCAL YEAR 2015,"","","","MATADIAL, GLORIA V"
,CHIEF ADMIN OFCR OF THE HOUSE,2015Q3,PERSONNEL COMPENSATION,"","MATHIS,MARC R",07/01/15,09/30/15,NETWORK TECHNICIAN,"20,294.76",FISCAL YEAR 2015,"","","","MATHIS,MARC R"
,CHIEF ADMIN OFCR OF THE HOUSE,2015Q3,PERSONNEL COMPENSATION,"","MATTHEWS,LEVI S",07/01/15,09/30/15,MANAGER,"23,723.49",FISCAL YEAR 2015,"","","","MATTHEWS,LEVI S"
,CHIEF ADMIN OFCR OF THE HOUSE,2015Q3,PERSONNEL COMPENSATION,"","MAULDIN,EVAN B",07/01/15,09/30/15,FINANCIAL ANALYST,"20,294.76",FISCAL YEAR 2015,"","","","MAULDIN,EVAN B"
,CHIEF ADMIN OFCR OF THE HOUSE,2015Q3,PERSONNEL COMPENSATION,"","MAZZULLO, MICHAEL A",07/01/15,09/30/15,RECEIVING/WAREHOUSE SPEC,"11,500.50",FISCAL YEAR 2015,"","","","MAZZULLO, MICHAEL A"
,CHIEF ADMIN OFCR OF THE HOUSE,2015Q3,PERSONNEL COMPENSATION,"","MCBRIDE-CHAMBERS, LISBETH",07/01/15,09/30/15,SR EA COUNSELOR,"32,654.25",FISCAL YEAR 2015,"","","","MCBRIDE-CHAMBERS, LISBETH"
,CHIEF ADMIN OFCR OF THE HOUSE,2015Q3,PERSONNEL COMPENSATION,"","MCCAULEY, ERICA C",07/01/15,08/31/15,FINANCIAL COUNSELOR,"11,268.16",FISCAL YEAR 2015,"","","","MCCAULEY, ERICA C"
,CHIEF ADMIN OFCR OF THE HOUSE,2015Q3,PERSONNEL COMPENSATION,"","MCCAULEY, ERICA C",09/01/15,09/30/15,FINANCIAL ANALYST,"5,965.75",FISCAL YEAR 2015,"","","","MCCAULEY, ERICA C"
,CHIEF ADMIN OFCR OF THE HOUSE,2015Q3,PERSONNEL COMPENSATION,"","MCCUE, BRIAN M",07/01/15,09/30/15,FINANCIAL ANALYST,"19,095.51",FISCAL YEAR 2015,"","","","MCCUE, BRIAN M"
,CHIEF ADMIN OFCR OF THE HOUSE,2015Q3,PERSONNEL COMPENSATION,"","MCDONALD, BRADLEY A",07/01/15,09/30/15,"MANAGER, ENTERPRISE APPL SUPP","36,494.49",FISCAL YEAR 2015,"","","","MCDONALD, BRADLEY A"
,CHIEF ADMIN OFCR OF THE HOUSE,2015Q3,PERSONNEL COMPENSATION,"","MCFADDEN, SAINT JUAN",07/01/15,09/30/15,SR PAYROLL & BENS GENERALIST,"21,641.25",FISCAL YEAR 2015,"","","","MCFADDEN, SAINT JUAN"
,CHIEF ADMIN OFCR OF THE HOUSE,2015Q3,PERSONNEL COMPENSATION,"","MCFADDEN, SAINT JUAN",02/01/15,02/28/15,SR PAYROLL & BENS GENERALIST (OVERTIME),"1,242.80",FISCAL YEAR 2015,"","","","MCFADDEN, SAINT JUAN"
,CHIEF ADMIN OFCR OF THE HOUSE,2015Q3,PERSONNEL COMPENSATION,"","MCFADDEN,MIRANDA J",07/01/15,09/30/15,BUDGET ANALYST,"23,723.49",FISCAL YEAR 2015,"","","","MCFADDEN,MIRANDA J"
,CHIEF ADMIN OFCR OF THE HOUSE,2015Q3,PERSONNEL COMPENSATION,"","MCGARRY, THOMAS K",07/01/15,09/30/15,JOURNEYMAN FURNITURE SPEC,"20,076.00",FISCAL YEAR 2015,"","","","MCGARRY, THOMAS K"
,CHIEF ADMIN OFCR OF THE HOUSE,2015Q3,PERSONNEL COMPENSATION,"","MCKITTRICK, DAVID E",07/01/15,09/30/15,SR BUSINESS PROCESS APPL SPEC,"38,369.49",FISCAL YEAR 2015,"","","","MCKITTRICK, DAVID E"
,CHIEF ADMIN OFCR OF THE HOUSE,2015Q3,PERSONNEL COMPENSATION,"","MEISTER, DARLENE T",07/01/15,09/30/15,"DIR, DIVERSITY & ORG CHGE MGT","34,620.51",FISCAL YEAR 2015,"","","","MEISTER, DARLENE T"
,CHIEF ADMIN OFCR OF THE HOUSE,2015Q3,PERSONNEL COMPENSATION,"","MELVIN, MICHAEL C",07/01/15,09/30/15,TECHNICAL SUPPORT REP,"20,694.00",FISCAL YEAR 2015,"","","","MELVIN, MICHAEL C"
,CHIEF ADMIN OFCR OF THE HOUSE,2015Q3,PERSONNEL COMPENSATION,"","MENDOZA,LYDIA",07/01/15,09/30/15,PAYROLL & BENEFITS GENERALIST,"17,298.00",FISCAL YEAR 2015,"","","","MENDOZA,LYDIA"
,CHIEF ADMIN OFCR OF THE HOUSE,2015Q3,PERSONNEL COMPENSATION,"","MENDOZA,LYDIA",08/01/15,08/31/15,PAYROLL & BENEFITS GENERALIST (OVERTIME),374.23,FISCAL YEAR 2015,"","","","MENDOZA,LYDIA"
,CHIEF ADMIN OFCR OF THE HOUSE,2015Q3,PERSONNEL COMPENSATION,"","MEREDITH, DWAINE",07/01/15,09/30/15,LOGISTICS & DIST SPEC (A),"10,599.99",FISCAL YEAR 2015,"","","","MEREDITH, DWAINE"
,CHIEF ADMIN OFCR OF THE HOUSE,2015Q3,PERSONNEL COMPENSATION,"","MEREDITH, DWAINE",08/01/15,08/31/15,LOGISTICS & DIST SPEC (A) (OVERTIME),122.31,FISCAL YEAR 2015,"","","","MEREDITH, DWAINE"
,CHIEF ADMIN OFCR OF THE HOUSE,2015Q3,PERSONNEL COMPENSATION,"","METZLER,FRANMARIE",06/01/15,08/21/15,PHOTOGRAPHER/LAB TECH (TEMP),"13,326.90",FISCAL YEAR 2015,"","","","METZLER,FRANMARIE"
,CHIEF ADMIN OFCR OF THE HOUSE,2015Q3,PERSONNEL COMPENSATION,"","MICHALEK, WILLIAM",07/01/15,09/30/15,BILLING ADMINISTRATOR,"17,521.26",FISCAL YEAR 2015,"","","","MICHALEK, WILLIAM"
,CHIEF ADMIN OFCR OF THE HOUSE,2015Q3,PERSONNEL COMPENSATION,"","MILASI, FRANCESCO",07/01/15,09/30/15,SENIOR NETWORK TECHNICIAN (A),"24,368.49",FISCAL YEAR 2015,"","","","MILASI, FRANCESCO"
,CHIEF ADMIN OFCR OF THE HOUSE,2015Q3,PERSONNEL COMPENSATION,"","MILBUT, ANTHONY P",07/01/15,09/30/15,MOBILE COMMUNICATIONS SPECIAL,"17,622.50",FISCAL YEAR 2015,"","","","MILBUT, ANTHONY P"
,CHIEF ADMIN OFCR OF THE HOUSE,2015Q3,PERSONNEL COMPENSATION,"","MILBUT, ANTHONY P",08/01/15,08/31/15,"MANAGER, PURCHASING","8,811.25",FISCAL YEAR 2015,"","","","MILBUT, ANTHONY P"
,CHIEF ADMIN OFCR OF THE HOUSE,2015Q3,PERSONNEL COMPENSATION,"","MILLER JR, LOUIS",07/01/15,09/30/15,PURCHASING AGENT,"14,418.75",FISCAL YEAR 2015,"","","","MILLER JR, LOUIS"
,CHIEF ADMIN OFCR OF THE HOUSE,2015Q3,PERSONNEL COMPENSATION,"","MILLER, KEITH E",07/01/15,09/30/15,BROADCAST PRODUCTION TECHNICIA,"23,460.75",FISCAL YEAR 2015,"","","","MILLER, KEITH E"
,CHIEF ADMIN OFCR OF THE HOUSE,2015Q3,PERSONNEL COMPENSATION,"","MILLER,MICHAEL A",07/01/15,09/30/15,"MANAGER, PROD AND SUPPORT","27,469.74",FISCAL YEAR 2015,"","","","MILLER,MICHAEL A"
,CHIEF ADMIN OFCR OF THE HOUSE,2015Q3,PERSONNEL COMPENSATION,"","MILLER,SHAWN",07/01/15,09/30/15,GRAPHICS & DESKTOP PUBL SPEC,"17,298.00",FISCAL YEAR 2015,"","","","MILLER,SHAWN"
,CHIEF ADMIN OFCR OF THE HOUSE,2015Q3,PERSONNEL COMPENSATION,"","MILLER-LAMILL, ELOISE R",07/01/15,09/30/15,BROADCAST PRODUCTION TECHNICIA,"23,460.75",FISCAL YEAR 2015,"","","","MILLER-LAMILL, ELOISE R"
,CHIEF ADMIN OFCR OF THE HOUSE,2015Q3,PERSONNEL COMPENSATION,"","MILLER-LAMILL, ELOISE R",06/01/15,07/31/15,BROADCAST PRODUCTION TECHNICIA (OVERTIME),"3,417.57",FISCAL YEAR 2015,"","","","MILLER-LAMILL, ELOISE R"
,CHIEF ADMIN OFCR OF THE HOUSE,2015Q3,PERSONNEL COMPENSATION,"","MINOR,LESLIE",07/01/15,09/30/15,FINANCIAL COUNSELOR,"17,298.00",FISCAL YEAR 2015,"","","","MINOR,LESLIE"
,CHIEF ADMIN OFCR OF THE HOUSE,2015Q3,PERSONNEL COMPENSATION,"","MINTON, DONNA",07/01/15,09/30/15,BUSINESS PROC APPLIC SPEC,"29,025.99",FISCAL YEAR 2015,"","","","MINTON, DONNA"
,CHIEF ADMIN OFCR OF THE HOUSE,2015Q3,PERSONNEL COMPENSATION,"","MINTURN, JOHN J",07/01/15,09/30/15,INFO SYSTEMS SECURITY MNGR,"33,993.00",FISCAL YEAR 2015,"","","","MINTURN, JOHN J"
,CHIEF ADMIN OFCR OF THE HOUSE,2015Q3,PERSONNEL COMPENSATION,"","MITTAL, RAHUL V",07/01/15,09/30/15,RISK AND INTERNAL CTRL ANALYST,"24,180.99",FISCAL YEAR 2015,"","","","MITTAL, RAHUL V"
,CHIEF ADMIN OFCR OF THE HOUSE,2015Q3,PERSONNEL COMPENSATION,"","MODICA, MICHAEL",07/01/15,09/30/15,CUSTOMER RELATIONS MANAGER,"32,712.00",FISCAL YEAR 2015,"","","","MODICA, MICHAEL"
,CHIEF ADMIN OFCR OF THE HOUSE,2015Q3,PERSONNEL COMPENSATION,"","MOLL, ANDREW C",07/01/15,09/30/15,SR INTERNET SYSTEMS SPECIALIST,"34,407.51",FISCAL YEAR 2015,"","","","MOLL, ANDREW C"
,CHIEF ADMIN OFCR OF THE HOUSE,2015Q3,PERSONNEL COMPENSATION,"","MONAHAN, TIMOTHY J",07/01/15,09/30/15,ASSIST CHIEF LOGISTICS OFFICER,"29,324.49",FISCAL YEAR 2015,"","","","MONAHAN, TIMOTHY J"
,CHIEF ADMIN OFCR OF THE HOUSE,2015Q3,PERSONNEL COMPENSATION,"","MOORE II,GARY L",07/01/15,09/30/15,SENIOR NETWORK TECHNICIAN,"20,276.76",FISCAL YEAR 2015,"","","","MOORE II,GARY L"
,CHIEF ADMIN OFCR OF THE HOUSE,2015Q3,PERSONNEL COMPENSATION,"","MOORE, EDWARDA P",07/01/15,09/30/15,FINANCIAL COUNSELOR,"20,694.00",FISCAL YEAR 2015,"","","","MOORE, EDWARDA P"
,CHIEF ADMIN OFCR OF THE HOUSE,2015Q3,PERSONNEL COMPENSATION,"","MORETTI, SCOTT A",07/01/15,09/30/15,NETWORK TECHNICIAN,"23,004.24",FISCAL YEAR 2015,"","","","MORETTI, SCOTT A"
,CHIEF ADMIN OFCR OF THE HOUSE,2015Q3,PERSONNEL COMPENSATION,"","MORGAN,CODY R",07/01/15,09/30/15,JOURNEYMAN TEXTILE SPEC,"16,902.24",FISCAL YEAR 2015,"","","","MORGAN,CODY R"
,CHIEF ADMIN OFCR OF THE HOUSE,2015Q3,PERSONNEL COMPENSATION,"","MORRIS,NICOLE C",07/01/15,09/30/15,IT GOVERNANCE COMPLIANCE MANAG,"33,993.00",FISCAL YEAR 2015,"","","","MORRIS,NICOLE C"
,CHIEF ADMIN OFCR OF THE HOUSE,2015Q3,PERSONNEL COMPENSATION,"","MOSES,ELIAS",07/01/15,09/30/15,APPLICATION SYSTEMS ADMINISTRA,"31,016.25",FISCAL YEAR 2015,"","","","MOSES,ELIAS"
,CHIEF ADMIN OFCR OF THE HOUSE,2015Q3,PERSONNEL COMPENSATION,"","MOSLEY, JOSEPH",07/01/15,09/30/15,TECHNICAL DIRECTOR (A),"24,636.00",FISCAL YEAR 2015,"","","","MOSLEY, JOSEPH"
,CHIEF ADMIN OFCR OF THE HOUSE,2015Q3,PERSONNEL COMPENSATION,"","MOSLEY, JOSEPH",06/01/15,07/31/15,TECHNICAL DIRECTOR (A) (OVERTIME),"2,214.85",FISCAL YEAR 2015,"","","","MOSLEY, JOSEPH"
,CHIEF ADMIN OFCR OF THE HOUSE,2015Q3,PERSONNEL COMPENSATION,"","MOXLEY,STEVEN",07/01/15,09/30/15,SR APPLICATION SECURITY ANALYS,"27,988.26",FISCAL YEAR 2015,"","","","MOXLEY,STEVEN"
,CHIEF ADMIN OFCR OF THE HOUSE,2015Q3,PERSONNEL COMPENSATION,"","MOYA, DAVID L",07/01/15,09/30/15,SYSTEMS ENGINEER,"25,548.00",FISCAL YEAR 2015,"","","","MOYA, DAVID L"
,CHIEF ADMIN OFCR OF THE HOUSE,2015Q3,PERSONNEL COMPENSATION,"","MUJAHID,WILLIAM L",07/01/15,07/01/15,NETWORK TECHNICIAN,245.54,FISCAL YEAR 2015,"","","","MUJAHID,WILLIAM L"
,CHIEF ADMIN OFCR OF THE HOUSE,2015Q3,PERSONNEL COMPENSATION,"","MUJAHID,WILLIAM L",07/01/15,07/01/15,NETWORK TECHNICIAN (OTHER COMPENSATION),"7,366.17",FISCAL YEAR 2015,"","","","MUJAHID,WILLIAM L"
,CHIEF ADMIN OFCR OF THE HOUSE,2015Q3,PERSONNEL COMPENSATION,"","MUNCY, JAMES P",07/01/15,09/30/15,SENIOR NETWORK TECHNICIAN,"23,916.00",FISCAL YEAR 2015,"","","","MUNCY, JAMES P"
,CHIEF ADMIN OFCR OF THE HOUSE,2015Q3,PERSONNEL COMPENSATION,"","MURPHY,LORI O",07/01/15,09/30/15,PAYROLL & BENEFITS GENERALIST,"17,245.23",FISCAL YEAR 2015,"","","","MURPHY,LORI O"
,CHIEF ADMIN OFCR OF THE HOUSE,2015Q3,PERSONNEL COMPENSATION,"","MURPHY,ROBERT",07/01/15,09/30/15,"MANAGER, FINANCIAL SYSTEMS","40,870.26",FISCAL YEAR 2015,"","","","MURPHY,ROBERT"
,CHIEF ADMIN OFCR OF THE HOUSE,2015Q3,PERSONNEL COMPENSATION,"","MYERS, ANTHONY C",07/01/15,09/30/15,NETWORK COMM SPECIALIST,"22,551.24",FISCAL YEAR 2015,"","","","MYERS, ANTHONY C"
,CHIEF ADMIN OFCR OF THE HOUSE,2015Q3,PERSONNEL COMPENSATION,"","NADEAU,JOHN J",07/01/15,09/30/15,DIRECTOR FINANCIAL COUNSELING,"34,620.51",FISCAL YEAR 2015,"","","","NADEAU,JOHN J"
,CHIEF ADMIN OFCR OF THE HOUSE,2015Q3,PERSONNEL COMPENSATION,"","NASH, MICHAEL R",07/01/15,09/30/15,BRANCH MANAGER,"35,867.25",FISCAL YEAR 2015,"","","","NASH, MICHAEL R"
,CHIEF ADMIN OFCR OF THE HOUSE,2015Q3,PERSONNEL COMPENSATION,"","NASR,HAITHAM M",07/01/15,09/30/15,SR BROADCAST ENG/PROD SPECLST,"22,809.75",FISCAL YEAR 2015,"","","","NASR,HAITHAM M"
,CHIEF ADMIN OFCR OF THE HOUSE,2015Q3,PERSONNEL COMPENSATION,"","NASR,HAITHAM M",06/01/15,08/31/15,SR BROADCAST ENG/PROD SPECLST (OVERTIME),471.53,FISCAL YEAR 2015,"","","","NASR,HAITHAM M"
,CHIEF ADMIN OFCR OF THE HOUSE,2015Q3,PERSONNEL COMPENSATION,"","NAUGHTON, CHRISTOPHER B",07/01/15,09/30/15,CUSTOMER SOLUTIONS SUPP SPECIA,"32,654.25",FISCAL YEAR 2015,"","","","NAUGHTON, CHRISTOPHER B"
,CHIEF ADMIN OFCR OF THE HOUSE,2015Q3,PERSONNEL COMPENSATION,"","NEILSON, REBECCA L",07/01/15,09/30/15,SENIOR ACCOUNTANT (A),"26,914.74",FISCAL YEAR 2015,"","","","NEILSON, REBECCA L"
,CHIEF ADMIN OFCR OF THE HOUSE,2015Q3,PERSONNEL COMPENSATION,"","NELSON, JUAN",07/01/15,09/30/15,STAFF ACCOUNTANT,"19,894.50",FISCAL YEAR 2015,"","","","NELSON, JUAN"
,CHIEF ADMIN OFCR OF THE HOUSE,2015Q3,PERSONNEL COMPENSATION,"","NELSON,JONATHAN D",07/01/15,08/31/15,PAYROLL & BENEFITS GENERALIST,"11,532.00",FISCAL YEAR 2015,"","","","NELSON,JONATHAN D"
,CHIEF ADMIN OFCR OF THE HOUSE,2015Q3,PERSONNEL COMPENSATION,"","NELSON,JONATHAN D",08/01/15,08/30/15,PAYROLL & BENEFITS GENERALIST (OTHER COMPENSATION),612.64,FISCAL YEAR 2015,"","","","NELSON,JONATHAN D"
,CHIEF ADMIN OFCR OF THE HOUSE,2015Q3,PERSONNEL COMPENSATION,"","NGHIEM, HIEU T",07/01/15,09/30/15,SR BUSINESS PROCESS APPL SPEC,"32,712.00",FISCAL YEAR 2015,"","","","NGHIEM, HIEU T"
,CHIEF ADMIN OFCR OF THE HOUSE,2015Q3,PERSONNEL COMPENSATION,"","NGUYEN, NHO V",07/01/15,09/30/15,SENIOR SYSTEMS ENGINEER,"29,544.99",FISCAL YEAR 2015,"","","","NGUYEN, NHO V"
,CHIEF ADMIN OFCR OF THE HOUSE,2015Q3,PERSONNEL COMPENSATION,"","NGUYEN, PHI",07/01/15,09/30/15,PHOTOGRAPHER,"17,521.26",FISCAL YEAR 2015,"","","","NGUYEN, PHI"
,CHIEF ADMIN OFCR OF THE HOUSE,2015Q3,PERSONNEL COMPENSATION,"","NGUYEN, PHI",07/01/15,07/31/15,PHOTOGRAPHER (OVERTIME),981.52,FISCAL YEAR 2015,"","","","NGUYEN, PHI"
,CHIEF ADMIN OFCR OF THE HOUSE,2015Q3,PERSONNEL COMPENSATION,"","NGUYEN, VAN",07/01/15,09/30/15,SR SOFTWARE ENGINEER,"23,460.75",FISCAL YEAR 2015,"","","","NGUYEN, VAN"
,CHIEF ADMIN OFCR OF THE HOUSE,2015Q3,PERSONNEL COMPENSATION,"","NORA, MYRTLE S",07/01/15,09/30/15,JOURNEYMAN TEXTILE SPEC,"18,885.51",FISCAL YEAR 2015,"","","","NORA, MYRTLE S"
,CHIEF ADMIN OFCR OF THE HOUSE,2015Q3,PERSONNEL COMPENSATION,"","NOWAK,JASON M",07/01/15,09/30/15,SENIOR SOFTWARE SPECIALIST,"35,241.75",FISCAL YEAR 2015,"","","","NOWAK,JASON M"
,CHIEF ADMIN OFCR OF THE HOUSE,2015Q3,PERSONNEL COMPENSATION,"","NUCKOLS, DELOIS J",07/01/15,09/30/15,SR CUSTOMER SOLUTIONS REP,"18,092.25",FISCAL YEAR 2015,"","","","NUCKOLS, DELOIS J"
,CHIEF ADMIN OFCR OF THE HOUSE,2015Q3,PERSONNEL COMPENSATION,"","NURSE, COURTNEY E",07/01/15,09/30/15,SR TECHNICAL SUPPORT REP,"23,004.24",FISCAL YEAR 2015,"","","","NURSE, COURTNEY E"
,CHIEF ADMIN OFCR OF THE HOUSE,2015Q3,PERSONNEL COMPENSATION,"","NUSINZON, IGOR",07/01/15,09/30/15,SENIOR SYSTEMS ENGINEER,"29,544.99",FISCAL YEAR 2015,"","","","NUSINZON, IGOR"
,CHIEF ADMIN OFCR OF THE HOUSE,2015Q3,PERSONNEL COMPENSATION,"","O'BRIEN, MARY F",07/01/15,09/30/15,SALES SPECIALIST,"13,001.25",FISCAL YEAR 2015,"","","","O'BRIEN, MARY F"
,CHIEF ADMIN OFCR OF THE HOUSE,2015Q3,PERSONNEL COMPENSATION,"","OATES, KIMBERLY S",07/01/15,09/30/15,SR MEDIA LOGISTICS COORDINATOR,"24,180.99",FISCAL YEAR 2015,"","","","OATES, KIMBERLY S"
,CHIEF ADMIN OFCR OF THE HOUSE,2015Q3,PERSONNEL COMPENSATION,"","OFILI, FLORENCE C",07/01/15,09/30/15,RISK AND INTERNAL CTRL ANALYST,"24,180.99",FISCAL YEAR 2015,"","","","OFILI, FLORENCE C"
,CHIEF ADMIN OFCR OF THE HOUSE,2015Q3,PERSONNEL COMPENSATION,"","OHLIS, CARLA M",07/01/15,09/30/15,SR INTERNET SYS ENGINEER,"33,276.99",FISCAL YEAR 2015,"","","","OHLIS, CARLA M"
,CHIEF ADMIN OFCR OF THE HOUSE,2015Q3,PERSONNEL COMPENSATION,"","OLDHAM,LINDSAY M",07/01/15,09/30/15,FINANCIAL ANALYST,"19,095.51",FISCAL YEAR 2015,"","","","OLDHAM,LINDSAY M"
,CHIEF ADMIN OFCR OF THE HOUSE,2015Q3,PERSONNEL COMPENSATION,"","OLIVER,EBBONY",07/01/15,08/20/15,ADMINISTRATIVE SPECIALIST,"7,057.50",FISCAL YEAR 2015,"","","","OLIVER,EBBONY"
,CHIEF ADMIN OFCR OF THE HOUSE,2015Q3,PERSONNEL COMPENSATION,"","OLIVER,EBBONY",08/21/15,09/30/15,HR COORDINATOR,"6,871.23",FISCAL YEAR 2015,"","","","OLIVER,EBBONY"
,CHIEF ADMIN OFCR OF THE HOUSE,2015Q3,PERSONNEL COMPENSATION,"","ORRICK, MICHAEL J",07/01/15,09/30/15,CUSTOMER SOLUTIONS REP,"16,836.99",FISCAL YEAR 2015,"","","","ORRICK, MICHAEL J"
,CHIEF ADMIN OFCR OF THE HOUSE,2015Q3,PERSONNEL COMPENSATION,"","OULAHYANE,MELISSIA A",07/01/15,09/30/15,ACCOUNTING TECHNICIAN (A),"18,885.51",FISCAL YEAR 2015,"","","","OULAHYANE,MELISSIA A"
,CHIEF ADMIN OFCR OF THE HOUSE,2015Q3,PERSONNEL COMPENSATION,"","OVERBY, FRANK W",07/01/15,09/30/15,JOURNEYMAN TEXTILE SPEC,"19,283.25",FISCAL YEAR 2015,"","","","OVERBY, FRANK W"
,CHIEF ADMIN OFCR OF THE HOUSE,2015Q3,PERSONNEL COMPENSATION,"","OWENS, MICHAEL E",07/01/15,09/30/15,BROADCAST PRODUCTION TECHNICIA,"23,460.75",FISCAL YEAR 2015,"","","","OWENS, MICHAEL E"
,CHIEF ADMIN OFCR OF THE HOUSE,2015Q3,PERSONNEL COMPENSATION,"","OWENS, MICHAEL E",05/01/15,08/31/15,BROADCAST PRODUCTION TECHNICIA (OVERTIME),"2,458.83",FISCAL YEAR 2015,"","","","OWENS, MICHAEL E"
,CHIEF ADMIN OFCR OF THE HOUSE,2015Q3,PERSONNEL COMPENSATION,"","PANY,CHRISTOPHER V",07/01/15,09/30/15,CONTRACTS SUPPORT ADMIN,"14,086.74",FISCAL YEAR 2015,"","","","PANY,CHRISTOPHER V"
,CHIEF ADMIN OFCR OF THE HOUSE,2015Q3,PERSONNEL COMPENSATION,"","PARKER, SARAH F",07/01/15,09/30/15,RESOURCE MANAGER,"32,145.99",FISCAL YEAR 2015,"","","","PARKER, SARAH F"
,CHIEF ADMIN OFCR OF THE HOUSE,2015Q3,PERSONNEL COMPENSATION,"","PARKER,KEVINA D",07/01/15,09/30/15,ACCOUNTING TECHNICIAN,"13,043.49",FISCAL YEAR 2015,"","","","PARKER,KEVINA D"
,CHIEF ADMIN OFCR OF THE HOUSE,2015Q3,PERSONNEL COMPENSATION,"","PATEL, DHAVAL H",07/01/15,09/30/15,SENIOR SYSTEMS ENGINEER,"32,712.00",FISCAL YEAR 2015,"","","","PATEL, DHAVAL H"
,CHIEF ADMIN OFCR OF THE HOUSE,2015Q3,PERSONNEL COMPENSATION,"","PAYNE,ANITA S",06/01/15,06/26/15,SENIOR SYSTEMS ENGINEER (OTHER COMPENSATION),"1,439.68",FISCAL YEAR 2015,"","","","PAYNE,ANITA S"
,CHIEF ADMIN OFCR OF THE HOUSE,2015Q3,PERSONNEL COMPENSATION,"","PEARSON, STEPHEN C",07/01/15,09/30/15,SR NETWORK SYSTEMS ENGINEER,"38,369.49",FISCAL YEAR 2015,"","","","PEARSON, STEPHEN C"
,CHIEF ADMIN OFCR OF THE HOUSE,2015Q3,PERSONNEL COMPENSATION,"","PENCE, CRAIG D",07/01/15,09/30/15,JOURNEYMAN FURNITURE SPEC,"19,283.25",FISCAL YEAR 2015,"","","","PENCE, CRAIG D"
,CHIEF ADMIN OFCR OF THE HOUSE,2015Q3,PERSONNEL COMPENSATION,"","PEOPLES, CATHY A",07/01/15,09/30/15,TECHNICAL DIRECTOR (A),"24,636.00",FISCAL YEAR 2015,"","","","PEOPLES, CATHY A"
,CHIEF ADMIN OFCR OF THE HOUSE,2015Q3,PERSONNEL COMPENSATION,"","PEOPLES, CATHY A",06/01/15,07/31/15,TECHNICAL DIRECTOR (A) (OVERTIME),"2,214.85",FISCAL YEAR 2015,"","","","PEOPLES, CATHY A"
,CHIEF ADMIN OFCR OF THE HOUSE,2015Q3,PERSONNEL COMPENSATION,"","PERKINS,JANET",07/01/15,09/30/15,TECH SOLUTIONS ENGINEER,"16,902.24",FISCAL YEAR 2015,"","","","PERKINS,JANET"
,CHIEF ADMIN OFCR OF THE HOUSE,2015Q3,PERSONNEL COMPENSATION,"","PERRY,JOHN S",07/01/15,09/30/15,JOURNEYMAN FURNITURE SPEC,"15,117.24",FISCAL YEAR 2015,"","","","PERRY,JOHN S"
,CHIEF ADMIN OFCR OF THE HOUSE,2015Q3,PERSONNEL COMPENSATION,"","PERSON, ARNETTE M",07/01/15,09/30/15,SUPERVISOR,"28,161.51",FISCAL YEAR 2015,"","","","PERSON, ARNETTE M"
,CHIEF ADMIN OFCR OF THE HOUSE,2015Q3,PERSONNEL COMPENSATION,"","PETERSON, CAROL C",07/01/15,09/30/15,FINANCE LIAISON,"27,469.74",FISCAL YEAR 2015,"","","","PETERSON, CAROL C"
,CHIEF ADMIN OFCR OF THE HOUSE,2015Q3,PERSONNEL COMPENSATION,"","PHAN, DEAN",07/01/15,09/30/15,NETWORK COMM SUPERVISOR,"31,582.50",FISCAL YEAR 2015,"","","","PHAN, DEAN"
,CHIEF ADMIN OFCR OF THE HOUSE,2015Q3,PERSONNEL COMPENSATION,"","PHILLIPS, LISA D",07/01/15,09/30/15,STAFF ACCOUNTANT (A),"25,548.00",FISCAL YEAR 2015,"","","","PHILLIPS, LISA D"
,CHIEF ADMIN OFCR OF THE HOUSE,2015Q3,PERSONNEL COMPENSATION,"","PHILLIPS,JAMALI",07/01/15,09/30/15,SENIOR SYSTEMS ENGINEER,"24,180.99",FISCAL YEAR 2015,"","","","PHILLIPS,JAMALI"
,CHIEF ADMIN OFCR OF THE HOUSE,2015Q3,PERSONNEL COMPENSATION,"","PIAZZA,RICHARD M",07/01/15,09/30/15,MANAGEMENT ANALYST,"32,145.99",FISCAL YEAR 2015,"","","","PIAZZA,RICHARD M"
,CHIEF ADMIN OFCR OF THE HOUSE,2015Q3,PERSONNEL COMPENSATION,"","PILKERTON, SANDRA Q",07/01/15,09/30/15,OFFICE MANAGER,"25,548.00",FISCAL YEAR 2015,"","","","PILKERTON, SANDRA Q"
,CHIEF ADMIN OFCR OF THE HOUSE,2015Q3,PERSONNEL COMPENSATION,"","PINDER, TYREIS",07/01/15,09/30/15,TECHNICAL SUPPORT REP,"19,628.00",FISCAL YEAR 2015,"","","","PINDER, TYREIS"
,CHIEF ADMIN OFCR OF THE HOUSE,2015Q3,PERSONNEL COMPENSATION,"","PINSON,STEPHEN",07/01/15,09/30/15,SENIOR SECURITY ANALYST,"27,469.74",FISCAL YEAR 2015,"","","","PINSON,STEPHEN"
,CHIEF ADMIN OFCR OF THE HOUSE,2015Q3,PERSONNEL COMPENSATION,"","PLOWDEN, VINCENT H",07/01/15,09/30/15,JOURNEYMAN FURNITURE SPEC,"19,283.25",FISCAL YEAR 2015,"","","","PLOWDEN, VINCENT H"
,CHIEF ADMIN OFCR OF THE HOUSE,2015Q3,PERSONNEL COMPENSATION,"","PLOWDEN, VINCENT H",08/01/15,08/31/15,JOURNEYMAN FURNITURE SPEC. (OVERTIME),889.99,FISCAL YEAR 2015,"","","","PLOWDEN, VINCENT H"
,CHIEF ADMIN OFCR OF THE HOUSE,2015Q3,PERSONNEL COMPENSATION,"","POWELL JR, CHARLES E",07/01/15,09/30/15,REC/WAREHOUSE SPEC (A),"14,761.50",FISCAL YEAR 2015,"","","","POWELL JR, CHARLES E"
,CHIEF ADMIN OFCR OF THE HOUSE,2015Q3,PERSONNEL COMPENSATION,"","POWERZ, DARIUS A",07/01/15,09/30/15,SR TECHNOLOGY SUPPORT REP,"25,089.99",FISCAL YEAR 2015,"","","","POWERZ, DARIUS A"
,CHIEF ADMIN OFCR OF THE HOUSE,2015Q3,PERSONNEL COMPENSATION,"","PRATT, MICHAEL",07/01/15,09/30/15,LOGISTICS & DIST SPEC (A),"10,699.74",FISCAL YEAR 2015,"","","","PRATT, MICHAEL"
,CHIEF ADMIN OFCR OF THE HOUSE,2015Q3,PERSONNEL COMPENSATION,"","PRATT, MICHAEL",06/01/15,07/31/15,LOGISTICS & DIST SPEC (A) (OVERTIME),275.19,FISCAL YEAR 2015,"","","","PRATT, MICHAEL"
,CHIEF ADMIN OFCR OF THE HOUSE,2015Q3,PERSONNEL COMPENSATION,"","PURYEAR, MARGARET S",07/01/15,09/30/15,COMMUNICATIONS SPEC (A),"23,916.00",FISCAL YEAR 2015,"","","","PURYEAR, MARGARET S"
,CHIEF ADMIN OFCR OF THE HOUSE,2015Q3,PERSONNEL COMPENSATION,"","RAKHIMOV,MUKHSIMJON",07/01/15,09/30/15,SR INTERNET SYSTEMS ENG,"26,953.74",FISCAL YEAR 2015,"","","","RAKHIMOV,MUKHSIMJON"
,CHIEF ADMIN OFCR OF THE HOUSE,2015Q3,PERSONNEL COMPENSATION,"","RAMPEY,DOMINICK",07/01/15,09/30/15,BROADCAST ENGINEER/PROD SPEC,"22,098.51",FISCAL YEAR 2015,"","","","RAMPEY,DOMINICK"
,CHIEF ADMIN OFCR OF THE HOUSE,2015Q3,PERSONNEL COMPENSATION,"","RAMSEY,JOHN D",07/01/15,09/30/15,ASSISTANT CIO/CISO,"42,102.75",FISCAL YEAR 2015,"","","","RAMSEY,JOHN D"
,CHIEF ADMIN OFCR OF THE HOUSE,2015Q3,PERSONNEL COMPENSATION,"","RAWAT,VINOD S",07/01/15,09/30/15,INTERNET SYSTEMS SPECIALIST,"20,694.00",FISCAL YEAR 2015,"","","","RAWAT,VINOD S"
,CHIEF ADMIN OFCR OF THE HOUSE,2015Q3,PERSONNEL COMPENSATION,"","REDLIN, TODD A",07/01/15,09/30/15,SR BROADCAST ENG/PROD SPECLST,"28,742.76",FISCAL YEAR 2015,"","","","REDLIN, TODD A"
,CHIEF ADMIN OFCR OF THE HOUSE,2015Q3,PERSONNEL COMPENSATION,"","REDLIN, TODD A",06/01/15,07/31/15,SR BROADCAST ENG/PROD SPECLST (OVERTIME),912.02,FISCAL YEAR 2015,"","","","REDLIN, TODD A"
,CHIEF ADMIN OFCR OF THE HOUSE,2015Q3,PERSONNEL COMPENSATION,"","REED, LAURA E",07/01/15,08/31/15,3RD ASST SUPERINTENDENT,"13,529.84",FISCAL YEAR 2015,"","","","REED, LAURA E"
,CHIEF ADMIN OFCR OF THE HOUSE,2015Q3,PERSONNEL COMPENSATION,"","REED, LAURA E",09/01/15,09/30/15,ASSISTANT DIRECTOR,"7,668.08",FISCAL YEAR 2015,"","","","REED, LAURA E"
,CHIEF ADMIN OFCR OF THE HOUSE,2015Q3,PERSONNEL COMPENSATION,"","REGISTER, BRENDA G",07/01/15,09/30/15,CONFIG MGMT/QLTY ASSUR ANALYST,"22,702.24",FISCAL YEAR 2015,"","","","REGISTER, BRENDA G"
,CHIEF ADMIN OFCR OF THE HOUSE,2015Q3,PERSONNEL COMPENSATION,"","REID, EDWARD K",07/01/15,09/30/15,PRODUCTION/ENGINEER SPEC (TEMP,"3,690.53",FISCAL YEAR 2015,"","","","REID, EDWARD K"
,CHIEF ADMIN OFCR OF THE HOUSE,2015Q3,PERSONNEL COMPENSATION,"","REID, KAREN E",07/01/15,09/30/15,SUPPLY ACCOUNT SPECIALIST,"17,298.00",FISCAL YEAR 2015,"","","","REID, KAREN E"
,CHIEF ADMIN OFCR OF THE HOUSE,2015Q3,PERSONNEL COMPENSATION,"","REMKE,MATTHEW A",09/05/15,09/30/15,SENIOR SYSTEMS ENGINEER,"8,634.31",FISCAL YEAR 2015,"","","","REMKE,MATTHEW A"
,CHIEF ADMIN OFCR OF THE HOUSE,2015Q3,PERSONNEL COMPENSATION,"","RHODES, MASHELL M",07/01/15,09/30/15,SR TELECOMMUNICATIONS ADMIN,"16,836.99",FISCAL YEAR 2015,"","","","RHODES, MASHELL M"
,CHIEF ADMIN OFCR OF THE HOUSE,2015Q3,PERSONNEL COMPENSATION,"","RHONES,SHERMAN D",07/01/15,09/30/15,LOGISTICS & DIST SPEC (A),"9,336.34",FISCAL YEAR 2015,"","","","RHONES,SHERMAN D"
,CHIEF ADMIN OFCR OF THE HOUSE,2015Q3,PERSONNEL COMPENSATION,"","RICANEK, SARAH D",07/01/15,09/30/15,SALES SPECIALIST,"14,761.50",FISCAL YEAR 2015,"","","","RICANEK, SARAH D"
,CHIEF ADMIN OFCR OF THE HOUSE,2015Q3,PERSONNEL COMPENSATION,"","RICE,LAWRENCE B",07/01/15,09/30/15,SR BUSINESS PROCESS APPL SPEC,"32,145.99",FISCAL YEAR 2015,"","","","RICE,LAWRENCE B"
,CHIEF ADMIN OFCR OF THE HOUSE,2015Q3,PERSONNEL COMPENSATION,"","RICHARDS, JOHN",07/01/15,09/30/15,INTERNET SYSTEMS SPECIALIST,"20,294.76",FISCAL YEAR 2015,"","","","RICHARDS, JOHN"
,CHIEF ADMIN OFCR OF THE HOUSE,2015Q3,PERSONNEL COMPENSATION,"","RICHTER, ROBIN",07/01/15,09/30/15,TELEPHONE SYSTEMS CONSULTANT,"25,275.24",FISCAL YEAR 2015,"","","","RICHTER, ROBIN"
,CHIEF ADMIN OFCR OF THE HOUSE,2015Q3,PERSONNEL COMPENSATION,"","RIDDLE,DONALD W",07/01/15,09/30/15,SR BUSINESS PROCESS APPL SPEC,"29,324.49",FISCAL YEAR 2015,"","","","RIDDLE,DONALD W"
,CHIEF ADMIN OFCR OF THE HOUSE,2015Q3,PERSONNEL COMPENSATION,"","RIDGELL JR,WILLIAM",07/01/15,09/30/15,LOGISTICS & DIST SPEC (A),"9,998.01",FISCAL YEAR 2015,"","","","RIDGELL JR,WILLIAM"
,CHIEF ADMIN OFCR OF THE HOUSE,2015Q3,PERSONNEL COMPENSATION,"","RIVERS,MARLIAN E",07/01/15,09/30/15,LOGISTICS & DIST SPEC (A),"10,298.76",FISCAL YEAR 2015,"","","","RIVERS,MARLIAN E"
,CHIEF ADMIN OFCR OF THE HOUSE,2015Q3,PERSONNEL COMPENSATION,"","RIVERS,MARLIAN E",08/01/15,08/31/15,LOGISTICS & DIST SPEC (A) (OVERTIME),118.83,FISCAL YEAR 2015,"","","","RIVERS,MARLIAN E"
,CHIEF ADMIN OFCR OF THE HOUSE,2015Q3,PERSONNEL COMPENSATION,"","ROACH, KEVIN J",07/01/15,09/30/15,SENIOR SYSTEMS ENGINEER,"34,407.51",FISCAL YEAR 2015,"","","","ROACH, KEVIN J"
,CHIEF ADMIN OFCR OF THE HOUSE,2015Q3,PERSONNEL COMPENSATION,"","ROBERTSON, DEBORAH M",07/01/15,09/30/15,SENIOR ACCOUNTANT,"26,004.00",FISCAL YEAR 2015,"","","","ROBERTSON, DEBORAH M"
,CHIEF ADMIN OFCR OF THE HOUSE,2015Q3,PERSONNEL COMPENSATION,"","ROCHE,KEVIN",07/01/15,09/30/15,APPLICATION DBA SPECIALIST,"28,508.01",FISCAL YEAR 2015,"","","","ROCHE,KEVIN"
,CHIEF ADMIN OFCR OF THE HOUSE,2015Q3,PERSONNEL COMPENSATION,"","ROGERS,JUSTIN E",07/01/15,09/30/15,JOURNEYMAN TEXTILE SPEC,"12,014.25",FISCAL YEAR 2015,"","","","ROGERS,JUSTIN E"
,CHIEF ADMIN OFCR OF THE HOUSE,2015Q3,PERSONNEL COMPENSATION,"","ROGERSON, RANDY",07/01/15,09/30/15,JOURNEYMAN FURNITURE SPEC,"15,104.76",FISCAL YEAR 2015,"","","","ROGERSON, RANDY"
,CHIEF ADMIN OFCR OF THE HOUSE,2015Q3,PERSONNEL COMPENSATION,"","ROHWER,LUKE A",07/01/15,09/30/15,AUDIO SPECIALIST,"18,298.50",FISCAL YEAR 2015,"","","","ROHWER,LUKE A"
,CHIEF ADMIN OFCR OF THE HOUSE,2015Q3,PERSONNEL COMPENSATION,"","ROHWER,LUKE A",06/01/15,07/31/15,AUDIO SPECIALIST (OVERTIME),"1,293.20",FISCAL YEAR 2015,"","","","ROHWER,LUKE A"
,CHIEF ADMIN OFCR OF THE HOUSE,2015Q3,PERSONNEL COMPENSATION,"","ROMANO, CHRISTOPHER M",07/01/15,09/30/15,SR INFO SYS SEC ANALYST,"29,025.99",FISCAL YEAR 2015,"","","","ROMANO, CHRISTOPHER M"
,CHIEF ADMIN OFCR OF THE HOUSE,2015Q3,PERSONNEL COMPENSATION,"","ROMANO,KARLI",07/01/15,09/30/15,SPECIAL ASSISTANT,"20,732.25",FISCAL YEAR 2015,"","","","ROMANO,KARLI"
,CHIEF ADMIN OFCR OF THE HOUSE,2015Q3,PERSONNEL COMPENSATION,"","ROSCOE, SHEILA L",07/01/15,09/30/15,SR. APPLICATION DBA SPECIALIST,"30,453.99",FISCAL YEAR 2015,"","","","ROSCOE, SHEILA L"
